Workbook

Sheet Fig. 1B
A1: Starvation time (h): | B1: 0.3 | C1: 1 | D1: 2 | E1: 3.1 | F1: 7.1 | G1: 11 | H1: 23.4 | I1: 47
B2: Brine shrimps eaten (# shrimps)
B3: 4 | C3: 7 | D3: 18 | E3: 24 | F3: 26 | G3: 38 | H3: 36 | I3: 40
B4: 5 | C4: 14 | D4: 18 | E4: 26 | F4: 29 | G4: 41 | H4: 37 | I4: 61
B5: 7 | C5: 15 | D5: 20 | E5: 27 | F5: 35 | G5: 41 | H5: 40 | I5: 62
B6: 8 | C6: 16 | D6: 20 | E6: 31 | F6: 36 | G6: 43 | H6: 44 | I6: 65
B7: 11 | C7: 16 | D7: 22 | E7: 34 | F7: 37 | G7: 45 | H7: 45 | I7: 69
B8: 11 | C8: 16 | D8: 23 | E8: 36 | F8: 37 | G8: 48 | H8: 45 | I8: 70
B9: 11 | C9: 16 | D9: 25 | E9: 37 | F9: 38 | G9: 49 | H9: 50 | I9: 71
B10: 12 | C10: 18 | D10: 30 | E10: 38 | F10: 38 | G10: 50 | H10: 54 | I10: 71
B11: 15 | C11: 21 | D11: 30 | E11: 39 | F11: 40 | G11: 52 | H11: 57 | I11: 72
B12: 16 | C12: 22 | D12: 33 | E12: 41 | F12: 44 | G12: 52 | H12: 57 | I12: 72
B13: 20 | C13: 26 | D13: 34 | E13: 43 | F13: 46 | G13: 53 | H13: 58 | I13: 74
B14: 20 | C14: 31 | D14: 34 | E14: 51 | F14: 48 | G14: 55 | H14: 63 | I14: 76
A16: p value summary (Kruskal-Wallis test; Dunn's post test, Adjusted P Values)
A17: Time (h): | B17: 0.3 | C17: 1 | D17: 2 | E17: 3.1 | F17: 7.1 | G17: 11 | H17: 23.4 | I17: 47
A18: 0.3 | C18: > 0.9999 | D18: > 0.9999 | E18: 0.0169 | F18: 0.0045 | G18: < 0.0001 | H18: < 0.0001 | I18: < 0.0001
A19: 1 | D19: > 0.9999 | E19: 0.2594 | F19: 0.0899 | G19: 0.0002 | H19: 0.0002 | I19: < 0.0001
A20: 2 | E20: > 0.9999 | F20: > 0.9999 | G20: 0.0134 | H20: 0.0118 | I20: < 0.0001
A21: 3.1 | F21: > 0.9999 | G21: > 0.9999 | H21: > 0.9999 | I21: 0.0136
A22: 7.1 | G22: > 0.9999 | H22: > 0.9999 | I22: 0.0466
A23: 11 | H23: > 0.9999 | I23: > 0.9999
A24: 23.4 | I24: > 0.9999

Sheet Fig2B
A1: Sample | B1: PC1 | C1: PC2
A2: Ring Starved Sample 1 | B2: -142.35495 | C2: 152.533154
A3: Ring Starved Sample 2 | B3: -120.26313 | C3: 136.952161
A4: Ring Starved Sample 3 | B4: -155.6595 | C4: 165.059833
A5: Ring Fed Sample 1 | B5: -97.76398 | C5: 15.109129
A6: Ring Fed Sample 2 | B6: -143.9206 | C6: -143.036865
A7: Ring Fed Sample 3 | B7: -191.48886 | C7: -276.510752
A8: Manubrium Starved Sample 1 | B8: 164.49465 | C8: -45.883194
A9: Manubrium Starved Sample 2 | B9: 155.49754 | C9: -28.88692
A10: Manubrium Starved Sample 3 | B10: 133.50065 | C10: 46.66691
A11: Manubrium Fed Sample 1 | B11: 144.74577 | C11: 8.616471
A12: Manubrium Fed Sample 2 | B12: 129.53929 | C12: 28.759824
A13: Manubrium Fed Sample 3 | B13: 123.67312 | C13: -59.379752

Sheet Fig2C
A1: GO Term Family | B1: # terms | C1: % representation
A2: Cellular process | B2: 26 | C2: =100*B2/SUM($B$2:$B$7) -> 37.14285714
A3: Metabolic process | B3: 16 | C3: =100*B3/SUM($B$2:$B$7) -> 22.85714286
A4: Localization | B4: 11 | C4: 15.71428571
A5: Biological regulation | B5: 6 | C5: 8.571428571
A6: Multicellular organismal process | B6: 6 | C6: 8.571428571
A7: Other | B7: 5 | C7: 7.142857143

Sheet Fig2D
C1: REVIGO parameters
A2: GO term | B2: Description | C2: x | D2: y | E2: Size | F2: log10 p-value
A3: GO:0019068 | B3: virion assembly | C3: -7.429 | D3: 0.532 | E3: 3.571 | F3: -3.6225
A4: GO:0090382 | B4: phagosome maturation | C4: -7.231 | D4: 0.474 | E4: 2.948 | F4: -4.301
A5: GO:2000785 | B5: regulation of autophagosome assembly | C5: -6.044 | D5: 0.083 | E5: 3.057 | F5: -4.3072
A6: GO:0097494 | B6: regulation of vesicle size | C6: -5.675 | D6: -1.437 | E6: 1.82 | F6: -3.8466
A7: GO:0045838 | B7: positive regulation of membrane potential | C7: -5.348 | D7: -3.564 | E7: 2.281 | F7: -8.2336
A8: GO:0051036 | B8: regulation of endosome size | C8: -5.284 | D8: -1.258 | E8: 2.387 | F8: -5.2882
A9: GO:0086001 | B9: cardiac muscle cell action potential | C9: -5.166 | D9: -3.23 | E9: 3.124 | F9: -4.3536
A10: GO:2001259 | B10: positive regulation of cation channel activity | C10: -4.962 | D10: 2.568 | E10: 2.876 | F10: -7.7352
A11: GO:1900827 | B11: positive regulation of membrane depolarization during cardiac muscle cell action potential | C11: -4.809 | D11: -3.122 | E11: 0.602 | F11: -8.6861
A12: GO:0044539 | B12: long-chain fatty acid import | C12: -4.728 | D12: 5.293 | E12: 2.607 | F12: -5.0141
A13: GO:0015031 | B13: protein transport | C13: -4.199 | D13: 5.738 | E13: 5.461 | F13: -4.684
A14: GO:2000300 | B14: regulation of synaptic vesicle exocytosis | C14: -3.895 | D14: 2.451 | E14: 2.748 | F14: -4.3969
A15: GO:0043001 | B15: Golgi to plasma membrane protein transport | C15: -3.713 | D15: 4.111 | E15: 3.28 | F15: -7.8447
A16: GO:0006581 | B16: acetylcholine catabolic process | C16: -3.682 | D16: -3.246 | E16: 1.996 | F16: -3.4245
A17: GO:0032507 | B17: maintenance of protein location in cell | C17: -3.317 | D17: 2.017 | E17: 3.868 | F17: -4.1051
A18: GO:0002026 | B18: regulation of the force of heart contraction | C18: -2.896 | D18: -4.811 | E18: 2.794 | F18: -4.9281
A19: GO:0045022 | B19: early endosome to late endosome transport | C19: -2.848 | D19: 6.197 | E19: 2.96 | F19: -3.4943
A20: GO:0098876 | B20: vesicle-mediated transport to the plasma membrane | C20: -2.79 | D20: 6.402 | E20: 3.691 | F20: -5.3575
A21: GO:2000286 | B21: receptor internalization involved in canonical Wnt signaling pathway | C21: -2.687 | D21: 5.165 | E21: 1.806 | F21: -4.2449
A22: GO:0071709 | B22: membrane assembly | C22: -2.61 | D22: 1.058 | E22: 4.086 | F22: -4.6576
A23: GO:0002755 | B23: MyD88-dependent toll-like receptor signaling pathway | C23: -2.403 | D23: -2.032 | E23: 3.016 | F23: -3.8569
A24: GO:0048227 | B24: plasma membrane to endosome transport | C24: -2.362 | D24: 6.688 | E24: 2.338 | F24: -6.0685
A25: GO:0045055 | B25: regulated exocytosis | C25: -2.008 | D25: 5.684 | E25: 3.795 | F25: -4.0794
A26: GO:0014728 | B26: regulation of the force of skeletal muscle contraction | C26: -1.068 | D26: -6.567 | E26: 1.653 | F26: -5.9393
A27: GO:0051437 | B27: positive regulation of ubiquitin-protein ligase activity involved in regulation of mitotic cell cycle transition | C27: -0.597 | D27: -2.374 | E27: 1.924 | F27: -3.3886
A28: GO:0043011 | B28: myeloid dendritic cell differentiation | C28: -0.32 | D28: -6.484 | E28: 2.687 | F28: -3.5268
A29: GO:0055010 | B29: ventricular cardiac muscle tissue morphogenesis | C29: 0.129 | D29: -7.218 | E29: 3.105 | F29: -4.1457
A30: GO:0007512 | B30: adult heart development | C30: 0.454 | D30: -7.248 | E30: 2.505 | F30: -4.0132
A31: GO:0030049 | B31: muscle filament sliding | C31: 0.764 | D31: -6.964 | E31: 2.286 | F31: -4.2644
A32: GO:1901378 | B32: organic heteropentacyclic compound biosynthetic process | C32: 1.091 | D32: 0.816 | E32: 2.537 | F32: -4.5031
A33: GO:0042276 | B33: error-prone translesion synthesis | C33: 1.149 | D33: 5.957 | E33: 2.967 | F33: -3.4189
A34: GO:0045116 | B34: protein neddylation | C34: 1.991 | D34: -4.982 | E34: 3.377 | F34: -4.1314
A35: GO:0031145 | B35: anaphase-promoting complex-dependent catabolic process | C35: 2.267 | D35: -4.306 | E35: 3.421 | F35: -3.6715
A36: GO:0000281 | B36: mitotic cytokinesis | C36: 2.425 | D36: 6.759 | E36: 3.953 | F36: -3.6256
A37: GO:0046395 | B37: carboxylic acid catabolic process | C37: 2.903 | D37: 1.757 | E37: 5.084 | F37: -3.3496
A38: GO:0009403 | B38: toxin biosynthetic process | C38: 3.406 | D38: 4.083 | E38: 3.608 | F38: -3.8188
A39: GO:0042180 | B39: cellular ketone metabolic process | C39: 3.962 | D39: 4.704 | E39: 4.735 | F39: -3.625
A40: GO:0017000 | B40: antibiotic biosynthetic process | C40: 4.155 | D40: -3.829 | E40: 3.56 | F40: -5.6383
A41: GO:0071072 | B41: negative regulation of phospholipid biosynthetic process | C41: 4.526 | D41: 0.185 | E41: 2.672 | F41: -5.6383
A42: GO:0019321 | B42: pentose metabolic process | C42: 5.218 | D42: 5.434 | E42: 4.227 | F42: -4.0804
A43: GO:0001676 | B43: long-chain fatty acid metabolic process | C43: 5.401 | D43: 2.348 | E43: 3.854 | F43: -4.4776
A44: GO:0006646 | B44: phosphatidylethanolamine biosynthetic process | C44: 5.642 | D44: 0.976 | E44: 3.549 | F44: -5.9666
A45: GO:0044249 | B45: cellular biosynthetic process | C45: 5.646 | D45: -3.721 | E45: 6.586 | F45: -4.1568
A46: GO:1901576 | B46: organic substance biosynthetic process | C46: 5.723 | D46: -3.812 | E46: 6.591 | F46: -5.1325
A47: GO:0000038 | B47: very long-chain fatty acid metabolic process | C47: 5.747 | D47: 2.317 | E47: 3.356 | F47: -4.9101
A48: GO:0006659 | B48: phosphatidylserine biosynthetic process | C48: 5.933 | D48: 0.561 | E48: 3.04 | F48: -4.6676
A49: GO:0001523 | B49: retinoid metabolic process | C49: 6.346 | D49: 1.773 | E49: 3.234 | F49: -3.7705
A50: GO:0097089 | B50: methyl-branched fatty acid metabolic process | C50: 6.375 | D50: 0.999 | E50: 1.799 | F50: -5.5622
A51: GO:0010430 | B51: fatty acid omega-oxidation | C51: 6.392 | D51: 1.493 | E51: 1.987 | F51: -9.5935
A52: GO:0016125 | B52: sterol metabolic process | C52: 6.768 | D52: 0.738 | E52: 4.135 | F52: -5.4935

Sheet Fig2E
A1: Peptide: | B1: None (ASW) | C1: IIQQVPTa | D1: AQILSEQa | E1: PELTSPEa | F1: GVRHVKIa | G1: TVTDTVTa | H1: DTFSYSHa | I1: LYEAYEAa | J1: LEHFNKGa | K1: PENKNTCa | L1: TNNTQSAa | M1: VANISCPa | N1: IHTAICFa | O1: LEQEEAa | P1: MGFTEARa | Q1: NLGFLHDa | R1: QYCALSVa | S1: LFTGNSSa | T1: NTVVSSTa | U1: RIYKVCCa | V1: SCVRLQHa | W1: SLVRSMKa | X1: KGGPTFCa | Y1: KIELSMCa | Z1: NTQNEILa | AA1: SFAPERTa | AB1: LINPEIEa | AC1: LLTLNLKa | AD1: LTEMKCPa | AE1: PTILWLAa | AF1: VMWNMDPa | AG1: VVANHLLa | AH1: GYIHCLGa | AI1: PMAGVLLa | AJ1: STRQFSCa | AK1: VAINIQRa | AL1: PMALRCDa | AM1: GEVTVGSa | AN1: ENDKLCSa | AO1: NVFNYQIa | AP1: VMFTNDQa | AQ1: GPPGLWa | AR1: EVQFCEFa | AS1: YPMENVHa
B2: Brine shrimps eaten (# shrimps)
B3: 29 | C3: 34 | D3: 12 | E3: 54 | F3: 44 | G3: 43 | H3: 34 | I3: 21 | J3: 20 | K3: 28 | L3: 31 | M3: 58 | N3: 27 | O3: 35 | P3: 28 | Q3: 17 | R3: 30 | S3: 20 | T3: 38 | U3: 40 | V3: 37 | W3: 25 | X3: 32 | Y3: 27 | Z3: 23 | AA3: 24 | AB3: 26 | AC3: 21 | AD3: 25 | AE3: 25 | AF3: 24 | AG3: 24 | AH3: 36 | AI3: 20 | AJ3: 24 | AK3: 57 | AL3: 37 | AM3: 19 | AN3: 17 | AO3: 18 | AP3: 15 | AQ3: 13 | AR3: 5 | AS3: 19
B4: 45 | C4: 42 | D4: 20 | E4: 44 | F4: 41 | G4: 32 | H4: 36 | I4: 2 | J4: 26 | K4: 56 | L4: 32 | M4: 55 | N4: 34 | O4: 23 | P4: 30 | Q4: 30 | R4: 19 | S4: 36 | T4: 39 | U4: 57 | V4: 38 | W4: 12 | X4: 51 | Y4: 44 | Z4: 34 | AA4: 24 | AB4: 21 | AC4: 30 | AD4: 15 | AE4: 25 | AF4: 56 | AG4: 23 | AH4: 36 | AI4: 21 | AJ4: 22 | AK4: 16 | AL4: 33 | AM4: 30 | AN4: 8 | AO4: 24 | AP4: 16 | AQ4: 9 | AR4: 8 | AS4: 27
B5: 38 | C5: 41 | D5: 37 | E5: 39 | F5: 36 | G5: 29 | H5: 37 | I5: 27 | J5: 43 | K5: 53 | L5: 21 | M5: 52 | N5: 33 | O5: 30 | P5: 33 | Q5: 22 | R5: 42 | S5: 31 | T5: 31 | U5: 28 | V5: 28 | W5: 25 | X5: 57 | Y5: 48 | Z5: 21 | AA5: 27 | AB5: 20 | AC5: 25 | AD5: 41 | AE5: 24 | AF5: 49 | AG5: 28 | AH5: 49 | AI5: 22 | AJ5: 21 | AK5: 20 | AL5: 23 | AM5: 37 | AN5: 42 | AO5: 16 | AP5: 15 | AQ5: 10 | AR5: 7 | AS5: 7
B6: 35 | C6: 38 | D6: 62 | E6: 36 | F6: 35 | G6: 37 | H6: 29 | I6: 68 | J6: 19 | K6: 36 | L6: 30 | M6: 28 | N6: 33 | O6: 29 | P6: 21 | Q6: 39 | R6: 31 | S6: 33 | T6: 4 | U6: 9 | V6: 26 | W6: 19 | X6: 5 | Y6: 16 | Z6: 49 | AA6: 20 | AB6: 41 | AC6: 38 | AD6: 22 | AE6: 33 | AF6: 29 | AG6: 25 | AH6: 17 | AI6: 31 | AJ6: 9 | AK6: 22 | AL6: 18 | AM6: 13 | AN6: 28 | AO6: 15 | AP6: 16 | AQ6: 22 | AR6: 13 | AS6: 12
B7: 13 | C7: 16 | D7: 14 | E7: 33 | F7: 42 | G7: 28 | H7: 25 | I7: 11 | J7: 29 | K7: 28 | L7: 45 | M7: 31 | N7: 22 | O7: 26 | P7: 60 | Q7: 30 | R7: 29 | S7: 34 | T7: 14 | U7: 30 | V7: 13 | W7: 30 | X7: 23 | Y7: 9 | Z7: 34 | AA7: 34 | AB7: 20 | AC7: 19 | AD7: 18 | AE7: 34 | AF7: 48 | AG7: 37 | AH7: 30 | AI7: 17 | AJ7: 22 | AK7: 9 | AL7: 21 | AM7: 24 | AN7: 40 | AO7: 16 | AP7: 19 | AQ7: 10 | AR7: 12 | AS7: 5
B8: 49 | C8: 46 | D8: 36 | E8: 20 | F8: 27 | G8: 34 | H8: 19 | I8: 32 | J8: 24 | K8: 31 | L8: 35 | M8: 36 | N8: 30 | O8: 31 | P8: 30 | Q8: 43 | R8: 38 | S8: 25 | T8: 5 | U8: 23 | V8: 30 | W8: 33 | X8: 27 | Y8: 35 | Z8: 27 | AA8: 31 | AB8: 23 | AC8: 20 | AD8: 13 | AE8: 19 | AF8: 25 | AG8: 19 | AH8: 16 | AI8: 22 | AJ8: 16 | AK8: 32 | AL8: 18 | AM8: 1 | AN8: 4 | AO8: 24 | AP8: 16 | AQ8: 11 | AR8: 11 | AS8: 9
B9: 57 | C9: 24 | D9: 42 | E9: 43 | F9: 27 | G9: 37 | H9: 33 | I9: 39 | J9: 39 | K9: 24 | L9: 31 | M9: 21 | N9: 20 | O9: 54 | P9: 32 | Q9: 32 | R9: 23 | S9: 25 | T9: 27 | U9: 27 | V9: 38 | W9: 38 | X9: 22 | Y9: 27 | Z9: 25 | AA9: 28 | AB9: 38 | AC9: 49 | AD9: 13 | AE9: 28 | AF9: 11 | AG9: 12 | AH9: 21 | AI9: 45 | AJ9: 16 | AK9: 23 | AL9: 8 | AM9: 7 | AN9: 17 | AO9: 15 | AP9: 16 | AQ9: 13 | AR9: 21 | AS9: 14
B10: 42 | C10: 38 | D10: 37 | E10: 11 | F10: 15 | G10: 35 | H10: 31 | I10: 47 | J10: 34 | K10: 40 | L10: 50 | M10: 27 | N10: 25 | O10: 38 | P10: 37 | Q10: 34 | R10: 31 | S10: 28 | T10: 29 | U10: 15 | V10: 24 | W10: 28 | X10: 29 | Y10: 21 | Z10: 18 | AA10: 27 | AB10: 35 | AC10: 20 | AD10: 38 | AE10: 21 | AF10: 10 | AG10: 19 | AH10: 21 | AI10: 34 | AJ10: 30 | AK10: 17 | AL10: 14 | AM10: 7 | AN10: 25 | AO10: 12 | AP10: 9 | AQ10: 14 | AR10: 15 | AS10: 15
B11: 19 | C11: 41 | D11: 20 | E11: 34 | F11: 34 | H11: 47 | I11: 41 | J11: 39 | K11: 20 | L11: 22 | M11: 29 | N11: 33 | O11: 10 | P11: 18 | Q11: 24 | R11: 16 | S11: 31 | T11: 37 | U11: 37 | V11: 26 | W11: 32 | X11: 26 | Y11: 10 | Z11: 40 | AA11: 40 | AB11: 42 | AC11: 38 | AD11: 37 | AE11: 13 | AF11: 10 | AG11: 25 | AH11: 22 | AI11: 28 | AJ11: 27 | AK11: 25 | AL11: 21 | AM11: 20 | AN11: 11 | AO11: 16 | AP11: 21 | AQ11: 20 | AR11: 18 | AS11: 12
B12: 28 | J12: 45 | Q12: 28 | S12: 28 | AD12: 30 | AF12: 2 | AL12: 22 | AO12: 8 | AQ12: 14 | AS12: 3
B13: 28 | AD13: 27
B14: 25
B15: 28
B16: 22
B17: 31
B18: 25
B19: 24
B20: 26
B21: 31
B22: 31
B23: 69
B24: 41
B25: 41
B26: 5
B27: 37
B28: 7
B29: 18
B30: 15
B31: 28
B32: 27
B33: 32
B34: 22
B35: 26
B36: 19
B37: 38
B38: 27
B39: 4
B40: 25
B41: 19
B42: 43
B43: 33
B44: 31
B45: 33
B46: 41
B47: 26
B48: 45
B49: 0
B50: 18
B51: 51
B52: 25
B53: 55
B54: 48
B55: 43
B56: 36
B57: 17
B58: 10
B59: 5
B60: 31
B61: 67
B62: 37
B63: 28
B64: 33
B65: 35
B66: 47
B67: 40
B68: 51
B69: 42
B70: 28
B71: 15
B72: 19
B73: 12
B74: 24
B75: 29
B76: 23
B77: 45
B78: 52
B79: 50
B80: 49
B81: 38
B82: 28
B83: 32
B84: 41
B85: 40
B86: 35
B87: 40
B88: 31
B89: 20
B90: 34
B91: 43
B92: 51
B93: 30
B94: 22
B95: 20
B96: 28
B97: 41
B98: 37
B99: 37
B100: 46
B101: 37
B102: 39
B103: 14
B104: 11
B105: 22
B106: 11
B107: 18
B108: 17
B109: 32
B110: 24
B111: 27
B112: 32
B113: 22
B114: 14
B115: 38
B116: 17
B117: 16
B118: 17
B119: 12
B120: 22
B121: 26
B122: 15
B123: 11
B124: 28
B125: 42
C127: p value summary (Kruskal-Wallis test; Dunn's post test, Adjusted P Values)
C128: > 0.9999 | D128: > 0.9999 | E128: > 0.9999 | F128: > 0.9999 | G128: > 0.9999 | H128: > 0.9999 | I128: > 0.9999 | J128: > 0.9999 | K128: > 0.9999 | L128: > 0.9999 | M128: > 0.9999 | N128: > 0.9999 | O128: > 0.9999 | P128: > 0.9999 | Q128: > 0.9999 | R128: > 0.9999 | S128: > 0.9999 | T128: > 0.9999 | U128: > 0.9999 | V128: > 0.9999 | W128: > 0.9999 | X128: > 0.9999 | Y128: > 0.9999 | Z128: > 0.9999 | AA128: > 0.9999 | AB128: > 0.9999 | AC128: > 0.9999 | AD128: > 0.9999 | AE128: > 0.9999 | AF128: > 0.9999 | AG128: > 0.9999 | AH128: > 0.9999 | AI128: > 0.9999 | AJ128: 0.7955 | AK128: > 0.9999 | AL128: > 0.9999 | AM128: 0.2099 | AN128: > 0.9999 | AO128: 0.0073 | AP128: 0.0069 | AQ128: 0.0005 | AR128: 0.0005 | AS128: 0.0004

Sheet Fig3A
A1: [GPPGLWa] (μM) | G1: [NGPPGLWa] (μM)
A2: 0 | B2: 0.01 | C2: 0.1 | D2: 1 | E2: 10 | G2: 0 | H2: 0.01 | I2: 0.1 | J2: 1 | K2: 10
A3: Brine shrimps eaten (# shrimps) | G3: Brine shrimps eaten (# shrimps)
A4: 50 | B4: 30 | C4: 22 | D4: 19 | E4: 8 | G4: 51 | H4: 41 | I4: 47 | J4: 25 | K4: 15
A5: 57 | B5: 44 | C5: 27 | D5: 22 | E5: 16 | G5: 47 | H5: 47 | I5: 51 | J5: 18 | K5: 26
A6: 30 | B6: 41 | C6: 20 | D6: 13 | E6: 9 | G6: 23 | H6: 28 | I6: 27 | J6: 16 | K6: 14
A7: 43 | B7: 38 | C7: 21 | D7: 14 | E7: 9 | G7: 29 | H7: 30 | I7: 19 | J7: 25 | K7: 6
A8: 44 | B8: 23 | C8: 20 | D8: 7 | E8: 5 | G8: 17 | H8: 30 | I8: 28 | J8: 20 | K8: 15
A9: 35 | B9: 36 | C9: 41 | D9: 19 | E9: 6 | G9: 34 | H9: 47 | I9: 47 | J9: 15 | K9: 7
A10: 33 | B10: 29 | C10: 27 | D10: 23 | E10: 3 | G10: 45 | H10: 54 | I10: 52 | J10: 21 | K10: 16
A11: 31 | B11: 43 | C11: 33 | D11: 34 | E11: 12 | G11: 47 | H11: 34 | I11: 53 | J11: 38 | K11: 36
A12: 46 | B12: 29 | C12: 25 | D12: 24 | E12: 13 | G12: 59 | H12: 39 | I12: 41 | J12: 20 | K12: 17
A13: 34 | G13: 49 | H13: 32 | I13: 28 | J13: 22 | K13: 9
G14: 64 | H14: 33 | I14: 23 | J14: 30 | K14: 8
G15: 70 | H15: 44 | I15: 53 | J15: 35 | K15: 12
G16: 70 | H16: 57 | I16: 73 | J16: 35 | K16: 21
G17: 81 | H17: 68 | I17: 48 | J17: 34 | K17: 33
G18: 71 | H18: 63 | K18: 30
A20: p value summary (Kruskal-Wallis test; Dunn's post test, Adjusted P Values)
B21: > 0.9999 | C21: 0.0752 | D21: 0.002 | E21: < 0.0001 | H21: > 0.9999 | I21: > 0.9999 | J21: 0.0019 | K21: < 0.0001

Sheet Fig3B
A1: Peptide: | B1: None (ASW) | C1: NGPPGLWa | D1: GPPGLWa | E1: PPGLWa | F1: PGLWa
B2: Brine shrimps eaten (# shrimps)
B3: 21 | C3: 2 | D3: 4 | E3: 9 | F3: 23
B4: 24 | C4: 2 | D4: 5 | E4: 12 | F4: 25
B5: 27 | C5: 3 | D5: 5 | E5: 13 | F5: 25
B6: 27 | C6: 4 | D6: 6 | E6: 13 | F6: 29
B7: 30 | C7: 6 | D7: 6 | E7: 15 | F7: 30
B8: 31 | C8: 9 | D8: 8 | E8: 16 | F8: 34
B9: 31 | C9: 12 | D9: 9 | E9: 16 | F9: 38
B10: 31 | C10: 19 | D10: 10 | E10: 20 | F10: 39
B11: 32 | C11: 21 | D11: 12 | E11: 21 | F11: 41
B12: 32 | C12: 24 | D12: 12 | E12: 22 | F12: 42
B13: 33 | C13: 24 | D13: 12 | E13: 22 | F13: 44
B14: 34 | C14: 25 | D14: 13 | E14: 24 | F14: 45
B15: 34 | C15: 30 | D15: 16 | E15: 29 | F15: 47
B16: 35 | D16: 16 | E16: 31 | F16: 48
B17: 35 | D17: 16 | E17: 31 | F17: 55
B18: 36 | D18: 17
B19: 37 | D19: 18
B20: 37 | D20: 19
B21: 38 | D21: 23
B22: 38 | D22: 23
B23: 38 | D23: 26
B24: 39 | D24: 29
B25: 39 | D25: 41
B26: 39
B27: 39
B28: 41
B29: 43
B30: 43
B31: 43
B32: 43
B33: 46
B34: 46
B35: 46
B36: 47
B37: 48
B38: 48
B39: 49
B40: 50
B41: 50
B42: 50
B43: 52
B44: 53
B45: 53
B46: 53
B47: 54
B48: 54
B49: 54
B50: 55
B51: 56
B52: 57
B53: 58
B54: 61
B55: 61
B56: 63
B58: p value summary (Kruskal-Wallis test; Dunn's post test, Adjusted P Values)
C59: < 0.0001 | D59: < 0.0001 | E59: < 0.0001 | F59: > 0.9999

Sheet Fig3C
A1: Peptide: | B1: None (ASW) | C1: NGPPGLWa | D1: NGPPGLAa | E1: GPPGLWa | F1: GPPGLAa
B2: Brine shrimps eaten (# shrimps)
B3: 46 | C3: 12 | D3: 46 | E3: 6 | F3: 48
B4: 43 | C4: 9 | D4: 50 | E4: 4 | F4: 48
B5: 31 | C5: 6 | D5: 48 | E5: 5 | F5: 40
B6: 43 | C6: 2 | D6: 40 | E6: 6 | F6: 49
B7: 43 | C7: 4 | D7: 29 | E7: 6 | F7: 41
B8: 37 | C8: 3 | D8: 38 | E8: 0 | F8: 37
B9: 49 | C9: 2 | D9: 40 | E9: 2 | F9: 41
B10: 46 | C10: 0 | D10: 41 | E10: 9 | F10: 42
B11: 53 | C11: 0 | D11: 24 | E11: 19 | F11: 19
B12: 54 | C12: 2 | D12: 23 | E12: 29 | F12: 26
B13: 61 | C13: 0 | D13: 24 | E13: 41 | F13: 31
B14: 58 | C14: 30 | D14: 24 | E14: 23 | F14: 25
B15: 50 | C15: 25 | D15: 27 | E15: 23 | F15: 25
B16: 38 | C16: 19 | D16: 26 | E16: 10 | F16: 35
B17: 56 | D17: 34 | E17: 17 | F17: 32
B18: 46 | D18: 28 | F18: 50
B19: 27 | F19: 62
B20: 24 | F20: 62
B21: 33 | F21: 59
B22: 36
B23: 38
B24: 37
B25: 53
B26: 52
B27: 54
B28: 49
B29: 53
B30: 33
B31: 43
B32: 33
B33: 43
B34: 52
B35: 63
B36: 55
B37: 54
B38: 41
B39: 61
B40: 50
B41: 57
C43: p value summary (Kruskal-Wallis test; Dunn's post test, Adjusted P Values)
C44: ASW vs. NGPPGLWa: | D44: p<0.0001
C45: ASW vs. NGPPGLAa: | D45: p=0.0337
C46: ASW vs. GPPGLWa: | D46: p<0.0001
C47: ASW vs. GPPGLAa: | D47: p>1
C48: NGPPGLWa vs. NGPPGLAa: | D48: p=0.0078
C49: GPPGLWa vs. GPPGLAa: | D49: p=0.0003

Sheet Fig3D
A1: Kaplan-Meier curves (Plot data) | I1: Kaplan-Meier curves (Raw data) | X1: Summary of Log-rank (Mantel-Cox) statistical test
A2: Feeding condition: | B2: Starved | D2: Fed | F2: Starved | I2: ASW, Starved | N2: ASW, Fed | S2: GLWa, Starved | X2: Comparison | Y2: p value | Z2: Bonferroni-corrected p value
A3: Peptide: | B3: None (ASW) | D3: ASW | F3: NGPPGLWa | I3: Video | J3: Artemia | K3: Time (s) | L3: Censor* | N3: Video | O3: Artemia | P3: Time (s) | Q3: Censor* | S3: Video | T3: Artemia | U3: Time (s) | V3: Censor* | X3: ASW Starved vs. ASW Fed | Y3: < 0.0001 | Z3: <0.001
A4: N: | B4: 168 Artemias | D4: 75 Artemias | F4: 90 Artemias | I4: DSC_2358.MOV | J4: 1 | K4: 1.565 | L4: 1 | N4: DSC_2550.MOV | O4: 1 | P4: 13.504 | Q4: 1 | S4: DSC_2353.MOV | T4: 1 | U4: 0.165 | V4: 1 | X4: ASW Starved vs. GLWa Starved | Y4: 0.4828 | Z4: =Y4*3 -> 1.4484
B5: t (s) | C5: % Paralyzed | D5: t (s) | E5: % Paralyzed | F5: t (s) | G5: % Paralyzed | J5: 2 | K5: 0 | L5: 1 | O5: 2 | P5: 21.806 | Q5: 1 | T5: 2 | U5: 1.593 | V5: 1 | X5: ASW Fed vs. GLWa Starved | Y5: < 0.0001 | Z5: <0.001
B6: 0 | C6: 0 | D6: 0 | E6: 0 | F6: 0 | G6: 0 | J6: 3 | K6: 0.39 | L6: 1 | O6: 3 | P6: 67.535 | Q6: 1 | T6: 3 | U6: 0.606 | V6: 1
B7: 0.004 | C7: 0.657898 | D7: 0.796 | E7: 1.369865 | F7: 0.009 | G7: 1.333336 | J7: 5 | K7: 39.962 | L7: 1 | O7: 4 | P7: 8.173 | Q7: 1 | T7: 4 | U7: 3.071 | V7: 1 | X7: Ns
B8: 0.007 | C8: 1.315788 | D8: 0.801 | E8: 2.739723 | F8: 0.049 | G8: 2.666664 | I8: DSC_2359.MOV | J8: 1 | K8: 1.49 | L8: 1 | O8: 5 | P8: 5.622 | Q8: 1 | T8: 5 | U8: 0.34 | V8: 1 | X8: ASW Starved | Y8: 156
B9: 0.011 | C9: 1.973686 | D9: 0.871 | E9: 4.109589 | F9: 0.144 | G9: 4 | J9: 2 | K9: 8.57 | L9: 1 | N9: DSC_2551.MOV | O9: 1 | P9: 3.786 | Q9: 1 | S9: DSC_2354.MOV | T9: 1 | U9: 0.792 | V9: 1 | X9: ASW Fed | Y9: 75
B10: 0.096 | C10: 2.631577 | D10: 0.932 | E10: 5.479454 | F10: 0.155 | G10: 5.333336 | J10: 3 | K10: 0.301 | L10: 1 | O10: 2 | P10: 2.236 | Q10: 1 | T10: 2 | U10: 11.811 | V10: 1 | X10: GLWa Starved | Y10: 83
B11: 0.1 | C11: 3.289475 | D11: 1.013 | E11: 6.849312 | F11: 0.165 | G11: 6.666664 | J11: 4 | K11: 15.55 | L11: 1 | O11: 3 | P11: 0.932 | Q11: 1 | T11: 3 | U11: 8.929 | V11: 1
B12: 0.106 | C12: 3.947365 | D12: 1.084 | E12: 8.219177 | F12: 0.233 | G12: 8 | J12: 5 | K12: 0.3 | L12: 1 | O12: 4 | P12: 22.768 | Q12: 1 | T12: 4 | U12: 5.24 | V12: 1
B13: 0.165 | C13: 4.605263 | D13: 1.093 | E13: 9.589043 | F13: 0.244 | G13: 9.333336 | I13: DSC_2372.MOV | J13: 1 | K13: 4.731 | L13: 1 | O13: 5 | P13: 21.226 | Q13: 1 | S13: DSC_2357.MOV | T13: 1 | U13: 0.543 | V13: 1
B14: 0.171 | C14: 5.263161 | D14: 1.501 | E14: 10.9589 | F14: 0.296 | G14: 10.66666 | J14: 2 | K14: 0.516 | L14: 1 | N14: DSC_2567.MOV | O14: 1 | P14: 120 | Q14: 0 | T14: 2 | U14: 10.819 | V14: 1
B15: 0.175 | C15: 5.921051 | D15: 1.537 | E15: 12.32877 | F15: 0.315 | G15: 12 | J15: 3 | K15: 1.517 | L15: 1 | O15: 2 | P15: 120 | Q15: 0 | T15: 3 | U15: 5.598 | V15: 1
B16: 0.177 | C16: 6.578949 | D16: 1.761 | E16: 13.69863 | F16: 0.316 | G16: 13.33334 | J16: 4 | K16: 0.948 | L16: 1 | O16: 3 | P16: 14.609 | Q16: 1 | T16: 4 | U16: 4.149 | V16: 1
B17: 0.181 | C17: 7.236839 | D17: 1.962 | E17: 15.0685 | F17: 0.32 | G17: 14.66666 | J17: 5 | K17: 0.209 | L17: 1 | O17: 4 | P17: 31.227 | Q17: 1 | T17: 5 | U17: 0.827 | V17: 1
B18: 0.193 | C18: 7.894737 | D18: 2.104 | E18: 15.0685 | F18: 0.326 | G18: 16 | I18: DSC_2374.MOV | J18: 1 | K18: 11.289 | L18: 1 | O18: 5 | P18: 18.433 | Q18: 1 | S18: DSC_2363.MOV | T18: 1 | U18: 3.224 | V18: 1
B19: 0.194 | C19: 8.552635 | D19: 2.17 | E19: 16.46082 | F19: 0.34 | G19: 18.66666 | J19: 2 | K19: 0.379 | L19: 1 | N19: DSC_2568.MOV | O19: 1 | P19: 120 | Q19: 0 | T19: 2 | U19: 1.246 | V19: 1
B20: 0.207 | C20: 9.210526 | D20: 2.236 | E20: 17.85313 | F20: 0.345 | G20: 20 | J20: 3 | K20: 0.307 | L20: 1 | O20: 2 | P20: 7.774 | Q20: 1 | T20: 3 | U20: 2.335 | V20: 1
B21: 0.209 | C21: 9.868424 | D21: 3.086 | E21: 19.24545 | F21: 0.386 | G21: 21.33334 | J21: 4 | K21: 0.511 | L21: 1 | O21: 3 | P21: 11.911 | Q21: 1 | T21: 4 | U21: 4.829 | V21: 1
B22: 0.223 | C22: 10.52631 | D22: 3.41 | E22: 19.24545 | F22: 0.392 | G22: 22.66666 | J22: 5 | K22: 1.424 | L22: 1 | O22: 4 | P22: 1.761 | Q22: 1 | T22: 5 | U22: 0 | V22: 1
B23: 0.227 | C23: 11.18421 | D23: 3.554 | E23: 20.6622 | F23: 0.463 | G23: 24 | I23: DSC_2384.MOV | J23: 1 | K23: 19.138 | L23: 1 | O23: 5 | P23: 1.501 | Q23: 1 | S23: DSC_2364.MOV | T23: 1 | U23: 0.34 | V23: 1
B24: 0.228 | C24: 11.8421 | D24: 3.602 | E24: 22.07895 | F24: 0.488 | G24: 26.66666 | J24: 2 | K24: 25.74 | L24: 1 | N24: DSC_2569.MOV | O24: 1 | P24: 96.005 | Q24: 1 | T24: 2 | U24: 0.835 | V24: 1
B25: 0.23 | C25: 12.5 | D25: 3.786 | E25: 23.49569 | F25: 0.498 | G25: 28 | J25: 3 | K25: 1.49 | L25: 1 | O25: 2 | P25: 7.579 | Q25: 1 | T25: 3 | U25: 2.577 | V25: 1
B26: 0.231 | C26: 13.1579 | D26: 4.055 | E26: 24.91244 | F26: 0.501 | G26: 29.33334 | J26: 4 | K26: 0.011 | L26: 1 | O26: 3 | P26: 5.159 | Q26: 1 | T26: 4 | U26: 0 | V26: 1
B27: 0.235 | C27: 14.47369 | D27: 4.197 | E27: 26.32919 | F27: 0.543 | G27: 30.66666 | J27: 5 | K27: 6.328 | L27: 1 | O27: 4 | P27: 120 | Q27: 0 | T27: 5 | U27: 2.085 | V27: 1
B28: 0.257 | C28: 15.13158 | D28: 5.115 | E28: 27.74593 | F28: 0.606 | G28: 32 | I28: DSC_2387.MOV | J28: 1 | K28: 0.177 | L28: 1 | O28: 5 | P28: 16.165 | Q28: 1 | S28: DSC_2365.MOV | T28: 2 | U28: 0.501 | V28: 1
B29: 0.263 | C29: 15.78947 | D29: 5.159 | E29: 29.16267 | F29: 0.692 | G29: 33.33334 | J29: 2 | K29: 0.004 | L29: 1 | N29: DSC_2578.MOV | O29: 1 | P29: 94.603 | Q29: 0 | T29: 3 | U29: 3.18 | V29: 1
B30: 0.27 | C30: 16.44737 | D30: 5.558 | E30: 30.57942 | F30: 0.693 | G30: 34.66666 | J30: 3 | K30: 1.341 | L30: 1 | O30: 2 | P30: 21.134 | Q30: 1 | T30: 4 | U30: 1.632 | V30: 1
B31: 0.3 | C31: 17.10526 | D31: 5.622 | E31: 31.99617 | F31: 0.78 | G31: 36 | J31: 4 | K31: 0.398 | L31: 1 | O31: 3 | P31: 70.663 | Q31: 1 | S31: DSC_2366.MOV | T31: 1 | U31: 2.526 | V31: 1
B32: 0.301 | C32: 17.76316 | D32: 5.83 | E32: 33.41292 | F32: 0.782 | G32: 37.33333 | J32: 5 | K32: 10.042 | L32: 1 | O32: 4 | P32: 0.871 | Q32: 1 | T32: 2 | U32: 0 | V32: 1
B33: 0.307 | C33: 18.42105 | D33: 6.233 | E33: 34.82967 | F33: 0.792 | G33: 38.66667 | I33: DSC_2390.MOV | J33: 1 | K33: 2.193 | L33: 1 | O33: 5 | P33: 17.511 | Q33: 1 | T33: 3 | U33: 0.692 | V33: 1
B34: 0.333 | C34: 19.07895 | D34: 7.233 | E34: 36.24641 | F34: 0.808 | G34: 40 | J34: 3 | K34: 0.165 | L34: 1 | N34: DSC_2579.MOV | O34: 1 | P34: 5.115 | Q34: 1 | T34: 4 | U34: 1.768 | V34: 1
B35: 0.366 | C35: 20.39474 | D35: 7.579 | E35: 37.66316 | F35: 0.827 | G35: 41.33333 | J35: 4 | K35: 0.464 | L35: 1 | O35: 2 | P35: 11.069 | Q35: 0 | T35: 5 | U35: 6.494 | V35: 1
B36: 0.369 | C36: 21.05264 | D36: 7.774 | E36: 39.0799 | F36: 0.835 | G36: 42.66667 | I36: DSC_2499.MOV | J36: 1 | K36: 4.71 | L36: 1 | O36: 3 | P36: 120 | Q36: 0 | S36: DSC_2367.MOV | T36: 1 | U36: 0.233 | V36: 1
B37: 0.379 | C37: 21.71053 | D37: 8.173 | E37: 40.49665 | F37: 0.928 | G37: 44 | J37: 2 | K37: 0.397 | L37: 1 | O37: 4 | P37: 27.393 | Q37: 0 | T37: 2 | U37: 0.386 | V37: 1
B38: 0.39 | C38: 22.36842 | D38: 10.044 | E38: 40.49665 | F38: 0.936 | G38: 45.33333 | J38: 3 | K38: 1.034 | L38: 1 | O38: 5 | P38: 1.537 | Q38: 1 | T38: 3 | U38: 3.091 | V38: 1
B39: 0.397 | C39: 23.68421 | D39: 11.069 | E39: 40.49665 | F39: 0.999 | G39: 46.66667 | J39: 4 | K39: 19.078 | L39: 1 | N39: DSC_2580.MOV | O39: 1 | P39: 1.093 | Q39: 1 | T39: 4 | U39: 0 | V39: 1
B40: 0.398 | C40: 24.3421 | D40: 11.514 | E40: 40.49665 | F40: 1.174 | G40: 48 | J40: 5 | K40: 0.471 | L40: 1 | O40: 2 | P40: 120 | Q40: 0 | T40: 5 | U40: 1.174 | V40: 1
B41: 0.409 | C41: 25 | D41: 11.592 | E41: 42.02238 | F41: 1.246 | G41: 49.33333 | I41: DSC_2500.MOV | J41: 1 | K41: 0.442 | L41: 1 | O41: 3 | P41: 7.233 | Q41: 1 | S41: DSC_2368.MOV | T41: 1 | U41: 0.693 | V41: 1
B42: 0.442 | C42: 25.6579 | D42: 11.911 | E42: 43.5481 | F42: 1.388 | G42: 50.66667 | J42: 2 | K42: 8.526 | L42: 1 | O42: 4 | P42: 3.554 | Q42: 1 | T42: 3 | U42: 0.144 | V42: 1
B43: 0.443 | C43: 26.31579 | D43: 12.176 | E43: 45.07383 | F43: 1.432 | G43: 52 | J43: 3 | K43: 13.419 | L43: 1 | O43: 5 | P43: 5.558 | Q43: 1 | T43: 4 | U43: 5.578 | V43: 1
B44: 0.464 | C44: 26.97369 | D44: 13.504 | E44: 46.59956 | F44: 1.498 | G44: 53.33333 | J44: 4 | K44: 0.907 | L44: 1 | N44: DSC_2581.MOV | O44: 1 | P44: 3.086 | Q44: 1 | T44: 5 | U44: 7.391 | V44: 1
B45: 0.47 | C45: 27.63158 | D45: 14.609 | E45: 48.12528 | F45: 1.593 | G45: 54.66667 | I45: DSC_2501.MOV | J45: 1 | K45: 0.27 | L45: 1 | O45: 2 | P45: 4.055 | Q45: 1 | S45: DSC_2377.MOV | T45: 1 | U45: 4.767 | V45: 1
B46: 0.471 | C46: 29.60526 | D46: 15.166 | E46: 49.65101 | F46: 1.632 | G46: 56 | J46: 2 | K46: 2.802 | L46: 1 | O46: 3 | P46: 5.83 | Q46: 1 | T46: 3 | U46: 0.78 | V46: 1
B47: 0.501 | C47: 30.26316 | D47: 16.165 | E47: 51.17674 | F47: 1.66 | G47: 57.33333 | J47: 3 | K47: 0.973 | L47: 1 | O47: 4 | P47: 24.552 | Q47: 0 | T47: 4 | U47: 0.316 | V47: 1
B48: 0.504 | C48: 30.92105 | D48: 16.647 | E48: 52.70247 | F48: 1.727 | G48: 58.66667 | J48: 4 | K48: 1.173 | L48: 1 | O48: 5 | P48: 1.013 | Q48: 1 | T48: 5 | U48: 9.196 | V48: 1
B49: 0.508 | C49: 31.57895 | D49: 17.511 | E49: 54.22819 | F49: 1.768 | G49: 60 | I49: DSC_2502.MOV | J49: 1 | K49: 0.227 | L49: 1 | N49: DSC_2584.MOV | O49: 1 | P49: 11.514 | Q49: 0 | S49: DSC_2378.MOV | T49: 1 | U49: 0.009 | V49: 1
B50: 0.511 | C50: 32.23684 | D50: 17.577 | E50: 55.75392 | F50: 2.085 | G50: 61.33333 | J50: 2 | K50: 0.397 | L50: 1 | O50: 2 | P50: 22.125 | Q50: 0 | T50: 2 | U50: 14.896 | V50: 1
B51: 0.516 | C51: 32.89474 | D51: 17.925 | E51: 57.27964 | F51: 2.335 | G51: 62.66667 | J51: 3 | K51: 22.094 | L51: 1 | O51: 3 | P51: 15.166 | Q51: 1 | T51: 3 | U51: 0.315 | V51: 1
B52: 0.526 | C52: 33.55264 | D52: 18.433 | E52: 58.80537 | F52: 2.368 | G52: 64 | J52: 4 | K52: 0 | L52: 1 | O52: 4 | P52: 19.403 | Q52: 1 | T52: 4 | U52: 8.855 | V52: 1
B53: 0.581 | C53: 34.21053 | D53: 19.403 | E53: 60.3311 | F53: 2.526 | G53: 65.33333 | J53: 5 | K53: 0.526 | L53: 1 | O53: 5 | P53: 1.962 | Q53: 1 | T53: 5 | U53: 0.345 | V53: 1
B54: 0.586 | C54: 34.86842 | D54: 21.134 | E54: 61.85683 | F54: 2.577 | G54: 66.66667 | I54: DSC_2503.MOV | J54: 1 | K54: 1.137 | L54: 1 | N54: DSC_2585.MOV | O54: 1 | P54: 23.638 | Q54: 0 | S54: DSC_2379.MOV | T54: 1 | U54: 12.235 | V54: 1
B55: 0.595 | C55: 35.52631 | D55: 21.226 | E55: 63.38255 | F55: 2.872 | G55: 68 | J55: 2 | K55: 0.231 | L55: 1 | O55: 2 | P55: 23.245 | Q55: 0 | T55: 2 | U55: 0 | V55: 1
B56: 0.62 | C56: 36.18421 | D56: 21.806 | E56: 64.90828 | F56: 3.071 | G56: 69.33334 | J56: 3 | K56: 0.504 | L56: 1 | O56: 3 | P56: 12.176 | Q56: 1 | T56: 3 | U56: 0.936 | V56: 1
B57: 0.629 | C57: 36.84211 | D57: 22.125 | E57: 64.90828 | F57: 3.091 | G57: 70.66666 | J57: 4 | K57: 0.47 | L57: 1 | O57: 4 | P57: 6.233 | Q57: 1 | T57: 4 | U57: 0 | V57: 1
B58: 0.68 | C58: 37.5 | D58: 22.768 | E58: 66.50336 | F58: 3.18 | G58: 72 | J58: 5 | K58: 2.924 | L58: 1 | O58: 5 | P58: 3.41 | Q58: 0 | T58: 5 | U58: 0.049 | V58: 1
B59: 0.699 | C59: 38.15789 | D59: 23.245 | E59: 66.50336 | F59: 3.224 | G59: 73.33334 | I59: DSC_2505.MOV | J59: 1 | K59: 1.524 | L59: 1 | N59: DSC_2586.MOV | O59: 1 | P59: 29.113 | Q59: 1 | S59: DSC_2380.MOV | T59: 2 | U59: 0.326 | V59: 1
B60: 0.708 | C60: 38.81579 | D60: 23.638 | E60: 66.50336 | F60: 3.993 | G60: 74.66666 | J60: 2 | K60: 0.581 | L60: 1 | O60: 2 | P60: 1.084 | Q60: 1 | T60: 3 | U60: 1.727 | V60: 1
B61: 0.727 | C61: 39.47368 | D61: 24.552 | E61: 66.50336 | F61: 4.149 | G61: 76 | J61: 3 | K61: 3.781 | L61: 1 | O61: 3 | P61: 0 | Q61: 1 | T61: 4 | U61: 0.296 | V61: 1
B62: 0.737 | C62: 40.13158 | D62: 24.642 | E62: 68.36428 | F62: 4.24 | G62: 77.33334 | J62: 4 | K62: 0.1 | L62: 1 | O62: 4 | P62: 54.546 | Q62: 1 | T62: 5 | U62: 0.498 | V62: 1
B63: 0.746 | C63: 40.78947 | D63: 27.393 | E63: 68.36428 | F63: 4.767 | G63: 78.66666 | I63: DSC_2508.MOV | J63: 1 | K63: 0.708 | L63: 1 | O63: 5 | P63: 10.044 | Q63: 0 | S63: DSC_2382.MOV | T63: 1 | U63: 3.993 | V63: 1
B64: 0.76 | C64: 41.44737 | D64: 28.973 | E64: 70.34152 | F64: 4.829 | G64: 80 | J64: 2 | K64: 0.007 | L64: 1 | N64: DSC_2593.MOV | O64: 1 | P64: 3.602 | Q64: 1 | T64: 2 | U64: 6.171 | V64: 1
B65: 0.765 | C65: 42.10526 | D65: 29.113 | E65: 72.31875 | F65: 5.24 | G65: 81.33334 | J65: 3 | K65: 0.171 | L65: 1 | O65: 2 | P65: 17.925 | Q65: 1 | T65: 3 | U65: 1.388 | V65: 1
B66: 0.804 | C66: 42.76316 | D66: 31.227 | E66: 74.29598 | F66: 5.578 | G66: 82.66666 | J66: 4 | K66: 6.442 | L66: 1 | O66: 3 | P66: 24.642 | Q66: 1 | T66: 4 | U66: 0.463 | V66: 1
B67: 0.875 | C67: 43.42105 | D67: 39.813 | E67: 76.27321 | F67: 5.598 | G67: 84 | J67: 5 | K67: 8.671 | L67: 1 | O67: 4 | P67: 28.973 | Q67: 1 | T67: 5 | U67: 4.24 | V67: 1
B68: 0.878 | C68: 44.07895 | D68: 40.558 | E68: 78.25044 | F68: 6.171 | G68: 85.33334 | I68: DSC_2510.MOV | J68: 1 | K68: 5.944 | L68: 1 | O68: 5 | P68: 0.801 | Q68: 1 | S68: DSC_2383.MOV | T68: 1 | U68: 0 | V68: 1
B69: 0.906 | C69: 44.73684 | D69: 54.546 | E69: 80.22768 | F69: 6.494 | G69: 86.66666 | J69: 2 | K69: 0.366 | L69: 1 | N69: DSC_2595.MOV | O69: 1 | P69: 40.558 | Q69: 1 | T69: 2 | U69: 0.32 | V69: 1
B70: 0.907 | C70: 45.39474 | D70: 67.535 | E70: 82.20491 | F70: 7.391 | G70: 88 | J70: 3 | K70: 0.235 | L70: 1 | O70: 2 | P70: 0 | Q70: 1 | T70: 3 | U70: 2.368 | V70: 1
B71: 0.937 | C71: 46.05263 | D71: 70.663 | E71: 84.18214 | F71: 8.855 | G71: 89.33334 | J71: 4 | K71: 0.878 | L71: 1 | O71: 3 | P71: 2.104 | Q71: 0 | T71: 4 | U71: 0.928 | V71: 1
B72: 0.948 | C72: 46.71053 | D72: 94.603 | E72: 84.18214 | F72: 8.929 | G72: 90.66666 | J72: 5 | K72: 0.746 | L72: 1 | O72: 4 | P72: 11.592 | Q72: 1 | T72: 5 | U72: 13.11 | V72: 1
B73: 0.964 | C73: 47.36842 | D73: 96.005 | E73: 86.44183 | F73: 9.196 | G73: 92 | I73: DSC_2511.MOV | J73: 1 | K73: 0.23 | L73: 1 | O73: 5 | P73: 39.813 | Q73: 1 | S73: DSC_2391.MOV | T73: 1 | U73: 16.802 | V73: 1
B74: 0.972 | C74: 48.02632 | D74: 120 | E74: 86.44183 | F74: 10.819 | G74: 93.33334 | J74: 2 | K74: 0.765 | L74: 1 | N74: DSC_2596.MOV | O74: 1 | P74: 0.796 | Q74: 1 | T74: 2 | U74: 0.155 | V74: 1
B75: 0.973 | C75: 48.68421 | F75: 11.811 | G75: 94.66666 | J75: 3 | K75: 0.228 | L75: 1 | O75: 2 | P75: 4.197 | Q75: 1 | T75: 3 | U75: 0.999 | V75: 1
B76: 0.977 | C76: 49.34211 | F76: 12.235 | G76: 96 | J76: 5 | K76: 1.448 | L76: 1 | O76: 3 | P76: 17.577 | Q76: 1 | T76: 4 | U76: 2.872 | V76: 1
B77: 1.003 | C77: 50 | F77: 13.11 | G77: 97.33334 | I77: DSC_2553.MOV | J77: 1 | K77: 13.985 | L77: 1 | O77: 4 | P77: 2.17 | Q77: 1 | T77: 5 | U77: 0.808 | V77: 1
B78: 1.008 | C78: 50.65789 | F78: 14.896 | G78: 98.66666 | J78: 2 | K78: 8.17 | L78: 1 | O78: 5 | P78: 16.647 | Q78: 1 | S78: DSC_2506.MOV | T78: 1 | U78: 1.432 | V78: 1
B79: 1.034 | C79: 51.31579 | F79: 16.802 | G79: 100 | J79: 3 | K79: 1.311 | L79: 1 | T79: 2 | U79: 0 | V79: 1
B80: 1.036 | C80: 51.97368 | F80: 120 | G80: 100 | J80: 4 | K80: 12.653 | L80: 1 | T80: 3 | U80: 0.244 | V80: 1
B81: 1.048 | C81: 52.63158 | J81: 5 | K81: 1.644 | L81: 1 | T81: 4 | U81: 0.488 | V81: 1
B82: 1.137 | C82: 53.28947 | I82: DSC_2554.MOV | J82: 1 | K82: 2.285 | L82: 1 | T82: 5 | U82: 0.782 | V82: 1
B83: 1.173 | C83: 53.94737 | J83: 2 | K83: 32.396 | L83: 1 | S83: DSC_2507.MOV | T83: 1 | U83: 0.392 | V83: 1
B84: 1.23 | C84: 54.60526 | J84: 3 | K84: 2.193 | L84: 1 | T84: 2 | U84: 1.498 | V84: 1
B85: 1.274 | C85: 55.26316 | J85: 4 | K85: 0.235 | L85: 1 | T85: 3 | U85: 1.66 | V85: 1
B86: 1.295 | C86: 55.92105 | I86: DSC_2555.MOV | J86: 1 | K86: 0.875 | L86: 1 | T86: 5 | U86: 0.488 | V86: 1
B87: 1.31 | C87: 56.57895 | J87: 2 | K87: 1.274 | L87: 1
B88: 1.311 | C88: 57.23684 | J88: 3 | K88: 26.412 | L88: 1
B89: 1.312 | C89: 57.89474 | J89: 4 | K89: 120 | L89: 0
B90: 1.338 | C90: 58.55263 | I90: DSC_2556.MOV | J90: 1 | K90: 9.499 | L90: 1
B91: 1.341 | C91: 59.21053 | J91: 2 | K91: 5.271 | L91: 1
B92: 1.424 | C92: 59.86842 | J92: 3 | K92: 4.071 | L92: 1
B93: 1.448 | C93: 60.52632 | J93: 4 | K93: 0.699 | L93: 1
B94: 1.49 | C94: 61.84211 | J94: 5 | K94: 10.886 | L94: 1
B95: 1.517 | C95: 62.5 | I95: DSC_2562.MOV | J95: 1 | K95: 0.263 | L95: 1
B96: 1.524 | C96: 63.15789 | J96: 2 | K96: 3.13 | L96: 1
B97: 1.54 | C97: 63.81579 | J97: 3 | K97: 47.982 | L97: 1
B98: 1.565 | C98: 64.47368 | J98: 4 | K98: 16.046 | L98: 1
B99: 1.644 | C99: 65.13158 | J99: 5 | K99: 0.737 | L99: 1
B100: 1.869 | C100: 65.78947 | I100: DSC_2563.MOV | J100: 1 | K100: 1.23 | L100: 1
B101: 2.095 | C101: 66.44737 | J101: 2 | K101: 3.336 | L101: 1
B102: 2.193 | C102: 67.76315 | J102: 3 | K102: 1.036 | L102: 1
B103: 2.203 | C103: 68.42105 | J103: 4 | K103: 0.257 | L103: 1
B104: 2.285 | C104: 69.07895 | J104: 5 | K104: 4.486 | L104: 1
B105: 2.445 | C105: 69.73684 | I105: DSC_2564.MOV | J105: 1 | K105: 0.804 | L105: 1
B106: 2.802 | C106: 70.39474 | J106: 2 | K106: 2.203 | L106: 1
B107: 2.924 | C107: 71.05263 | J107: 3 | K107: 5.589 | L107: 1
B108: 3.13 | C108: 71.71053 | J108: 4 | K108: 1.338 | L108: 1
B109: 3.131 | C109: 72.36842 | J109: 5 | K109: 0 | L109: 1
B110: 3.211 | C110: 73.02631 | I110: DSC_2565.MOV | J110: 1 | K110: 0 | L110: 1
B111: 3.336 | C111: 73.68421 | J111: 2 | K111: 1.048 | L111: 1
B112: 3.781 | C112: 74.3421 | J112: 3 | K112: 1.312 | L112: 1
B113: 4.071 | C113: 75 | J113: 5 | K113: 0.194 | L113: 1
B114: 4.486 | C114: 75.6579 | I114: DSC_2571.MOV | J114: 1 | K114: 0.937 | L114: 1
B115: 4.71 | C115: 76.31579 | J115: 2 | K115: 0.76 | L115: 1
B116: 4.731 | C116: 76.97369 | J116: 3 | K116: 0.586 | L116: 1
B117: 4.994 | C117: 77.63158 | J117: 4 | K117: 0.964 | L117: 1
B118: 5.074 | C118: 78.28947 | J118: 5 | K118: 0.629 | L118: 1
B119: 5.271 | C119: 78.94737 | I119: DSC_2572.MOV | J119: 1 | K119: 0.508 | L119: 1
B120: 5.589 | C120: 79.60526 | J120: 2 | K120: 2.445 | L120: 1
B121: 5.944 | C121: 80.26316 | J121: 3 | K121: 0.223 | L121: 1
B122: 6.328 | C122: 80.92105 | J122: 5 | K122: 1.003 | L122: 1
B123: 6.442 | C123: 81.57895 | I123: DSC_2573.MOV | J123: 1 | K123: 0.977 | L123: 1
B124: 8.17 | C124: 82.23684 | J124: 2 | K124: 0.501 | L124: 1
B125: 8.526 | C125: 82.89474 | J125: 3 | K125: 0.193 | L125: 1
B126: 8.57 | C126: 83.55263 | J126: 4 | K126: 0.175 | L126: 1
B127: 8.671 | C127: 84.21053 | J127: 5 | K127: 4.994 | L127: 1
B128: 9.469 | C128: 84.86842 | I128: DSC_2574.MOV | J128: 1 | K128: 1.31 | L128: 1
B129: 9.499 | C129: 85.52631 | J129: 2 | K129: 1.295 | L129: 1
B130: 10.042 | C130: 86.18421 | J130: 3 | K130: 10.345 | L130: 1
B131: 10.345 | C131: 86.8421 | J131: 4 | K131: 0.096 | L131: 1
B132: 10.613 | C132: 87.5 | J132: 5 | K132: 0.727 | L132: 1
B133: 10.886 | C133: 88.1579 | I133: DSC_2575.MOV | J133: 1 | K133: 9.469 | L133: 1
B134: 11.289 | C134: 88.81579 | J134: 2 | K134: 0.595 | L134: 1
B135: 12.653 | C135: 89.47369 | J135: 3 | K135: 1.869 | L135: 1
B136: 12.765 | C136: 90.13158 | J136: 4 | K136: 0.181 | L136: 1
B137: 13.322 | C137: 90.78947 | J137: 5 | K137: 0.207 | L137: 1
B138: 13.419 | C138: 91.44737 | I138: DSC_2576.MOV | J138: 1 | K138: 0.369 | L138: 1
B139: 13.985 | C139: 92.10526 | J139: 2 | K139: 0.106 | L139: 1
B140: 15.55 | C140: 92.76316 | J140: 3 | K140: 13.322 | L140: 1
B141: 16.046 | C141: 93.42105 | J141: 4 | K141: 0.62 | L141: 1
B142: 19.078 | C142: 94.07895 | J142: 5 | K142: 0.906 | L142: 1
B143: 19.138 | C143: 94.73684 | I143: DSC_2588.MOV | J143: 1 | K143: 0.972 | L143: 1
B144: 22.094 | C144: 95.39474 | J144: 2 | K144: 2.095 | L144: 1
B145: 25.74 | C145: 96.05264 | J145: 3 | K145: 0.471 | L145: 1
B146: 26.412 | C146: 96.71053 | J146: 4 | K146: 55.166 | L146: 1
B147: 32.396 | C147: 97.36842 | J147: 5 | K147: 10.613 | L147: 1
B148: 39.962 | C148: 98.02631 | I148: DSC_2589.MOV | J148: 1 | K148: 3.131 | L148: 1
B149: 47.982 | C149: 98.68421 | J149: 2 | K149: 1.54 | L149: 1
B150: 55.166 | C150: 99.3421 | J150: 3 | K150: 0.409 | L150: 1
B151: 120 | C151: 99.3421 | J151: 4 | K151: 0.68 | L151: 1
I152: DSC_2590.MOV | J152: 1 | K152: 1.008 | L152: 1
J153: 2 | K153: 0.471 | L153: 1
J154: 3 | K154: 12.765 | L154: 1
J155: 4 | K155: 0.366 | L155: 1
J156: 5 | K156: 3.211 | L156: 1
I157: DSC_2591.MOV | J157: 1 | K157: 0.443 | L157: 1
J158: 2 | K158: 5.074 | L158: 1
J159: 3 | K159: 0.333 | L159: 1
I161: Censor guide:
I162: 1: Event observed (no censor)
I163: 2: Censored data

Sheet Fig3E
A1: Feeding condition: | B1: Starved | D1: Fed | F1: Starved | I1: Kaplan-Meier curves (Raw data) | X1: Summary of Log-rank (Mantel-Cox) statistical test
A2: Peptide: | B2: None (ASW) | D2: ASW | F2: NGPPGLWa | I2: ASW, Starved | N2: ASW, Fed | S2: GLWa, Starved | X2: Comparison | Y2: p value | Z2: Bonferroni-corrected p value
A3: N: | B3: 168 Artemias | D3: 75 Artemias | F3: 90 Artemias | I3: Video | J3: Artemia | K3: Time (s) | L3: Censor* | N3: Video | O3: Artemia | P3: Time (s) | Q3: Censor* | S3: Video | T3: Artemia | U3: Time (s) | V3: Censor* | X3: ASW Starved vs. ASW Fed | Y3: < 0.0001 | Z3: <0.001
B4: t (s) | C4: % Contracted | D4: t (s) | E4: % Contracted | F4: t (s) | G4: % Contracted | I4: DSC_2358.MOV | J4: 1 | K4: 2.736 | L4: 1 | N4: DSC_2550.MOV | O4: 1 | P4: 0.677 | Q4: 1 | S4: DSC_2353.MOV | T4: 1 | U4: 119.835 | V4: 0 | X4: ASW Starved vs. GLWa Starved | Y4: < 0.0001 | Z4: <0.001
B5: 0 | C5: 0 | D5: 0 | E5: 0 | F5: 0 | G5: 0 | J5: 2 | K5: 9.275 | L5: 1 | O5: 2 | P5: 98.194 | Q5: 0 | T5: 2 | U5: 0 | V5: 1 | X5: ASW Fed vs. GLWa Starved | Y5: 0.8611 | Z5: =Y5*3 -> 2.5833
B6: 0.165 | C6: 0.6993 | D6: 0.549 | E6: 1.69492 | F6: 0.046 | G6: 1.2987 | J6: 3 | K6: 9.267 | L6: 1 | O6: 3 | P6: 52.465 | Q6: 0 | T6: 3 | U6: 7.999 | V6: 1
B7: 0.469 | C7: 1.3986 | D7: 0.556 | E7: 3.38983 | F7: 0.537 | G7: 2.5974 | J7: 5 | K7: 23.274 | L7: 1 | O7: 4 | P7: 5.442 | Q7: 1 | T7: 4 | U7: 25.777 | V7: 1 | X7: Ns
B8: 0.544 | C8: 2.0979 | D8: 0.598 | E8: 5.08475 | F8: 0.676 | G8: 3.8961 | I8: DSC_2359.MOV | J8: 2 | K8: 0.562 | L8: 1 | O8: 5 | P8: 12.467 | Q8: 1 | T8: 5 | U8: 119.66 | V8: 0 | X8: ASW Starved | Y8: 151
B9: 0.562 | C9: 2.7972 | D9: 0.677 | E9: 6.77966 | F9: 0.84 | G9: 5.19481 | J9: 3 | K9: 9.184 | L9: 1 | N9: DSC_2551.MOV | O9: 1 | P9: 116.214 | Q9: 0 | S9: DSC_2354.MOV | T9: 1 | U9: 4.215 | V9: 1 | X9: ASW Fed | Y9: 69
B10: 0.59 | C10: 3.49651 | D10: 0.691 | E10: 8.47458 | F10: 0.852 | G10: 6.49351 | J10: 4 | K10: 20.106 | L10: 1 | O10: 2 | P10: 8.438 | Q10: 1 | T10: 2 | U10: 15.607 | V10: 1 | X10: GLWa Starved | Y10: 81
B11: 0.627 | C11: 4.1958 | D11: 1.304 | E11: 10.16949 | F11: 1.057 | G11: 7.79221 | J11: 5 | K11: 8.227 | L11: 1 | O11: 3 | P11: 21.85 | Q11: 1 | T11: 4 | U11: 11.771 | V11: 1
B12: 0.697 | C12: 4.8951 | D12: 2.957 | E12: 11.86441 | F12: 1.058 | G12: 9.09091 | I12: DSC_2372.MOV | J12: 1 | K12: 3.83 | L12: 1 | O12: 4 | P12: 17.469 | Q12: 1 | S12: DSC_2357.MOV | T12: 1 | U12: 6.845 | V12: 1
B13: 0.776 | C13: 5.59441 | D13: 3.161 | E13: 13.55932 | F13: 1.464 | G13: 10.38961 | J13: 2 | K13: 1.953 | L13: 1 | O13: 5 | P13: 45.476 | Q13: 1 | T13: 2 | U13: 109.181 | V13: 0
B14: 0.832 | C14: 6.29371 | D14: 3.859 | E14: 15.25423 | F14: 1.543 | G14: 11.68831 | J14: 3 | K14: 0.832 | L14: 1 | N14: DSC_2567.MOV | O14: 1 | P14: 0 | Q14: 0 | T14: 3 | U14: 114.402 | V14: 0
B15: 1.03 | C15: 6.993 | D15: 4.1 | E15: 16.94915 | F15: 1.6 | G15: 12.98701 | J15: 4 | K15: 20.827 | L15: 1 | O15: 2 | P15: 0 | Q15: 0 | T15: 4 | U15: 115.851 | V15: 0
B16: 1.044 | C16: 7.69231 | D16: 4.229 | E16: 18.64407 | F16: 1.762 | G16: 14.28571 | J16: 5 | K16: 5.959 | L16: 1 | O16: 3 | P16: 0.549 | Q16: 1 | T16: 5 | U16: 119.173 | V16: 0
B17: 1.093 | C17: 8.39161 | D17: 4.938 | E17: 20.33898 | F17: 1.798 | G17: 15.58442 | I17: DSC_2374.MOV | J17: 1 | K17: 10.429 | L17: 1 | O17: 4 | P17: 3.161 | Q17: 1 | S17: DSC_2363.MOV | T17: 1 | U17: 116.776 | V17: 0
B18: 1.095 | C18: 9.09091 | D18: 5.442 | E18: 22.0339 | F18: 1.808 | G18: 16.88312 | J18: 2 | K18: 2.058 | L18: 1 | O18: 5 | P18: 0.691 | Q18: 1 | T18: 2 | U18: 1.543 | V18: 1
B19: 1.177 | C19: 9.79021 | D19: 6.657 | E19: 23.72881 | F19: 1.817 | G19: 18.18182 | J19: 3 | K19: 62.485 | L19: 1 | N19: DSC_2568.MOV | O19: 1 | P19: 0 | Q19: 0 | T19: 3 | U19: 7.55 | V19: 1
B20: 1.297 | C20: 10.48951 | D20: 7.631 | E20: 25.42373 | F20: 1.87 | G20: 19.48052 | J20: 4 | K20: 6.169 | L20: 1 | O20: 2 | P20: 4.938 | Q20: 1 | T20: 4 | U20: 1.464 | V20: 1
B21: 1.327 | C21: 11.18881 | D21: 8.438 | E21: 27.11864 | F21: 2.457 | G21: 20.77922 | J21: 5 | K21: 5.574 | L21: 1 | O21: 3 | P21: 10.211 | Q21: 1 | T21: 5 | U21: 1.6 | V21: 1
B22: 1.391 | C22: 11.88811 | D22: 10.143 | E22: 28.81356 | F22: 3.088 | G22: 22.07792 | I22: DSC_2384.MOV | J22: 2 | K22: 3.232 | L22: 1 | O22: 4 | P22: 118.239 | Q22: 0 | S22: DSC_2364.MOV | T22: 1 | U22: 1.762 | V22: 1
B23: 1.496 | C23: 12.58741 | D23: 10.211 | E23: 30.50848 | F23: 3.093 | G23: 23.37662 | J23: 3 | K23: 25.673 | L23: 1 | O23: 5 | P23: 27.25 | Q23: 1 | T23: 2 | U23: 3.088 | V23: 1
B24: 1.507 | C24: 13.28671 | D24: 10.814 | E24: 32.20339 | F24: 3.359 | G24: 24.67532 | J24: 4 | K24: 119.989 | L24: 0 | N24: DSC_2569.MOV | O24: 1 | P24: 23.995 | Q24: 0 | T24: 3 | U24: 0 | V24: 1
B25: 1.527 | C25: 13.98601 | D25: 11.271 | E25: 33.89831 | F25: 3.389 | G25: 25.97403 | J25: 5 | K25: 113.672 | L25: 0 | O25: 2 | P25: 28.223 | Q25: 1 | T25: 4 | U25: 1.87 | V25: 1
B26: 1.529 | C26: 14.68532 | D26: 11.381 | E26: 35.59322 | F26: 4.215 | G26: 27.27273 | I26: DSC_2387.MOV | J26: 1 | K26: 12.004 | L26: 1 | O26: 3 | P26: 10.814 | Q26: 1 | T26: 5 | U26: 8.57 | V26: 1
B27: 1.535 | C27: 15.38461 | D27: 11.427 | E27: 37.28814 | F27: 4.67 | G27: 28.57143 | J27: 2 | K27: 4.469 | L27: 1 | O27: 4 | P27: 0 | Q27: 0 | S27: DSC_2365.MOV | T27: 2 | U27: 0.852 | V27: 1
B28: 1.566 | C28: 16.08392 | D28: 11.946 | E28: 38.98305 | F28: 5.737 | G28: 29.87013 | J28: 3 | K28: 11.24 | L28: 1 | O28: 5 | P28: 17.665 | Q28: 1 | T28: 3 | U28: 3.093 | V28: 1
B29: 1.593 | C29: 16.78322 | D29: 12.467 | E29: 40.67797 | F29: 6.054 | G29: 31.16883 | J29: 4 | K29: 18.073 | L29: 1 | N29: DSC_2578.MOV | O29: 1 | P29: 0 | Q29: 0 | T29: 4 | U29: 118.368 | V29: 0
B30: 1.667 | C30: 17.48252 | D30: 12.749 | E30: 42.37288 | F30: 6.845 | G30: 32.46753 | J30: 5 | K30: 0.627 | L30: 1 | O30: 2 | P30: 98.866 | Q30: 0 | S30: DSC_2366.MOV | T30: 1 | U30: 2.457 | V30: 1
B31: 1.745 | C31: 18.18182 | D31: 12.775 | E31: 44.06779 | F31: 7.55 | G31: 33.76623 | I31: DSC_2390.MOV | J31: 1 | K31: 7.822 | L31: 1 | O31: 3 | P31: 21.057 | Q31: 1 | T31: 2 | U31: 4.67 | V31: 1
B32: 1.773 | C32: 18.88112 | D32: 13.211 | E32: 45.76271 | F32: 7.999 | G32: 35.06493 | J32: 3 | K32: 1.773 | L32: 1 | O32: 4 | P32: 13.211 | Q32: 1 | T32: 3 | U32: 0.537 | V32: 1
B33: 1.878 | C33: 19.58042 | D33: 14.787 | E33: 47.45763 | F33: 8.192 | G33: 36.36364 | J33: 4 | K33: 1.566 | L33: 1 | O33: 5 | P33: 32.719 | Q33: 1 | T33: 4 | U33: 5.737 | V33: 1
B34: 1.953 | C34: 20.27972 | D34: 16.222 | E34: 49.15254 | F34: 8.57 | G34: 37.66234 | I34: DSC_2499.MOV | J34: 1 | K34: 2.566 | L34: 1 | N34: DSC_2579.MOV | O34: 1 | P34: 4.1 | Q34: 1 | T34: 5 | U34: 113.506 | V34: 0
B35: 2.058 | C35: 20.97902 | D35: 17.469 | E35: 50.84746 | F35: 8.573 | G35: 38.96104 | J35: 2 | K35: 3.847 | L35: 1 | O35: 3 | P35: 0 | Q35: 0 | S35: DSC_2367.MOV | T35: 1 | U35: 1.808 | V35: 1
B36: 2.129 | C36: 21.67832 | D36: 17.665 | E36: 52.54237 | F36: 9.016 | G36: 40.25974 | J36: 3 | K36: 6.035 | L36: 1 | O36: 5 | P36: 11.946 | Q36: 1 | T36: 2 | U36: 0.84 | V36: 1
B37: 2.135 | C37: 22.37762 | D37: 18.795 | E37: 54.23729 | F37: 11.036 | G37: 41.55844 | J37: 4 | K37: 100.922 | L37: 0 | N37: DSC_2580.MOV | O37: 1 | P37: 10.143 | Q37: 1 | T37: 3 | U37: 111.11 | V37: 1
B38: 2.199 | C38: 23.07692 | D38: 19.996 | E38: 55.9322 | F38: 11.771 | G38: 42.85714 | J38: 5 | K38: 57.513 | L38: 1 | O38: 2 | P38: 0 | Q38: 0 | T38: 4 | U38: 26.265 | V38: 1
B39: 2.292 | C39: 23.77622 | D39: 21.057 | E39: 57.62712 | F39: 13.443 | G39: 44.15585 | I39: DSC_2500.MOV | J39: 1 | K39: 5.228 | L39: 1 | O39: 3 | P39: 0.598 | Q39: 1 | T39: 5 | U39: 14.079 | V39: 1
B40: 2.477 | C40: 24.47552 | D40: 21.85 | E40: 59.32203 | F40: 13.462 | G40: 45.45454 | J40: 2 | K40: 4.816 | L40: 1 | O40: 4 | P40: 0.556 | Q40: 1 | S40: DSC_2368.MOV | T40: 1 | U40: 1.817 | V40: 1
B41: 2.566 | C41: 25.17483 | D41: 23.925 | E41: 61.01695 | F41: 13.522 | G41: 46.75325 | J41: 3 | K41: 8.373 | L41: 1 | O41: 5 | P41: 3.859 | Q41: 1 | T41: 3 | U41: 20.546 | V41: 1
B42: 2.632 | C42: 25.87412 | D42: 23.995 | E42: 61.01695 | F42: 14.049 | G42: 48.05195 | J42: 4 | K42: 7.437 | L42: 1 | N42: DSC_2581.MOV | O42: 1 | P42: 6.657 | Q42: 1 | T42: 5 | U42: 13.522 | V42: 1
B43: 2.672 | C43: 26.57342 | D43: 27.25 | E43: 62.78891 | F43: 14.079 | G43: 49.35065 | I43: DSC_2501.MOV | J43: 1 | K43: 11.272 | L43: 1 | O43: 2 | P43: 7.631 | Q43: 1 | S43: DSC_2377.MOV | T43: 1 | U43: 0 | V43: 1
B44: 2.736 | C44: 27.27273 | D44: 28.223 | E44: 64.56086 | F44: 14.993 | G44: 50.64935 | J44: 2 | K44: 15.291 | L44: 1 | O44: 3 | P44: 33.479 | Q44: 1 | T44: 3 | U44: 1.058 | V44: 1
B45: 2.832 | C45: 27.97203 | D45: 29.509 | E45: 66.33282 | F45: 15.096 | G45: 51.94805 | J45: 3 | K45: 3.473 | L45: 1 | O45: 4 | P45: 0 | Q45: 0 | T45: 4 | U45: 1.798 | V45: 1
B46: 3.232 | C46: 28.67133 | D46: 32.719 | E46: 68.10478 | F46: 15.607 | G46: 53.24675 | J46: 4 | K46: 5.234 | L46: 1 | O46: 5 | P46: 16.222 | Q46: 1 | T46: 5 | U46: 0 | V46: 1
B47: 3.473 | C47: 29.37063 | D47: 33.479 | E47: 69.87673 | F47: 19.815 | G47: 54.54546 | I47: DSC_2502.MOV | J47: 1 | K47: 8.319 | L47: 1 | N47: DSC_2584.MOV | O47: 1 | P47: 108.486 | Q47: 0 | S47: DSC_2378.MOV | T47: 1 | U47: 0.676 | V47: 1
B48: 3.796 | C48: 30.06993 | D48: 34.299 | E48: 71.64869 | F48: 20.546 | G48: 55.84415 | J48: 2 | K48: 13.041 | L48: 1 | O48: 3 | P48: 45.392 | Q48: 1 | T48: 2 | U48: 0.046 | V48: 1
B49: 3.83 | C49: 30.76923 | D49: 45.392 | E49: 73.42065 | F49: 23.495 | G49: 57.14286 | J49: 3 | K49: 0 | L49: 1 | O49: 4 | P49: 29.509 | Q49: 1 | T49: 3 | U49: 3.389 | V49: 1
B50: 3.847 | C50: 31.46853 | D50: 45.476 | E50: 75.1926 | F50: 25.149 | G50: 58.44156 | J50: 4 | K50: 12.646 | L50: 1 | O50: 5 | P50: 23.925 | Q50: 1 | T50: 4 | U50: 1.057 | V50: 1
B51: 4.008 | C51: 32.16783 | D51: 52.465 | E51: 75.1926 | F51: 25.777 | G51: 59.74026 | J51: 5 | K51: 7.483 | L51: 1 | N51: DSC_2585.MOV | O51: 1 | P51: 0 | Q51: 0 | T51: 5 | U51: 3.359 | V51: 1
B52: 4.094 | C52: 32.86713 | D52: 65.454 | E52: 75.1926 | F52: 26.265 | G52: 61.03896 | I52: DSC_2503.MOV | J52: 1 | K52: 7.772 | L52: 1 | O52: 2 | P52: 0 | Q52: 0 | S52: DSC_2379.MOV | T52: 1 | U52: 107.765 | V52: 0
B53: 4.433 | C53: 33.56644 | D53: 79.442 | E53: 75.1926 | F53: 30.606 | G53: 62.33766 | J53: 2 | K53: 2.477 | L53: 1 | O53: 3 | P53: 107.824 | Q53: 0 | T53: 2 | U53: 50.168 | V53: 1
B54: 4.441 | C54: 34.26573 | D54: 80.187 | E54: 75.1926 | F54: 33.794 | G54: 63.63636 | J54: 3 | K54: 2.129 | L54: 1 | O54: 4 | P54: 12.749 | Q54: 1 | T54: 3 | U54: 119.064 | V54: 0
B55: 4.469 | C55: 34.96503 | D55: 91.027 | E55: 75.1926 | F55: 46.1 | G55: 64.93507 | J55: 4 | K55: 7.007 | L55: 1 | N55: DSC_2586.MOV | O55: 1 | P55: 11.427 | Q55: 1 | T55: 4 | U55: 25.149 | V55: 1
B56: 4.622 | C56: 35.66434 | D56: 98.194 | E56: 75.1926 | F56: 50.168 | G56: 66.23376 | J56: 5 | K56: 0 | L56: 1 | O56: 2 | P56: 2.957 | Q56: 1 | T56: 5 | U56: 14.049 | V56: 1
B57: 4.697 | C57: 36.36364 | D57: 98.866 | E57: 75.1926 | F57: 53.385 | G57: 67.53247 | I57: DSC_2505.MOV | J57: 1 | K57: 8.261 | L57: 1 | O57: 3 | P57: 11.381 | Q57: 1 | S57: DSC_2380.MOV | T57: 2 | U57: 119.674 | V57: 0
B58: 4.816 | C58: 37.06294 | D58: 103.353 | E58: 75.1926 | F58: 76.52 | G58: 68.83117 | J58: 2 | K58: 1.496 | L58: 1 | O58: 4 | P58: 65.454 | Q58: 0 | T58: 3 | U58: 118.273 | V58: 0
B59: 5.112 | C59: 37.76224 | D59: 107.824 | E59: 75.1926 | F59: 87.785 | G59: 70.12987 | J59: 3 | K59: 3.796 | L59: 1 | N59: DSC_2593.MOV | O59: 1 | P59: 116.398 | Q59: 0 | T59: 4 | U59: 119.704 | V59: 0
B60: 5.228 | C60: 38.46154 | D60: 108.486 | E60: 75.1926 | F60: 89.6 | G60: 71.42857 | J60: 4 | K60: 25.587 | L60: 1 | O60: 2 | P60: 12.775 | Q60: 1 | T60: 5 | U60: 11.036 | V60: 1
B61: 5.234 | C61: 39.16084 | D61: 115.803 | E61: 75.1926 | F61: 107.765 | G61: 71.42857 | I61: DSC_2508.MOV | J61: 1 | K61: 46.139 | L61: 1 | O61: 3 | P61: 1.304 | Q61: 1 | S61: DSC_2382.MOV | T61: 1 | U61: 87.785 | V61: 1
B62: 5.551 | C62: 39.86014 | D62: 116.214 | E62: 75.1926 | F62: 109.181 | G62: 71.42857 | J62: 2 | K62: 7.973 | L62: 1 | O62: 4 | P62: 91.027 | Q62: 0 | T62: 2 | U62: 46.1 | V62: 1
B63: 5.574 | C63: 40.55944 | D63: 116.398 | E63: 75.1926 | F63: 111.11 | G63: 72.85714 | J63: 3 | K63: 13.012 | L63: 1 | O63: 5 | P63: 34.299 | Q63: 1 | T63: 3 | U63: 118.612 | V63: 0
B64: 5.669 | C64: 41.25874 | D64: 118.239 | E64: 75.1926 | F64: 113.506 | G64: 72.85714 | J64: 4 | K64: 113.558 | L64: 0 | N64: DSC_2595.MOV | O64: 1 | P64: 79.442 | Q64: 0 | T64: 4 | U64: 8.192 | V64: 1
B65: 5.918 | C65: 41.95804 | D65: 120 | E65: 75.1926 | F65: 114.402 | G65: 72.85714 | J65: 5 | K65: 7.505 | L65: 1 | O65: 2 | P65: 19.996 | Q65: 1 | T65: 5 | U65: 115.76 | V65: 0
B66: 5.959 | C66: 42.65734 | F66: 115.76 | G66: 72.85714 | I66: DSC_2510.MOV | J66: 1 | K66: 15.379 | L66: 1 | O66: 4 | P66: 4.229 | Q66: 1 | S66: DSC_2383.MOV | T66: 1 | U66: 89.6 | V66: 1
B67: 6.035 | C67: 43.35664 | F67: 115.851 | G67: 72.85714 | J67: 2 | K67: 11.117 | L67: 1 | O67: 5 | P67: 80.187 | Q67: 0 | T67: 2 | U67: 33.794 | V67: 1
B68: 6.149 | C68: 44.05594 | F68: 116.776 | G68: 72.85714 | J68: 3 | K68: 9.005 | L68: 1 | N68: DSC_2596.MOV | O68: 1 | P68: 18.795 | Q68: 1 | T68: 3 | U68: 13.462 | V68: 1
B69: 6.169 | C69: 44.75524 | F69: 118.273 | G69: 72.85714 | J69: 4 | K69: 12.913 | L69: 1 | O69: 2 | P69: 115.803 | Q69: 0 | T69: 4 | U69: 8.573 | V69: 1
B70: 6.17 | C70: 45.45454 | F70: 118.34 | G70: 72.85714 | J70: 5 | K70: 8.799 | L70: 1 | O70: 3 | P70: 14.787 | Q70: 1 | T70: 5 | U70: 76.52 | V70: 1
B71: 6.272 | C71: 46.15385 | F71: 118.368 | G71: 72.85714 | I71: DSC_2511.MOV | J71: 1 | K71: 33.27 | L71: 1 | O71: 4 | P71: 11.271 | Q71: 1 | S71: DSC_2391.MOV | T71: 1 | U71: 6.054 | V71: 1
B72: 6.331 | C72: 46.85315 | F72: 118.568 | G72: 72.85714 | J72: 2 | K72: 5.112 | L72: 1 | O72: 5 | P72: 103.353 | Q72: 0 | T72: 2 | U72: 9.016 | V72: 1
B73: 6.54 | C73: 47.55245 | F73: 118.612 | G73: 72.85714 | J73: 3 | K73: 10.922 | L73: 1 | T73: 3 | U73: 19.815 | V73: 1
B74: 6.781 | C74: 48.25175 | F74: 119.064 | G74: 72.85714 | J74: 5 | K74: 14.368 | L74: 1 | T74: 4 | U74: 15.096 | V74: 1
B75: 7.005 | C75: 48.95105 | F75: 119.173 | G75: 72.85714 | I75: DSC_2553.MOV | J75: 1 | K75: 106.015 | L75: 0 | T75: 5 | U75: 53.385 | V75: 1
B76: 7.007 | C76: 49.65035 | F76: 119.218 | G76: 72.85714 | J76: 2 | K76: 47.285 | L76: 1 | S76: DSC_2506.MOV | T76: 1 | U76: 118.568 | V76: 0
B77: 7.437 | C77: 50.34965 | F77: 119.608 | G77: 72.85714 | J77: 3 | K77: 8.034 | L77: 1 | T77: 2 | U77: 120 | V77: 0
B78: 7.471 | C78: 51.04895 | F78: 119.66 | G78: 72.85714 | J78: 4 | K78: 31.727 | L78: 1 | T78: 3 | U78: 13.443 | V78: 1
B79: 7.483 | C79: 51.74825 | F79: 119.674 | G79: 72.85714 | J79: 5 | K79: 1.093 | L79: 1 | T79: 4 | U79: 30.606 | V79: 1
B80: 7.505 | C80: 52.44755 | F80: 119.704 | G80: 72.85714 | I80: DSC_2554.MOV | J80: 1 | K80: 5.551 | L80: 1 | T80: 5 | U80: 119.218 | V80: 0
B81: 7.772 | C81: 53.14685 | F81: 119.835 | G81: 72.85714 | J81: 3 | K81: 1.044 | L81: 1 | S81: DSC_2507.MOV | T81: 1 | U81: 119.608 | V81: 0
B82: 7.809 | C82: 53.84615 | F82: 120 | G82: 72.85714 | J82: 4 | K82: 6.149 | L82: 1 | T82: 2 | U82: 23.495 | V82: 1
B83: 7.822 | C83: 54.54546 | I83: DSC_2555.MOV | J83: 1 | K83: 11.205 | L83: 1 | T83: 3 | U83: 118.34 | V83: 0
B84: 7.973 | C84: 55.24475 | J84: 2 | K84: 11.041 | L84: 1 | T84: 5 | U84: 14.993 | V84: 1
B85: 8.034 | C85: 55.94406 | J85: 3 | K85: 76.256 | L85: 1
B86: 8.08 | C86: 56.64336 | I86: DSC_2556.MOV | J86: 1 | K86: 22.469 | L86: 1
B87: 8.227 | C87: 57.34266 | J87: 2 | K87: 0 | L87: 1
B88: 8.261 | C88: 58.04196 | J88: 3 | K88: 0.544 | L88: 1
B89: 8.319 | C89: 58.74126 | J89: 4 | K89: 1.177 | L89: 1
B90: 8.373 | C90: 59.44056 | J90: 5 | K90: 0 | L90: 1
B91: 8.402 | C91: 60.13986 | I91: DSC_2562.MOV | J91: 1 | K91: 19.884 | L91: 1
B92: 8.431 | C92: 60.83916 | J92: 2 | K92: 24.953 | L92: 1
B93: 8.799 | C93: 61.53846 | J93: 3 | K93: 18.791 | L93: 1
B94: 9.005 | C94: 62.23776 | J94: 5 | K94: 15.708 | L94: 1
B95: 9.184 | C95: 62.93706 | I95: DSC_2563.MOV | J95: 1 | K95: 2.199 | L95: 1
B96: 9.267 | C96: 63.63636 | J96: 2 | K96: 0.697 | L96: 1
B97: 9.275 | C97: 64.33566 | J97: 3 | K97: 4.008 | L97: 1
B98: 9.376 | C98: 65.03497 | J98: 4 | K98: 4.622 | L98: 1
B99: 10.429 | C99: 65.73426 | J99: 5 | K99: 0.59 | L99: 1
B100: 10.554 | C100: 66.43357 | I100: DSC_2564.MOV | J100: 1 | K100: 1.391 | L100: 1
B101: 10.922 | C101: 67.13287 | J101: 2 | K101: 2.672 | L101: 1
B102: 10.979 | C102: 67.83217 | J102: 3 | K102: 7.471 | L102: 1
B103: 11.041 | C103: 68.53147 | J103: 4 | K103: 4.094 | L103: 1
B104: 11.108 | C104: 69.23077 | J104: 5 | K104: 2.632 | L104: 1
B105: 11.117 | C105: 69.93007 | I105: DSC_2565.MOV | J105: 1 | K105: 17.479 | L105: 1
B106: 11.205 | C106: 70.62937 | J106: 2 | K106: 6.272 | L106: 1
B107: 11.208 | C107: 71.32867 | J107: 3 | K107: 1.527 | L107: 1
B108: 11.24 | C108: 72.02797 | J108: 5 | K108: 18.921 | L108: 1
B109: 11.272 | C109: 72.72727 | I109: DSC_2571.MOV | J109: 1 | K109: 12.61 | L109: 1
B110: 12.004 | C110: 73.42657 | J110: 2 | K110: 2.135 | L110: 1
B111: 12.61 | C111: 74.12587 | J111: 3 | K111: 0.469 | L111: 1
B112: 12.646 | C112: 74.82517 | J112: 4 | K112: 5.918 | L112: 1
B113: 12.913 | C113: 75.52447 | J113: 5 | K113: 1.535 | L113: 1
B114: 13.012 | C114: 76.22378 | I114: DSC_2572.MOV | J114: 1 | K114: 11.108 | L114: 1
B115: 13.041 | C115: 76.92308 | J115: 2 | K115: 2.832 | L115: 1
B116: 14.368 | C116: 77.62238 | J116: 3 | K116: 7.809 | L116: 1
B117: 15.291 | C117: 78.32168 | J117: 5 | K117: 19.348 | L117: 1
B118: 15.379 | C118: 79.02098 | I118: DSC_2573.MOV | J118: 1 | K118: 8.402 | L118: 1
B119: 15.708 | C119: 79.72028 | J119: 2 | K119: 1.095 | L119: 1
B120: 17.215 | C120: 79.72028 | J120: 3 | K120: 10.979 | L120: 1
B121: 17.479 | C121: 80.44455 | J121: 4 | K121: 1.593 | L121: 1
B122: 18.073 | C122: 81.16883 | J122: 5 | K122: 6.781 | L122: 1
B123: 18.791 | C123: 81.89311 | I123: DSC_2574.MOV | J123: 1 | K123: 1.03 | L123: 1
B124: 18.921 | C124: 82.61738 | J124: 2 | K124: 1.878 | L124: 1
B125: 19.348 | C125: 83.34166 | J125: 3 | K125: 26.129 | L125: 1
B126: 19.884 | C126: 84.06593 | J126: 4 | K126: 24.186 | L126: 1
B127: 20.106 | C127: 84.79021 | J127: 5 | K127: 6.54 | L127: 1
B128: 20.827 | C128: 85.51448 | I128: DSC_2575.MOV | J128: 1 | K128: 0 | L128: 1
B129: 22.469 | C129: 86.23876 | J129: 2 | K129: 1.297 | L129: 1
B130: 23.274 | C130: 86.96304 | J130: 3 | K130: 8.08 | L130: 1
B131: 24.186 | C131: 87.68731 | J131: 4 | K131: 4.697 | L131: 1
B132: 24.953 | C132: 88.41159 | J132: 5 | K132: 4.441 | L132: 1
B133: 25.587 | C133: 89.13586 | I133: DSC_2576.MOV | J133: 1 | K133: 1.745 | L133: 1
B134: 25.673 | C134: 89.86014 | J134: 2 | K134: 11.208 | L134: 1
B135: 26.129 | C135: 90.584415 | J135: 3 | K135: 6.331 | L135: 1
B136: 31.727 | C136: 91.308691 | J136: 4 | K136: 0.776 | L136: 1
B137: 33.27 | C137: 92.032967 | J137: 5 | K137: 1.529 | L137: 1
B138: 46.139 | C138: 92.757243 | I138: DSC_2588.MOV | J138: 1 | K138: 69.508 | L138: 1
B139: 47.285 | C139: 93.481518 | J139: 2 | K139: 9.376 | L139: 1
B140: 57.513 | C140: 94.205794 | J140: 3 | K140: 6.17 | L140: 1
B141: 62.485 | C141: 94.93007 | J141: 4 | K141: 17.215 | L141: 0
B142: 69.508 | C142: 95.654345 | J142: 5 | K142: 0 | L142: 1
B143: 76.256 | C143: 96.378621 | I143: DSC_2589.MOV | J143: 1 | K143: 0.165 | L143: 1
B144: 100.922 | C144: 96.378621 | J144: 2 | K144: 5.669 | L144: 1
B145: 106.015 | C145: 96.378621 | J145: 3 | K145: 7.005 | L145: 1
B146: 113.558 | C146: 96.378621 | J146: 4 | K146: 2.292 | L146: 1
B147: 113.672 | C147: 96.378621 | I147: DSC_2590.MOV | J147: 1 | K147: 8.431 | L147: 1
B148: 119.989 | C148: 96.378621 | J148: 2 | K148: 1.507 | L148: 1
B149: 120 | C149: 96.378621 | J149: 3 | K149: 0 | L149: 1
J150: 4 | K150: 10.554 | L150: 1
J151: 5 | K151: 4.433 | L151: 1
I152: DSC_2591.MOV | J152: 1 | K152: 1.327 | L152: 1
J153: 2 | K153: 0 | L153: 1
J154: 3 | K154: 1.667 | L154: 1
I156: Censor guide:
I157: 1: Event observed (no censor)
I158: 2: Censored data

Sheet Fig4E
A1: Condition
A2: 0 h | B2: 10 min | C2: 1 h | D2: 3 h | E2: 6 h
A3: Average voxel intensity (AU)
A4: 649.5908449 | B4: 695.8781487 | C4: 657.3833829 | D4: 720.9638035 | E4: 756.5580513
A5: 629.7017427 | B5: 584.4594212 | C5: 686.1723806 | D5: 772.9265766 | E5: 688.4278244
A6: 640.2510407 | B6: 583.3803204 | C6: 610.682868 | D6: 697.3601692 | E6: 705.3890539
A7: 603.8140403 | B7: 642.694219 | C7: 620.1059377 | D7: 662.6724735 | E7: 734.3541552
A8: 677.8353109 | B8: 634.8321491 | C8: 611.5886074 | D8: 627.6910181 | E8: 675.2419694
A9: 623.7686244 | B9: 695.2722253 | C9: 690.4372242 | D9: 621.2210949 | E9: 680.6044956
A10: 675.8643497 | B10: 708.9859971 | C10: 628.3499999 | D10: 706.0299207 | E10: 703.9821853
A11: 610.6220547 | B11: 518.3490552 | C11: 622.3100991 | D11: 603.1269843 | E11: 684.9316891
A12: 622.0558046 | B12: 606.0564296 | C12: 604.1118359 | D12: 548.6353888 | E12: 595.3268973
A13: 601.681152 | B13: 623.6120483 | C13: 610.0832155 | D13: 659.9251707 | E13: 671.0320232
A14: 576.289015 | B14: 656.5051167 | C14: 573.1918196 | D14: 647.8232716 | E14: 672.659827
A15: 645.2330228 | B15: 706.5822278 | C15: 520.131861 | D15: 666.6782995 | E15: 671.8054708
A16: 712.6053914 | B16: 646.1952796 | C16: 617.8192503 | D16: 653.3573113 | E16: 641.833372
A17: 692.9298455 | B17: 616.8573799 | C17: 613.0680906 | D17: 748.0615086 | E17: 541.9722973
A18: 668.5320399 | B18: 655.3688479 | C18: 665.3838482 | D18: 672.7319482
A19: 707.8570716 | B19: 652.4145886 | C19: 619.797353 | D19: 675.6434138
A20: 578.3602686 | B20: 626.1493376 | C20: 711.1742952 | D20: 649.9549554
A21: 589.8685013 | B21: 668.0360433 | C21: 659.8286596 | D21: 682.0443146
A22: 622.6135807 | B22: 600.0978274 | C22: 533.6316418 | D22: 648.0891929
A23: 565.6283042 | B23: 607.8417744 | C23: 677.7648906 | D23: 711.8476033
A24: 573.292292 | B24: 620.035773 | C24: 752.6371876
A25: 533.658749 | B25: 561.2554597 | C25: 647.9961561
B26: 620.5399545 | C26: 630.0173931
A28: p value summary (Kruskal-Wallis test; Dunn's post test, Adjusted P Values)
B29: > 0.9999 | C29: > 0.9999 | D29: 0.0412 | E29: 0.0296

Sheet Fig5E
A1: Peptide: | B1: None (ASW) | C1: MIP-1 | D1: MIP-2 | E1: MIP-3 | F1: MIP-4 | G1: MIP-5 | H1: NGPPGLWa
B2: Brine shrimps eaten (# shrimps)
B3: 67 | C3: 62 | D3: 60 | E3: 39 | F3: 59 | G3: 55 | H3: 2 | J3: p value summary (Kruskal-Wallis test; Dunn's post test, Adjusted P Values)
B4: 67 | C4: 57 | D4: 59 | E4: 30 | F4: 58 | G4: 46 | H4: 2 | J4: Comparison | K4: p
B5: 63 | C5: 55 | D5: 49 | E5: 28 | F5: 58 | G5: 39 | H5: 3 | J5: ASW vs. MIP-1 | K5: > 0.9999
B6: 61 | C6: 52 | D6: 43 | E6: 25 | F6: 51 | G6: 34 | H6: 4 | J6: ASW vs. MIP-2 | K6: 0.0987
B7: 58 | C7: 51 | D7: 31 | E7: 23 | F7: 50 | G7: 31 | H7: 6 | J7: ASW vs. MIP-3 | K7: < 0.0001
B8: 58 | C8: 49 | D8: 30 | E8: 21 | F8: 46 | G8: 29 | H8: 9 | J8: ASW vs. MIP-4 | K8: > 0.9999
B9: 57 | C9: 46 | D9: 29 | E9: 15 | F9: 45 | G9: 29 | H9: 12 | J9: ASW vs. MIP-5 | K9: 0.0219
B10: 57 | C10: 43 | D10: 27 | E10: 13 | F10: 42 | G10: 28 | H10: 19 | J10: MIP-3 vs. NGPPGLWa | K10: > 0.9999
B11: 55 | C11: 37 | D11: 23 | E11: 13 | F11: 38 | G11: 27 | H11: 21 | J11: MIP-5 vs. NGPPGLWa | K11: 0.2337
B12: 54 | C12: 35 | D12: 13 | E12: 11 | F12: 34 | G12: 24 | H12: 24
B13: 52 | C13: 33 | D13: 10 | E13: 10 | F13: 32 | G13: 21 | H13: 24
B14: 50 | C14: 29 | D14: 9 | E14: 7 | F14: 31 | G14: 14 | H14: 25
B15: 48 | H15: 30
B16: 48
B17: 47
B18: 46
B19: 45
B20: 44
B21: 43
B22: 42
B23: 42
B24: 42
B25: 41
B26: 41
B27: 40
B28: 40
B29: 39
B30: 37
B31: 37
B32: 37
B33: 32
B34: 32
B35: 27
B36: 27
B37: 27
B38: 24
B39: 21
B40: 24
B41: 27
B42: 27
B43: 30
B44: 31
B45: 31
B46: 31
B47: 32
B48: 32
B49: 33
B50: 34
B51: 34
B52: 35
B53: 35
B54: 36
B55: 37
B56: 37
B57: 38
B58: 38
B59: 38
B60: 39
B61: 39
B62: 39
B63: 39
B64: 41
B65: 43
B66: 43
B67: 43
B68: 43
B69: 46
B70: 46
B71: 46
B72: 47
B73: 48
B74: 48
B75: 49
B76: 50
B77: 50
B78: 50
B79: 52
B80: 53
B81: 53
B82: 53
B83: 54
B84: 54
B85: 54
B86: 55
B87: 56
B88: 57
B89: 58
B90: 61
B91: 61
B92: 63

Sheet Fig6A
A1: Genotype | B1: PER
B2: Number of flies | E2: % of flies
B3: Full | C3: Partial | D3: None | E3: Full | F3: Partial | G3: None
A4: yw | B4: 0 | C4: 0 | D4: 30 | E4: =100*B4/SUM($B$4:$D$4) -> 0 | F4: =100*C4/SUM($B$4:$D$4) -> 0 | G4: 100
A5: yw;; MipSK4 | B5: 15 | C5: 0 | D5: 15 | E5: =100*B5/SUM($B$5:$D$5) -> 50 | F5: =100*C5/SUM($B$5:$D$5) -> 0 | G5: 50
B8: Fisher's exact test result:
B9: p < 0.0001

Sheet Fig6E
A1: Genotype | B1: Proboscis Extension Reflex (PER) | I1: Chi-squared test with Bonferroni correction
B2: Number of flies | E2: % of flies | I2: Comparison | J2: p value | K2: Bonferroni-corrected p value
B3: None | C3: Partial | D3: Full | E3: None | F3: Partial | G3: Full | I3: w; Mip-GAL4/+ vs. w; Mip-GAL4/UAS-CpaGLWa; MipSK4 | J3: 0.1442 | K3: =J3*7 -> 1.0094
A4: w; Mip-GAL4/+ | B4: 44 | C4: 1 | D4: 5 | E4: =100*B4/SUM($B$4:$D$4) -> 88 | F4: =100*C4/SUM($B$4:$D$4) -> 2 | G4: 10 | I4: w; Mip-GAL4/+ vs. w; Mip-GAL4/UAS-DmelWGLWa; MipSK4 | J4: 0.6709 | K4: 4.6963
A5: w; Mip-GAL4/+; MipSK4 | B5: 28 | C5: 4 | D5: 18 | E5: =100*B5/SUM($B$5:$D$5) -> 56 | F5: =100*C5/SUM($B$5:$D$5) -> 8 | G5: 36 | I5: w; Mip-GAL4/+ vs. w; Mip-GAL4/UAS-DmelGLWa; MipSK4 | J5: 0.0061 | K5: 0.0427
A6: w; Mip-GAL4/UAS-emptyMIP; MipSK4 | B6: 25 | C6: 6 | D6: 19 | E6: =100*B6/SUM($B$6:$D$6) -> 50 | F6: =100*C6/SUM($B$6:$D$6) -> 12 | G6: 38 | I6: w; Mip-GAL4/UAS-emptyMIP; MipSK4 vs. w; Mip-GAL4/UAS-CpaGLWa; MipSK4 | J6: 0.0013 | K6: 0.0091
A7: w; Mip-GAL4/UAS-CpaGLWa; MipSK4 | B7: 40 | C7: 6 | D7: 4 | E7: =100*B7/SUM($B$7:$D$7) -> 80 | F7: =100*C7/SUM($B$7:$D$7) -> 12 | G7: 8 | I7: w; Mip-GAL4/UAS-emptyMIP; MipSK4 vs. w; Mip-GAL4/UAS-DmelWGLWa; MipSK4 | J7: 0.0026 | K7: 0.0182
A8: w; Mip-GAL4/UAS-DmelWGLWa; MipSK4 | B8: 41 | C8: 1 | D8: 8 | E8: =100*B8/SUM($B$8:$D$8) -> 82 | F8: =100*C8/SUM($B$8:$D$8) -> 2 | G8: 16 | I8: w; Mip-GAL4/UAS-emptyMIP; MipSK4 vs. w; Mip-GAL4/UAS-DmelGLWa; MipSK4 | J8: 0.5736 | K8: 4.0152
A9: w; Mip-GAL4/UAS-DmelGLWa; MipSK4 | B9: 30 | C9: 4 | D9: 16 | E9: =100*B9/SUM($B$9:$D$9) -> 60 | F9: =100*C9/SUM($B$9:$D$9) -> 8 | G9: 32 | I9: w; Mip-GAL4/+ vs. w; Mip-GAL4/UAS-emptyMIP; MipSK4 | J9: 0.0002 | K9: 0.0014

Sheet FigS1B
A1: Starvation (h) | B1: Round
B2: 1 | C2: 2 | D2: 3 | E2: 4 | F2: 5 | G2: 6 | H2: 7 | I2: 8 | J2: 9 | K2: 10
B3: Brine shrimps eaten (# shrimps)
A4: 0.3 | B4: 1 | C4: 1 | D4: 1 | E4: 0 | F4: 1 | G4: 1 | H4: 0 | I4: 0 | J4: 0 | K4: 0
B5: 2 | C5: 4 | D5: 0 | E5: 0 | F5: 0 | G5: 0 | H5: 0 | I5: 1 | J5: 0 | K5: 0
B6: 4 | C6: 3 | D6: 2 | E6: 0 | F6: 0 | G6: 0 | H6: 0 | I6: 0 | J6: 1 | K6: 1
B7: 3 | C7: 1 | D7: 1 | E7: 1 | F7: 2 | G7: 1 | H7: 1 | I7: 1 | J7: 0 | K7: 0
B8: 3 | C8: 3 | D8: 1 | E8: 0 | F8: 1 | G8: 3 | H8: 0 | I8: 0 | J8: 1 | K8: 0
B9: 0 | C9: 0 | D9: 1 | E9: 4 | F9: 3 | G9: 1 | H9: 3 | I9: 2 | J9: 0 | K9: 2
B10: 0 | C10: 0 | D10: 1 | E10: 0 | F10: 1 | G10: 0 | H10: 1 | I10: 0 | J10: 0 | K10: 1
B11: 1 | C11: 2 | D11: 3 | E11: 3 | F11: 1 | G11: 5 | H11: 4 | I11: 0 | J11: 1 | K11: 0
B12: 3 | C12: 6 | D12: 1 | E12: 1 | F12: 1 | G12: 0 | H12: 1 | I12: 0 | J12: 1 | K12: 1
B13: 3 | C13: 1 | D13: 3 | E13: 1 | F13: 0 | G13: 0 | H13: 0 | I13: 0 | J13: 0 | K13: 0
B14: 2 | C14: 3 | D14: 3 | E14: 1 | F14: 1 | G14: 0 | H14: 0 | I14: 1 | J14: 0 | K14: 0
B15: 5 | C15: 4 | D15: 3 | E15: 2 | F15: 0 | G15: 2 | H15: 0 | I15: 0 | J15: 2 | K15: 2
A16: 3.1 | B16: 8 | C16: 7 | D16: 5 | E16: 6 | F16: 2 | G16: 3 | H16: 3 | I16: 1 | J16: 3 | K16: 0
B17: 9 | C17: 7 | D17: 4 | E17: 7 | F17: 0 | G17: 5 | H17: 1 | I17: 4 | J17: 0 | K17: 0
B18: 4 | C18: 1 | D18: 6 | E18: 1 | F18: 4 | G18: 2 | H18: 2 | I18: 2 | J18: 1 | K18: 3
B19: 9 | C19: 4 | D19: 5 | E19: 2 | F19: 2 | G19: 0 | H19: 3 | I19: 1 | J19: 1 | K19: 0
B20: 5 | C20: 6 | D20: 3 | E20: 5 | F20: 4 | G20: 4 | H20: 3 | I20: 6 | J20: 0 | K20: 3
B21: 7 | C21: 5 | D21: 5 | E21: 3 | F21: 2 | G21: 2 | H21: 3 | I21: 5 | J21: 6 | K21: 3
B22: 8 | C22: 5 | D22: 4 | E22: 4 | F22: 0 | G22: 1 | H22: 2 | I22: 0 | J22: 0 | K22: 0
B23: 8 | C23: 7 | D23: 3 | E23: 7 | F23: 3 | G23: 6 | H23: 4 | I23: 9 | J23: 3 | K23: 1
B24: 8 | C24: 4 | D24: 5 | E24: 5 | F24: 5 | G24: 4 | H24: 1 | I24: 1 | J24: 3 | K24: 0
B25: 7 | C25: 2 | D25: 9 | E25: 4 | F25: 2 | G25: 3 | H25: 5 | I25: 5 | J25: 3 | K25: 3
B26: 8 | C26: 6 | D26: 4 | E26: 2 | F26: 2 | G26: 5 | H26: 3 | I26: 1 | J26: 2 | K26: 1
B27: 4 | C27: 7 | D27: 2 | E27: 5 | F27: 0 | G27: 4 | H27: 4 | I27: 0 | J27: 1 | K27: 4
A28: 23.4 | B28: 10 | C28: 8 | D28: 6 | E28: 5 | F28: 5 | G28: 4 | H28: 4 | I28: 9 | J28: 7 | K28: 5
B29: 9 | C29: 8 | D29: 5 | E29: 6 | F29: 4 | G29: 2 | H29: 6 | I29: 7 | J29: 2 | K29: 1
B30: 4 | C30: 9 | D30: 7 | E30: 10 | F30: 7 | G30: 1 | H30: 6 | I30: 4 | J30: 0 | K30: 6
B31: 10 | C31: 9 | D31: 5 | E31: 2 | F31: 5 | G31: 1 | H31: 0 | I31: 0 | J31: 1 | K31: 3
B32: 10 | C32: 9 | D32: 5 | E32: 5 | F32: 4 | G32: 3 | H32: 2 | I32: 0 | J32: 0 | K32: 2
B33: 2 | C33: 5 | D33: 7 | E33: 8 | F33: 5 | G33: 4 | H33: 6 | I33: 4 | J33: 1 | K33: 3
B34: 1 | C34: 4 | D34: 9 | E34: 4 | F34: 5 | G34: 6 | H34: 3 | I34: 0 | J34: 3 | K34: 2
B35: 9 | C35: 5 | D35: 6 | E35: 9 | F35: 6 | G35: 7 | H35: 7 | I35: 0 | J35: 4 | K35: 4
B36: 10 | C36: 6 | D36: 8 | E36: 1 | F36: 2 | G36: 5 | H36: 4 | I36: 3 | J36: 2 | K36: 3
B37: 10 | C37: 2 | D37: 8 | E37: 6 | F37: 4 | G37: 4 | H37: 6 | I37: 2 | J37: 3 | K37: 0
B38: 10 | C38: 7 | D38: 7 | E38: 7 | F38: 7 | G38: 6 | H38: 2 | I38: 6 | J38: 3 | K38: 2
B39: 10 | C39: 10 | D39: 6 | E39: 7 | F39: 5 | G39: 2 | H39: 5 | I39: 4 | J39: 3 | K39: 6
A40: 47 | B40: 9 | C40: 8 | D40: 7 | E40: 6 | F40: 8 | G40: 6 | H40: 4 | I40: 6 | J40: 4 | K40: 3
B41: 9 | C41: 9 | D41: 8 | E41: 9 | F41: 9 | G41: 8 | H41: 5 | I41: 5 | J41: 5 | K41: 5
B42: 10 | C42: 8 | D42: 8 | E42: 5 | F42: 8 | G42: 9 | H42: 9 | I42: 2 | J42: 7 | K42: 4
B43: 10 | C43: 9 | D43: 8 | E43: 7 | F43: 10 | G43: 8 | H43: 5 | I43: 5 | J43: 6 | K43: 6
B44: 9 | C44: 8 | D44: 10 | E44: 8 | F44: 8 | G44: 7 | H44: 8 | I44: 7 | J44: 3 | K44: 3
B45: 8 | C45: 10 | D45: 5 | E45: 8 | F45: 8 | G45: 4 | H45: 8 | I45: 4 | J45: 2 | K45: 5
B46: 7 | C46: 7 | D46: 9 | E46: 10 | F46: 6 | G46: 6 | H46: 9 | I46: 6 | J46: 2 | K46: 3
B47: 10 | C47: 9 | D47: 8 | E47: 9 | F47: 8 | G47: 10 | H47: 8 | I47: 6 | J47: 4 | K47: 4
B48: 8 | C48: 10 | D48: 9 | E48: 9 | F48: 5 | G48: 7 | H48: 8 | I48: 5 | J48: 5 | K48: 3
B49: 9 | C49: 9 | D49: 10 | E49: 10 | F49: 7 | G49: 8 | H49: 6 | I49: 7 | J49: 3 | K49: 2
B50: 9 | C50: 10 | D50: 9 | E50: 10 | F50: 9 | G50: 6 | H50: 6 | I50: 5 | J50: 1 | K50: 7
B51: 9 | C51: 8 | D51: 5 | E51: 5 | F51: 4 | G51: 3 | H51: 4 | I51: 1 | J51: 1 | K51: 0

Sheet FigS2A
A1: Human Family 1 GPCRs | E1: Platynereis Family 1 GPCRs | I1: Cladonema Family 1 GPCRs | N1: Connections
A2: ID | B2: NAME | C2: X | D2: Y | E2: ID | F2: NAME | G2: X | H2: Y | I2: ID | J2: NAME | K2: X | L2: Y | N2: Bilaterian GPCR | O2: Cnidarian GPCR | P2: e-value
A3: 0 | B3: sp|P25106|ACKR3_HUMAN Atypical chemokine receptor 3 OS=Homo sapiens OX=9606 GN=ACKR3 PE=1 SV=3 | C3: 0.65050447 | D3: 0.69544965 | E3: 286 | F3: Platynereis_AllatostatinC_receptor1 27 | G3: 0.64577544 | H3: 0.77473253 | I3: 303 | J3: TRINITY_DN50249_c0_g1_i1.p1 TRINITY_DN50249_c0_g1~~TRINITY_DN50249_c0_g1_i1.p1 ORF type:complete len:325 (-),score=0.80,7tm_1|PF00001.22|1.2e-17 TRINITY_DN50249_c0_g1_i1:40-1014(-) | K3: 0.36252618 | L3: 0.77246445 | N3: Human ID 15 | O3: Cladonema ID 307 | P3: 2.8e-41
A4: 1 | B4: sp|Q9NS75|CLTR2_HUMAN Cysteinyl leukotriene receptor 2 OS=Homo sapiens OX=9606 GN=CYSLTR2 PE=1 SV=1 | C4: 0.66674334 | D4: 0.59197104 | E4: 287 | F4: Platynereis_Vasotocin_receptor1 29 | G4: 0.22230716 | H4: 0.49428713 | I4: 304 | J4: TRINITY_DN46373_c0_g1_i1.p1 TRINITY_DN46373_c0_g1~~TRINITY_DN46373_c0_g1_i1.p1 ORF type:5prime_partial len:370 (+),score=18.68,sp|P29274|AA2AR_HUMAN|26.316|7.02e-26,7tm_1|PF00001.22|1.8e-39 TRINITY_DN46373_c0_g1_i1:3-1112(+) | K4: 0.32261294 | L4: 0.045818217 | N4: Human ID 256 | O4: Cladonema ID 310 | P4: 3.5e-44
A5: 2 | B5: sp|O43194|GPR39_HUMAN G-protein coupled receptor 39 OS=Homo sapiens OX=9606 GN=GPR39 PE=1 SV=1 | C5: 0.6342318 | D5: 0.7244097 | E5: 288 | F5: Platynereis_NKY_receptor1 30 | G5: 0.59238464 | H5: 0.81769305 | I5: 305 | J5: TRINITY_DN46816_c0_g1_i1.p1 TRINITY_DN46816_c0_g1~~TRINITY_DN46816_c0_g1_i1.p1 ORF type:5prime_partial len:207 (+),score=8.48 TRINITY_DN46816_c0_g1_i1:1-621(+) | K5: 0.6337956 | L5: 0.103515625 | N5: Human ID 4 | O5: Cladonema ID 389 | P5: 5.8e-58
A6: 3 | B6: sp|P35414|APJ_HUMAN Apelin receptor OS=Homo sapiens OX=9606 GN=APLNR PE=1 SV=1 | C6: 0.67445827 | D6: 0.7165755 | E6: 289 | F6: Platynereis_Luqin_receptor1 32 | G6: 0.5771422 | H6: 0.82377684 | I6: 306 | J6: TRINITY_DN47954_c0_g1_i1.p1 TRINITY_DN47954_c0_g1~~TRINITY_DN47954_c0_g1_i1.p1 ORF type:5prime_partial len:300 (-),score=26.97,7tm_1|PF00001.22|2.7e-14 TRINITY_DN47954_c0_g1_i1:130-1029(-) | K6: 0.17898695 | L6: 0.1576705 | N6: Human ID 110 | O6: Cladonema ID 389 | P6: 3.2e-59
A7: 4 | B7: sp|P20309|ACM3_HUMAN Muscarinic acetylcholine receptor M3 OS=Homo sapiens OX=9606 GN=CHRM3 PE=1 SV=1 | C7: 0.3834169 | D7: 0.36229405 | E7: 290 | F7: Platynereis_Elevenin_receptor1 33 | G7: 0.6000016 | H7: 0.8096145 | I7: 307 | J7: TRINITY_DN49990_c0_g2_i1.p1 TRINITY_DN49990_c0_g2~~TRINITY_DN49990_c0_g2_i1.p1 ORF type:internal len:311 (-),score=0.91,sp|P58307|OX1R_MOUSE|31.832|6.60e-43,7tm_1|PF00001.22|2.6e-40 TRINITY_DN49990_c0_g2_i1:2-931(-) | K7: 0.568488 | L7: 0.8599552 | N7: Human ID 114 | O7: Cladonema ID 389 | P7: 1.5e-44
A8: 5 | B8: sp|Q9HBX9|RXFP1_HUMAN Relaxin receptor 1 OS=Homo sapiens OX=9606 GN=RXFP1 PE=1 SV=2 | C8: 0.83830523 | D8: 0.3711073 | E8: 291 | F8: Platynereis_Allatotropin_receptor1 34 | G8: 0.59050745 | H8: 0.8220046 | I8: 308 | J8: TRINITY_DN51811_c0_g1_i1.p1 TRINITY_DN51811_c0_g1~~TRINITY_DN51811_c0_g1_i1.p1 ORF type:complete len:348 (-),score=7.01,sp|Q7T3Q7|OPSO_RUTRU|24.915|2.13e-16,7tm_1|PF00001.22|2.8e-15 TRINITY_DN51811_c0_g1_i1:733-1776(-) | K8: 0.097865 | L8: 0.44062462 | N8: Human ID 142 | O8: Cladonema ID 389 | P8: 1e-41
A9: 6 | B9: sp|P34981|TRFR_HUMAN Thyrotropin-releasing hormone receptor OS=Homo sapiens OX=9606 GN=TRHR PE=1 SV=1 | C9: 0.5510428 | D9: 0.8102952 | E9: 292 | F9: Platynereis_Allatotropin_receptor2 35 | G9: 0.5849008 | H9: 0.81976396 | I9: 309 | J9: TRINITY_DN52346_c0_g1_i1.p1 TRINITY_DN52346_c0_g1~~TRINITY_DN52346_c0_g1_i1.p1 ORF type:complete len:311 (-),score=6.79,sp|Q9Y5Y3|GPR45_HUMAN|22.468|2.32e-12,7tm_1|PF00001.22|1.7e-29 TRINITY_DN52346_c0_g1_i1:691-1623(-) | K9: 0.9348382 | L9: 0.3050854 | N9: Human ID 147 | O9: Cladonema ID 389 | P9: 1.3e-60
A10: 7 | B10: sp|P04000|OPSR_HUMAN Long-wave-sensitive opsin 1 OS=Homo sapiens OX=9606 GN=OPN1LW PE=1 SV=1 | C10: 0.709705 | D10: 0.2677948 | E10: 293 | F10: Platynereis_Excitatory_peptide_receptor1 36 | G10: 0.65334207 | H10: 0.8448041 | I10: 310 | J10: TRINITY_DN52459_c0_g1_i2.p1 TRINITY_DN52459_c0_g1~~TRINITY_DN52459_c0_g1_i2.p1 ORF type:5prime_partial len:367 (+),score=10.84,sp|Q9VCZ3|OCTB1_DROME|32.051|2.46e-39,7tm_1|PF00001.22|4.3e-52,7TM_GPCR_Srsx|PF10320.10|1.5e-10 TRINITY_DN52459_c0_g1_i2:1-1101(+) | K10: 0.5218291 | L10: 0.48296115 | N10: Human ID 196 | O10: Cladonema ID 389 | P10: 6.9e-45
A11: 8 | B11: sp|P55085|PAR2_HUMAN Proteinase-activated receptor 2 OS=Homo sapiens OX=9606 GN=F2RL1 PE=1 SV=1 | C11: 0.6555328 | D11: 0.5614756 | E11: 294 | F11: Platynereis_Elevenin_receptor2 37 | G11: 0.5999285 | H11: 0.8063297 | I11: 311 | J11: TRINITY_DN52492_c2_g1_i10.p2 TRINITY_DN52492_c2_g1~~TRINITY_DN52492_c2_g1_i10.p2 ORF type:3prime_partial len:170 (-),score=23.07,7tm_1|PF00001.22|6e-16 TRINITY_DN52492_c2_g1_i10:3-509(-) | K11: 0.16716257 | L11: 0.19122078 | N11: Human ID 199 | O11: Cladonema ID 389 | P11: 4.8e-58
A12: 9 | B12: sp|O00254|PAR3_HUMAN Proteinase-activated receptor 3 OS=Homo sapiens OX=9606 GN=F2RL2 PE=1 SV=1 | C12: 0.65478635 | D12: 0.5436163 | E12: 295 | F12: Platynereis_RGWamide_receptor1 38 | G12: 0.24092762 | H12: 0.252444 | I12: 312 | J12: TRINITY_DN52492_c2_g1_i11.p2 TRINITY_DN52492_c2_g1~~TRINITY_DN52492_c2_g1_i11.p2 ORF type:3prime_partial len:173 (-),score=21.36,7tm_1|PF00001.22|1.6e-17 TRINITY_DN52492_c2_g1_i11:3-518(-) | K12: 0.1708029 | L12: 0.18411113 | N12: Human ID 210 | O12: Cladonema ID 389 | P12: 2.7e-58
A13: 10 | B13: sp|Q8NFJ6|PKR2_HUMAN Prokineticin receptor 2 OS=Homo sapiens OX=9606 GN=PROKR2 PE=1 SV=1 | C13: 0.507751 | D13: 0.88197863 | E13: 296 | F13: Platynereis_FMRFamide_recptor1 39 | G13: 0.5678593 | H13: 0.8279312 | I13: 313 | J13: TRINITY_DN52492_c2_g1_i13.p2 TRINITY_DN52492_c2_g1~~TRINITY_DN52492_c2_g1_i13.p2 ORF type:internal len:191 (-),score=19.82,7tm_1|PF00001.22|5e-16 TRINITY_DN52492_c2_g1_i13:2-571(-) | K13: 0.1701502 | L13: 0.19265522 | N13: Human ID 66 | O13: Cladonema ID 521 | P13: 6e-65
A14: 11 | B14: sp|P21453|S1PR1_HUMAN Sphingosine 1-phosphate receptor 1 OS=Homo sapiens OX=9606 GN=S1PR1 PE=1 SV=2 | C14: 0.8842147 | D14: 0.70005316 | E14: 297 | F14: Platynereis_FLamide_receptor1 40 | G14: 0.6231544 | H14: 0.7951106 | I14: 314 | J14: TRINITY_DN52492_c2_g1_i14.p1 TRINITY_DN52492_c2_g1~~TRINITY_DN52492_c2_g1_i14.p1 ORF type:internal len:188 (-),score=9.63,7tm_1|PF00001.22|1.7e-15 TRINITY_DN52492_c2_g1_i14:2-562(-) | K14: 0.1809815 | L14: 0.18767148 | N14: Human ID 69 | O14: Cladonema ID 521 | P14: 1.2e-41
A15: 12 | B15: sp|O95136|S1PR2_HUMAN Sphingosine 1-phosphate receptor 2 OS=Homo sapiens OX=9606 GN=S1PR2 PE=1 SV=2 | C15: 0.8820534 | D15: 0.6925125 | E15: 298 | F15: Platynereis_Allatostatin-A_receptor1 41 | G15: 0.6408534 | H15: 0.79940015 | I15: 315 | J15: TRINITY_DN52492_c2_g1_i3.p1 TRINITY_DN52492_c2_g1~~TRINITY_DN52492_c2_g1_i3.p1 ORF type:internal len:148 (-),score=7.27,7tm_1|PF00001.22|4.4e-16 TRINITY_DN52492_c2_g1_i3:3-443(-) | K15: 0.17555189 | L15: 0.19521488 | N15: Human ID 66 | O15: Cladonema ID 522 | P15: 2.4e-60
A16: 13 | B16: sp|P48039|MTR1A_HUMAN Melatonin receptor type 1A OS=Homo sapiens OX=9606 GN=MTNR1A PE=1 SV=1 | C16: 0.058644716 | D16: 0.6674159 | E16: 299 | F16: Platynereis_Achatin_receptor1 42 | G16: 0.76127845 | H16: 0.59570175 | I16: 316 | J16: TRINITY_DN52492_c2_g1_i7.p2 TRINITY_DN52492_c2_g1~~TRINITY_DN52492_c2_g1_i7.p2 ORF type:internal len:103 (-),score=4.02,7tm_1|PF00001.22|1.1e-10 TRINITY_DN52492_c2_g1_i7:2-307(-) | K16: 0.17272379 | L16: 0.18919413 | N16: Human ID 69 | O16: Cladonema ID 522 | P16: 5.9e-42
A17: 14 | B17: sp|Q99500|S1PR3_HUMAN Sphingosine 1-phosphate receptor 3 OS=Homo sapiens OX=9606 GN=S1PR3 PE=1 SV=2 | C17: 0.8777477 | D17: 0.69805247 | E17: 300 | F17: Platynereis_NPY-4_receptor1 43 | G17: 0.23208334 | H17: 0.26185903 | I17: 317 | J17: TRINITY_DN52492_c2_g1_i9.p1 TRINITY_DN52492_c2_g1~~TRINITY_DN52492_c2_g1_i9.p1 ORF type:3prime_partial len:209 (-),score=24.78,7tm_1|PF00001.22|3.1e-13 TRINITY_DN52492_c2_g1_i9:2-625(-) | K17: 0.17780094 | L17: 0.18759727 | N17: Human ID 158 | O17: Cladonema ID 641 | P17: 2e-62
A18: 15 | B18: sp|O43613|OX1R_HUMAN Orexin receptor type 1 OS=Homo sapiens OX=9606 GN=HCRTR1 PE=1 SV=2 | C18: 0.58367616 | D18: 0.8287007 | E18: 301 | F18: Platynereis_DH31-like_receptor2 44 | G18: 0.63186145 | H18: 0.8007445 | I18: 318 | J18: TRINITY_DN52711_c0_g1_i1.p1 TRINITY_DN52711_c0_g1~~TRINITY_DN52711_c0_g1_i1.p1 ORF type:5prime_partial len:270 (+),score=20.57,7tm_1|PF00001.22|6e-12 TRINITY_DN52711_c0_g1_i1:3-812(+) | K18: 0.83579147 | L18: 0.14082718 | N18: Human ID 283 | O18: Cladonema ID 641 | P18: 2.4e-63
A19: 16 | B19: sp|P47804|RGR_HUMAN RPE-retinal G protein-coupled receptor OS=Homo sapiens OX=9606 GN=RGR PE=1 SV=1 | C19: 0.8912621 | D19: 0.2803179 | E19: 302 | F19: Platynereis_EFLGamide_receptor1 45 | G19: 0.5364213 | H19: 0.80637425 | I19: 319 | J19: TRINITY_DN10652_c0_g1_i1.p1 TRINITY_DN10652_c0_g1~~TRINITY_DN10652_c0_g1_i1.p1 ORF type:internal len:177 (-),score=13.29,7tm_1|PF00001.22|1.4e-11 TRINITY_DN10652_c0_g1_i1:1-528(-) | K19: 0.017099516 | L19: 0.5611421 | N19: Human ID 85 | O19: Cladonema ID 794 | P19: 8.6e-99
A20: 17 | B20: sp|P29371|NK3R_HUMAN Neuromedin-K receptor OS=Homo sapiens OX=9606 GN=TACR3 PE=1 SV=1 | C20: 0.55624604 | D20: 0.82129556 | I20: 320 | J20: TRINITY_DN12804_c0_g1_i1.p1 TRINITY_DN12804_c0_g1~~TRINITY_DN12804_c0_g1_i1.p1 ORF type:3prime_partial len:149 (-),score=2.12,7tm_1|PF00001.22|3.3e-14 TRINITY_DN12804_c0_g1_i1:2-445(-) | K20: 0.57730824 | L20: 0.065480076 | N20: Human ID 249 | O20: Cladonema ID 794 | P20: 6.9e-102
A21: 18 | B21: sp|P08100|OPSD_HUMAN Rhodopsin OS=Homo sapiens OX=9606 GN=RHO PE=1 SV=1 | C21: 0.7135179 | D21: 0.26386842 | I21: 321 | J21: TRINITY_DN14143_c0_g1_i1.p1 TRINITY_DN14143_c0_g1~~TRINITY_DN14143_c0_g1_i1.p1 ORF type:internal len:231 (-),score=-2.13 TRINITY_DN14143_c0_g1_i1:3-692(-) | K21: 0.3153888 | L21: 0.76873386 | N21: Human ID 263 | O21: Cladonema ID 794 | P21: 8.6e-89
A22: 19 | B22: sp|Q9H244|P2Y12_HUMAN P2Y purinoceptor 12 OS=Homo sapiens OX=9606 GN=P2RY12 PE=1 SV=1 | C22: 0.53562886 | D22: 0.4627185 | I22: 322 | J22: TRINITY_DN15182_c0_g1_i1.p1 TRINITY_DN15182_c0_g1~~TRINITY_DN15182_c0_g1_i1.p1 ORF type:internal len:132 (+),score=0.55,sp|Q9Y5X5|NPFF2_HUMAN|39.496|9.75e-15,7tm_1|PF00001.22|6.9e-14 TRINITY_DN15182_c0_g1_i1:3-395(+) | K22: 0.011786356 | L22: 0.41145787 | N22: Human ID 276 | O22: Cladonema ID 794 | P22: 4.2e-106
A23: 20 | B23: sp|Q8IYL9|PSYR_HUMAN Psychosine receptor OS=Homo sapiens OX=9606 GN=GPR65 PE=1 SV=1 | C23: 0.63583165 | D23: 0.5838178 | I23: 323 | J23: TRINITY_DN1953_c0_g1_i1.p1 TRINITY_DN1953_c0_g1~~TRINITY_DN1953_c0_g1_i1.p1 ORF type:5prime_partial len:168 (-),score=3.42 TRINITY_DN1953_c0_g1_i1:64-567(-) | K23: 0.9865338 | L23: 0.5342404 | N23: Human ID 5 | O23: Cladonema ID 795 | P23: 8.8e-47
A24: 21 | B24: sp|P43115|PE2R3_HUMAN Prostaglandin E2 receptor EP3 subtype OS=Homo sapiens OX=9606 GN=PTGER3 PE=1 SV=1 | C24: 0.14024886 | D24: 0.28847647 | I24: 324 | J24: TRINITY_DN23256_c0_g1_i1.p1 TRINITY_DN23256_c0_g1~~TRINITY_DN23256_c0_g1_i1.p1 ORF type:internal len:157 (+),score=4.38,sp|Q8IS44|DRD2L_DROME|38.462|6.73e-18,7tm_1|PF00001.22|6.1e-26 TRINITY_DN23256_c0_g1_i1:3-470(+) | K24: 0.4789561 | L24: 0.73582125 | N24: Human ID 85 | O24: Cladonema ID 795 | P24: 1.4e-96
A25: 22 | B25: sp|P35372|OPRM_HUMAN Mu-type opioid receptor OS=Homo sapiens OX=9606 GN=OPRM1 PE=1 SV=2 | C25: 0.64109486 | D25: 0.76355463 | I25: 325 | J25: TRINITY_DN25024_c0_g1_i1.p1 TRINITY_DN25024_c0_g1~~TRINITY_DN25024_c0_g1_i1.p1 ORF type:complete len:422 (-),score=16.61,sp|P15823|ADA1B_RAT|26.954|1.48e-20,7tm_1|PF00001.22|1.2e-40,7TM_GPCR_Srsx|PF10320.10|2.3e-10 TRINITY_DN25024_c0_g1_i1:155-1420(-) | K25: 0.73014265 | L25: 0.61907035 | N25: Human ID 105 | O25: Cladonema ID 795 | P25: 3.6e-47
A26: 23 | B26: sp|P43119|PI2R_HUMAN Prostacyclin receptor OS=Homo sapiens OX=9606 GN=PTGIR PE=1 SV=1 | C26: 0.24690509 | D26: 0.7755494 | I26: 326 | J26: TRINITY_DN26957_c0_g1_i1.p1 TRINITY_DN26957_c0_g1~~TRINITY_DN26957_c0_g1_i1.p1 ORF type:complete len:374 (+),score=15.06,sp|Q9JHG3|APJ_RAT|26.380|1.28e-11,7tm_1|PF00001.22|1.8e-26 TRINITY_DN26957_c0_g1_i1:106-1227(+) | K26: 0.4991966 | L26: 0.50188 | N26: Human ID 249 | O26: Cladonema ID 795 | P26: 2e-99
A27: 24 | B27: sp|P35408|PE2R4_HUMAN Prostaglandin E2 receptor EP4 subtype OS=Homo sapiens OX=9606 GN=PTGER4 PE=1 SV=1 | C27: 0.24964112 | D27: 0.7786294 | I27: 327 | J27: TRINITY_DN28360_c0_g1_i1.p1 TRINITY_DN28360_c0_g1~~TRINITY_DN28360_c0_g1_i1.p1 ORF type:3prime_partial len:351 (+),score=15.51,7tm_1|PF00001.22|1.6e-16 TRINITY_DN28360_c0_g1_i1:363-1412(+) | K27: 0.7818132 | L27: 0.65016866 | N27: Human ID 263 | O27: Cladonema ID 795 | P27: 2.4e-51
A28: 25 | B28: sp|P49683|PRLHR_HUMAN Prolactin-releasing peptide receptor OS=Homo sapiens OX=9606 GN=PRLHR PE=1 SV=3 | C28: 0.57263255 | D28: 0.8387958 | I28: 328 | J28: TRINITY_DN36788_c0_g1_i1.p1 TRINITY_DN36788_c0_g1~~TRINITY_DN36788_c0_g1_i1.p1 ORF type:internal len:104 (+),score=5.34 TRINITY_DN36788_c0_g1_i1:1-309(+) | K28: 0.8761916 | L28: 0.2368588 | N28: Human ID 276 | O28: Cladonema ID 795 | P28: 3.9e-99
A29: 26 | B29: sp|P46094|XCR1_HUMAN Chemokine XC receptor 1 OS=Homo sapiens OX=9606 GN=XCR1 PE=1 SV=1 | C29: 0.6535281 | D29: 0.7090031 | I29: 329 | J29: TRINITY_DN38660_c0_g1_i1.p1 TRINITY_DN38660_c0_g1~~TRINITY_DN38660_c0_g1_i1.p1 ORF type:internal len:124 (+),score=12.35 TRINITY_DN38660_c0_g1_i1:1-369(+) | K29: 0.70148426 | L29: 0.31448326 | N29: Human ID 85 | O29: Cladonema ID 796 | P29: 8e-54
A30: 27 | B30: sp|Q9P1P5|TAAR2_HUMAN Trace amine-associated receptor 2 OS=Homo sapiens OX=9606 GN=TAAR2 PE=2 SV=2 | C30: 0.44784343 | D30: 0.4779218 | I30: 330 | J30: TRINITY_DN38682_c0_g1_i1.p1 TRINITY_DN38682_c0_g1~~TRINITY_DN38682_c0_g1_i1.p1 ORF type:complete len:440 (-),score=19.92,sp|P28334|5HT1B_MOUSE|28.152|7.98e-30,7tm_1|PF00001.22|3.5e-42 TRINITY_DN38682_c0_g1_i1:193-1512(-) | K30: 0.54798645 | L30: 0.24465536 | N30: Human ID 249 | O30: Cladonema ID 796 | P30: 5.6e-50
A31: 28 | B31: sp|P29275|AA2BR_HUMAN Adenosine receptor A2b OS=Homo sapiens OX=9606 GN=ADORA2B PE=1 SV=1 | C31: 0.048138805 | D31: 0.49066567 | I31: 331 | J31: TRINITY_DN40464_c0_g1_i1.p1 TRINITY_DN40464_c0_g1~~TRINITY_DN40464_c0_g1_i1.p1 ORF type:internal len:133 (+),score=16.48,7tm_1|PF00001.22|4.3e-16 TRINITY_DN40464_c0_g1_i1:3-398(+) | K31: 0.097602606 | L31: 0.7730919 | N31: Human ID 276 | O31: Cladonema ID 796 | P31: 1.5e-55
A32: 29 | B32: sp|Q9P1P4|TAAR3_HUMAN Putative trace amine-associated receptor 3 OS=Homo sapiens OX=9606 GN=TAAR3P PE=5 SV=1 | C32: 0.44592777 | D32: 0.48418334 | I32: 332 | J32: TRINITY_DN40943_c0_g1_i1.p1 TRINITY_DN40943_c0_g1~~TRINITY_DN40943_c0_g1_i1.p1 ORF type:complete len:411 (-),score=21.73,7tm_1|PF00001.22|1.9e-15 TRINITY_DN40943_c0_g1_i1:132-1364(-) | K32: 0.11267346 | L32: 0.3144725 | N32: Human ID 85 | O32: Cladonema ID 827 | P32: 6.8e-105
A33: 30 | B33: sp|Q9BXC0|HCAR1_HUMAN Hydroxycarboxylic acid receptor 1 OS=Homo sapiens OX=9606 GN=HCAR1 PE=1 SV=1 | C33: 0.6978998 | D33: 0.45438716 | I33: 333 | J33: TRINITY_DN41007_c0_g1_i1.p1 TRINITY_DN41007_c0_g1~~TRINITY_DN41007_c0_g1_i1.p1 ORF type:3prime_partial len:284 (-),score=7.32,sp|P33534|OPRK_MOUSE|26.316|7.33e-12,7tm_1|PF00001.22|7.1e-26 TRINITY_DN41007_c0_g1_i1:3-851(-) | K33: 0.27688298 | L33: 0.92650884 | N33: Human ID 249 | O33: Cladonema ID 827 | P33: 5.1e-88
A34: 31 | B34: sp|Q96RI9|TAAR9_HUMAN Trace amine-associated receptor 9 OS=Homo sapiens OX=9606 GN=TAAR9 PE=1 SV=1 | C34: 0.44570085 | D34: 0.4746653 | I34: 334 | J34: TRINITY_DN41072_c0_g1_i2.p1 TRINITY_DN41072_c0_g1~~TRINITY_DN41072_c0_g1_i2.p1 ORF type:3prime_partial len:208 (+),score=11.16,sp|Q7JQF1|OAMB_DROME|37.681|3.93e-14,7tm_1|PF00001.22|1.4e-23 TRINITY_DN41072_c0_g1_i2:270-890(+) | K34: 0.28652173 | L34: 0.6573864 | N34: Human ID 276 | O34: Cladonema ID 827 | P34: 9.7e-89
A35: 32 | B35: sp|Q96P65|QRFPR_HUMAN Pyroglutamylated RF-amide peptide receptor OS=Homo sapiens OX=9606 GN=QRFPR PE=1 SV=2 | C35: 0.5887912 | D35: 0.8288818 | I35: 335 | J35: TRINITY_DN41525_c0_g1_i1.p1 TRINITY_DN41525_c0_g1~~TRINITY_DN41525_c0_g1_i1.p1 ORF type:complete len:497 (+),score=29.42,sp|P43141|ADB4C_MELGA|28.721|3.37e-28,7tm_1|PF00001.22|2e-48 TRINITY_DN41525_c0_g1_i1:78-1568(+) | K35: 0.56556237 | L35: 0.23690826 | N35: Pnatynereis ID 289 | O35: Cladonema ID 856 | P35: 4.2e-47
A36: 33 | B36: sp|O14626|GP171_HUMAN Probable G-protein coupled receptor 171 OS=Homo sapiens OX=9606 GN=GPR171 PE=2 SV=1 | C36: 0.5226586 | D36: 0.4523588 | I36: 336 | J36: TRINITY_DN41535_c0_g1_i1.p1 TRINITY_DN41535_c0_g1~~TRINITY_DN41535_c0_g1_i1.p1 ORF type:5prime_partial len:298 (+),score=10.62,7tm_1|PF00001.22|1.5e-22 TRINITY_DN41535_c0_g1_i1:3-896(+) | K36: 0.28348488 | L36: 0.68793714
A37: 34 | B37: sp|P43116|PE2R2_HUMAN Prostaglandin E2 receptor EP2 subtype OS=Homo sapiens OX=9606 GN=PTGER2 PE=2 SV=2 | C37: 0.2541987 | D37: 0.7698696 | I37: 337 | J37: TRINITY_DN42506_c0_g1_i1.p1 TRINITY_DN42506_c0_g1~~TRINITY_DN42506_c0_g1_i1.p1 ORF type:internal len:195 (-),score=1.51,7tm_1|PF00001.22|8e-15 TRINITY_DN42506_c0_g1_i1:3-584(-) | K37: 0.6386975 | L37: 0.36424568
A38: 35 | B38: sp|Q86VZ1|P2RY8_HUMAN P2Y purinoceptor 8 OS=Homo sapiens OX=9606 GN=P2RY8 PE=1 SV=1 | C38: 0.65921557 | D38: 0.5620219 | I38: 338 | J38: TRINITY_DN42565_c0_g1_i1.p1 TRINITY_DN42565_c0_g1~~TRINITY_DN42565_c0_g1_i1.p1 ORF type:3prime_partial len:291 (+),score=17.46,7tm_1|PF00001.22|5.7e-15 TRINITY_DN42565_c0_g1_i1:92-961(+) | K38: 0.14471827 | L38: 0.47969434
A39: 36 | B39: sp|P0DN77|OPSG2_HUMAN Medium-wave-sensitive opsin 2 OS=Homo sapiens OX=9606 GN=OPN1MW2 PE=3 SV=1 | C39: 0.7023771 | D39: 0.26656267 | I39: 339 | J39: TRINITY_DN43307_c0_g1_i1.p1 TRINITY_DN43307_c0_g1~~TRINITY_DN43307_c0_g1_i1.p1 ORF type:5prime_partial len:392 (+),score=38.30,7tm_1|PF00001.22|2.3e-12 TRINITY_DN43307_c0_g1_i1:3-1178(+) | K39: 0.5068388 | L39: 0.7174853
A40: 37 | B40: sp|Q96LB2|MRGX1_HUMAN Mas-related G-protein coupled receptor member X1 OS=Homo sapiens OX=9606 GN=MRGPRX1 PE=1 SV=1 | C40: 0.50089544 | D40: 0.34111258 | I40: 340 | J40: TRINITY_DN43505_c0_g1_i1.p1 TRINITY_DN43505_c0_g1~~TRINITY_DN43505_c0_g1_i1.p1 ORF type:3prime_partial len:309 (+),score=-3.17 TRINITY_DN43505_c0_g1_i1:37-960(+) | K40: 0.8480642 | L40: 0.6451387
A41: 38 | B41: sp|P48145|NPBW1_HUMAN Neuropeptides B/W receptor type 1 OS=Homo sapiens OX=9606 GN=NPBWR1 PE=1 SV=2 | C41: 0.64354604 | D41: 0.77129245 | I41: 341 | J41: TRINITY_DN44235_c0_g1_i1.p1 TRINITY_DN44235_c0_g1~~TRINITY_DN44235_c0_g1_i1.p1 ORF type:internal len:101 (-),score=14.75 TRINITY_DN44235_c0_g1_i1:2-301(-) | K41: 0.7044488 | L41: 0.20705454
A42: 39 | B42: sp|Q96CH1|GP146_HUMAN Probable G-protein coupled receptor 146 OS=Homo sapiens OX=9606 GN=GPR146 PE=2 SV=1 | C42: 0.57168776 | D42: 0.024866048 | I42: 342 | J42: TRINITY_DN44235_c0_g2_i1.p1 TRINITY_DN44235_c0_g2~~TRINITY_DN44235_c0_g2_i1.p1 ORF type:internal len:189 (-),score=18.28 TRINITY_DN44235_c0_g2_i1:2-565(-) | K42: 0.7089153 | L42: 0.19898051
A43: 40 | B43: sp|O43193|MTLR_HUMAN Motilin receptor OS=Homo sapiens OX=9606 GN=MLNR PE=2 SV=1 | C43: 0.598595 | D43: 0.74552363 | I43: 343 | J43: TRINITY_DN44371_c0_g1_i1.p1 TRINITY_DN44371_c0_g1~~TRINITY_DN44371_c0_g1_i1.p1 ORF type:5prime_partial len:311 (+),score=22.30,7tm_1|PF00001.22|7.2e-15 TRINITY_DN44371_c0_g1_i1:3-935(+) | K43: 0.9164409 | L43: 0.40967944
A44: 41 | B44: sp|Q8IZ08|GP135_HUMAN G-protein coupled receptor 135 OS=Homo sapiens OX=9606 GN=GPR135 PE=1 SV=2 | C44: 0.6811272 | D44: 0.2953463 | I44: 344 | J44: TRINITY_DN44371_c0_g1_i2.p1 TRINITY_DN44371_c0_g1~~TRINITY_DN44371_c0_g1_i2.p1 ORF type:internal len:243 (+),score=10.67 TRINITY_DN44371_c0_g1_i2:3-728(+) | K44: 0.91991186 | L44: 0.41167432
A45: 42 | B45: sp|Q96RJ0|TAAR1_HUMAN Trace amine-associated receptor 1 OS=Homo sapiens OX=9606 GN=TAAR1 PE=2 SV=1 | C45: 0.44042057 | D45: 0.46914685 | I45: 345 | J45: TRINITY_DN44501_c0_g1_i2.p2 TRINITY_DN44501_c0_g1~~TRINITY_DN44501_c0_g1_i2.p2 ORF type:5prime_partial len:103 (-),score=7.25 TRINITY_DN44501_c0_g1_i2:22-330(-) | K45: 0.21029368 | L45: 0.34163404
A46: 43 | B46: sp|Q9UKP6|UR2R_HUMAN Urotensin-2 receptor OS=Homo sapiens OX=9606 GN=UTS2R PE=1 SV=1 | C46: 0.6160385 | D46: 0.83131564 | I46: 346 | J46: TRINITY_DN44501_c0_g2_i1.p1 TRINITY_DN44501_c0_g2~~TRINITY_DN44501_c0_g2_i1.p1 ORF type:complete len:324 (+),score=24.56,sp|P50130|DRD1_PIG|25.397|4.43e-11,7tm_1|PF00001.22|2.6e-17 TRINITY_DN44501_c0_g2_i1:2-973(+) | K46: 0.77477914 | L46: 0.24068478
A47: 44 | B47: sp|Q8TDV2|GP148_HUMAN Probable G-protein coupled receptor 148 OS=Homo sapiens OX=9606 GN=GPR148 PE=1 SV=2 | C47: 0.69611734 | D47: 0.7959884 | I47: 347 | J47: TRINITY_DN44707_c0_g1_i1.p1 TRINITY_DN44707_c0_g1~~TRINITY_DN44707_c0_g1_i1.p1 ORF type:internal len:377 (-),score=17.10,sp|P17124|HRH2_CANLF|30.409|1.60e-35,7tm_1|PF00001.22|7.2e-50,7TM_GPCR_Srsx|PF10320.10|1.5e-13 TRINITY_DN44707_c0_g1_i1:2-1129(-) | K47: 0.1582216 | L47: 0.25295147
A48: 45 | B48: sp|Q9HBW0|LPAR2_HUMAN Lysophosphatidic acid receptor 2 OS=Homo sapiens OX=9606 GN=LPAR2 PE=1 SV=2 | C48: 0.8796106 | D48: 0.6978679 | I48: 348 | J48: TRINITY_DN45426_c0_g1_i1.p1 TRINITY_DN45426_c0_g1~~TRINITY_DN45426_c0_g1_i1.p1 ORF type:3prime_partial len:312 (-),score=30.86 TRINITY_DN45426_c0_g1_i1:2-934(-) | K48: 0.71644557 | L48: 0.16588987
A49: 46 | B49: sp|Q13585|MTR1L_HUMAN Melatonin-related receptor OS=Homo sapiens OX=9606 GN=GPR50 PE=1 SV=3 | C49: 0.057659827 | D49: 0.66123843 | I49: 349 | J49: TRINITY_DN46572_c0_g1_i1.p1 TRINITY_DN46572_c0_g1~~TRINITY_DN46572_c0_g1_i1.p1 ORF type:internal len:413 (-),score=31.61,7tm_1|PF00001.22|2.9e-22 TRINITY_DN46572_c0_g1_i1:3-1238(-) | K49: 0.43279737 | L49: 0.6863125
A50: 47 | B50: sp|Q9Y5Y4|PD2R2_HUMAN Prostaglandin D2 receptor 2 OS=Homo sapiens OX=9606 GN=PTGDR2 PE=1 SV=3 | C50: 0.730381 | D50: 0.7769981 | I50: 350 | J50: TRINITY_DN46575_c0_g1_i1.p1 TRINITY_DN46575_c0_g1~~TRINITY_DN46575_c0_g1_i1.p1 ORF type:complete len:303 (-),score=29.30,sp|Q769E8|OPSD_OTOCR|31.142|1.93e-24,7tm_1|PF00001.22|1.4e-30 TRINITY_DN46575_c0_g1_i1:167-1075(-) | K50: 0.7617082 | L50: 0.5013152
A51: 48 | B51: sp|Q96G91|P2Y11_HUMAN P2Y purinoceptor 11 OS=Homo sapiens OX=9606 GN=P2RY11 PE=2 SV=2 | C51: 0.6809431 | D51: 0.5206656 | I51: 351 | J51: TRINITY_DN47184_c0_g1_i1.p1 TRINITY_DN47184_c0_g1~~TRINITY_DN47184_c0_g1_i1.p1 ORF type:internal len:144 (+),score=0.42,sp|O13018|OPSO_SALSA|28.671|3.11e-13,7tm_1|PF00001.22|6.6e-11 TRINITY_DN47184_c0_g1_i1:2-430(+) | K51: 0.70858777 | L51: 0.50736946
A52: 49 | B52: sp|Q15077|P2RY6_HUMAN P2Y purinoceptor 6 OS=Homo sapiens OX=9606 GN=P2RY6 PE=1 SV=1 | C52: 0.6589502 | D52: 0.5789742 | I52: 352 | J52: TRINITY_DN47200_c0_g1_i1.p1 TRINITY_DN47200_c0_g1~~TRINITY_DN47200_c0_g1_i1.p1 ORF type:5prime_partial len:389 (+),score=0.21,sp|P30974|TLR1_DROME|28.477|5.41e-25,7tm_1|PF00001.22|1.2e-38 TRINITY_DN47200_c0_g1_i1:2-1168(+) | K52: 0.5654709 | L52: 0.8411424
A53: 50 | B53: sp|Q01726|MSHR_HUMAN Melanocyte-stimulating hormone receptor OS=Homo sapiens OX=9606 GN=MC1R PE=1 SV=2 | C53: 0.27204347 | D53: 0.19518036 | I53: 353 | J53: TRINITY_DN47262_c0_g2_i1.p1 TRINITY_DN47262_c0_g2~~TRINITY_DN47262_c0_g2_i1.p1 ORF type:5prime_partial len:204 (+),score=12.74,7tm_1|PF00001.22|1.2e-10 TRINITY_DN47262_c0_g2_i1:2-613(+) | K53: 0.40776664 | L53: 0.89216536
A54: 51 | B54: sp|Q8TDU9|RL3R2_HUMAN Relaxin-3 receptor 2 OS=Homo sapiens OX=9606 GN=RXFP4 PE=1 SV=1 | C54: 0.76306087 | D54: 0.73525053 | I54: 354 | J54: TRINITY_DN47664_c0_g1_i1.p1 TRINITY_DN47664_c0_g1~~TRINITY_DN47664_c0_g1_i1.p1 ORF type:5prime_partial len:279 (-),score=5.40,7tm_1|PF00001.22|1.1e-19 TRINITY_DN47664_c0_g1_i1:334-1170(-) | K54: 0.28466123 | L54: 0.3485328
A55: 52 | B55: sp|Q9GZN0|GPR88_HUMAN Probable G-protein coupled receptor 88 OS=Homo sapiens OX=9606 GN=GPR88 PE=2 SV=2 | C55: 0.99218714 | D55: 0.33651584 | I55: 355 | J55: TRINITY_DN47744_c0_g1_i1.p1 TRINITY_DN47744_c0_g1~~TRINITY_DN47744_c0_g1_i1.p1 ORF type:5prime_partial len:254 (+),score=12.43,7tm_1|PF00001.22|2.2e-17 TRINITY_DN47744_c0_g1_i1:2-763(+) | K55: 0.3509453 | L55: 0.91023684
A56: 53 | B56: sp|Q9BZJ7|GPR62_HUMAN G-protein coupled receptor 62 OS=Homo sapiens OX=9606 GN=GPR62 PE=1 SV=2 | C56: 0.2756854 | D56: 0.29433984 | I56: 356 | J56: TRINITY_DN48512_c0_g1_i1.p1 TRINITY_DN48512_c0_g1~~TRINITY_DN48512_c0_g1_i1.p1 ORF type:complete len:725 (+),score=100.62,sp|Q4U4D2|OPN4_PODSI|25.208|1.46e-16,7tm_1|PF00001.22|1.5e-31 TRINITY_DN48512_c0_g1_i1:57-2231(+) | K56: 0.30505842 | L56: 0.8603885
A57: 54 | B57: sp|P33032|MC5R_HUMAN Melanocortin receptor 5 OS=Homo sapiens OX=9606 GN=MC5R PE=1 SV=3 | C57: 0.2746252 | D57: 0.20302735 | I57: 357 | J57: TRINITY_DN48583_c0_g1_i1.p1 TRINITY_DN48583_c0_g1~~TRINITY_DN48583_c0_g1_i1.p1 ORF type:internal len:293 (-),score=-3.07,7tm_1|PF00001.22|1.9e-10 TRINITY_DN48583_c0_g1_i1:1-876(-) | K57: 0.25002798 | L57: 0.8319514
A58: 55 | B58: sp|P47901|V1BR_HUMAN Vasopressin V1b receptor OS=Homo sapiens OX=9606 GN=AVPR1B PE=2 SV=1 | C58: 0.23004362 | D58: 0.5013261 | I58: 358 | J58: TRINITY_DN49214_c0_g1_i1.p1 TRINITY_DN49214_c0_g1~~TRINITY_DN49214_c0_g1_i1.p1 ORF type:complete len:296 (-),score=20.21,sp|Q9W6A8|OP1S2_DANRE|29.861|2.91e-26,7tm_1|PF00001.22|7.6e-24 TRINITY_DN49214_c0_g1_i1:262-1149(-) | K58: 0.9172128 | L58: 0.3282062
A59: 56 | B59: sp|Q9BXA5|SUCR1_HUMAN Succinate receptor 1 OS=Homo sapiens OX=9606 GN=SUCNR1 PE=1 SV=2 | C59: 0.6789612 | D59: 0.5549323 | I59: 359 | J59: TRINITY_DN49214_c0_g1_i2.p1 TRINITY_DN49214_c0_g1~~TRINITY_DN49214_c0_g1_i2.p1 ORF type:3prime_partial len:243 (-),score=18.45,sp|Q9W6A8|OP1S2_DANRE|29.487|4.78e-18,7tm_1|PF00001.22|4.1e-21 TRINITY_DN49214_c0_g1_i2:2-727(-) | K59: 0.9111148 | L59: 0.32474312
A60: 57 | B60: sp|Q13258|PD2R_HUMAN Prostaglandin D2 receptor OS=Homo sapiens OX=9606 GN=PTGDR PE=2 SV=2 | C60: 0.25687736 | D60: 0.7789045 | I60: 360 | J60: TRINITY_DN49221_c0_g1_i1.p1 TRINITY_DN49221_c0_g1~~TRINITY_DN49221_c0_g1_i1.p1 ORF type:5prime_partial len:322 (+),score=42.23,sp|P41591|OPSD_ANOCA|30.693|5.83e-25,7tm_1|PF00001.22|3.9e-30 TRINITY_DN49221_c0_g1_i1:2-967(+) | K60: 0.7567131 | L60: 0.5038165
A61: 58 | B61: sp|Q7Z602|GP141_HUMAN Probable G-protein coupled receptor 141 OS=Homo sapiens OX=9606 GN=GPR141 PE=1 SV=1 | C61: 0.38364446 | D61: 0.73549306 | I61: 361 | J61: TRINITY_DN49347_c0_g1_i1.p1 TRINITY_DN49347_c0_g1~~TRINITY_DN49347_c0_g1_i1.p1 ORF type:5prime_partial len:401 (-),score=15.91,sp|O97661|OX1R_PIG|26.866|6.56e-30,7tm_1|PF00001.22|5.7e-39 TRINITY_DN49347_c0_g1_i1:52-1254(-) | K61: 0.6684579 | L61: 0.15767327
A62: 59 | B62: sp|Q96P88|GNRR2_HUMAN Putative gonadotropin-releasing hormone II receptor OS=Homo sapiens OX=9606 GN=GNRHR2 PE=5 SV=4 | C62: 0.8705685 | D62: 0.52052927 | I62: 362 | J62: TRINITY_DN49636_c0_g1_i1.p1 TRINITY_DN49636_c0_g1~~TRINITY_DN49636_c0_g1_i1.p1 ORF type:internal len:188 (-),score=-4.13,7tm_1|PF00001.22|9.8e-18 TRINITY_DN49636_c0_g1_i1:3-563(-) | K62: 0.08710895 | L62: 0.7080162
A63: 60 | B63: sp|Q9GZQ4|NMUR2_HUMAN Neuromedin-U receptor 2 OS=Homo sapiens OX=9606 GN=NMUR2 PE=1 SV=2 | C63: 0.6131496 | D63: 0.74677926 | I63: 363 | J63: TRINITY_DN49652_c0_g1_i1.p1 TRINITY_DN49652_c0_g1~~TRINITY_DN49652_c0_g1_i1.p1 ORF type:complete len:330 (-),score=19.50,7tm_1|PF00001.22|1.6e-11 TRINITY_DN49652_c0_g1_i1:42-1031(-) | K63: 0.48443723 | L63: 0.99960536
A64: 61 | B64: sp|P41146|OPRX_HUMAN Nociceptin receptor OS=Homo sapiens OX=9606 GN=OPRL1 PE=1 SV=1 | C64: 0.64040625 | D64: 0.77079827 | I64: 364 | J64: TRINITY_DN49657_c0_g1_i1.p1 TRINITY_DN49657_c0_g1~~TRINITY_DN49657_c0_g1_i1.p1 ORF type:complete len:327 (+),score=23.07,7tm_1|PF00001.22|7.5e-12 TRINITY_DN49657_c0_g1_i1:99-1079(+) | K64: 0.9194966 | L64: 0.4000994
A65: 62 | B65: sp|Q8TDS5|OXER1_HUMAN Oxoeicosanoid receptor 1 OS=Homo sapiens OX=9606 GN=OXER1 PE=1 SV=1 | C65: 0.7004021 | D65: 0.44933087 | I65: 365 | J65: TRINITY_DN50082_c0_g1_i1.p1 TRINITY_DN50082_c0_g1~~TRINITY_DN50082_c0_g1_i1.p1 ORF type:complete len:326 (+),score=18.02,sp|P18130|ADA1A_BOVIN|24.128|3.41e-17,7tm_1|PF00001.22|4.7e-37 TRINITY_DN50082_c0_g1_i1:48-1025(+) | K65: 0.3156063 | L65: 0.5978133
A66: 63 | B66: sp|P0DN78|OPSG3_HUMAN Medium-wave-sensitive opsin 3 OS=Homo sapiens OX=9606 GN=OPN1MW3 PE=3 SV=1 | C66: 0.7049063 | D66: 0.27241698 | I66: 366 | J66: TRINITY_DN50082_c0_g1_i2.p1 TRINITY_DN50082_c0_g1~~TRINITY_DN50082_c0_g1_i2.p1 ORF type:5prime_partial len:186 (+),score=9.04,sp|P46636|5HT1B_CRIGR|39.175|1.27e-12,7tm_1|PF00001.22|7.1e-16 TRINITY_DN50082_c0_g1_i2:3-560(+) | K66: 0.3107914 | L66: 0.60152406
A67: 64 | B67: sp|Q96LB1|MRGX2_HUMAN Mas-related G-protein coupled receptor member X2 OS=Homo sapiens OX=9606 GN=MRGPRX2 PE=1 SV=1 | C67: 0.5031895 | D67: 0.34678623 | I67: 367 | J67: TRINITY_DN50201_c0_g1_i1.p1 TRINITY_DN50201_c0_g1~~TRINITY_DN50201_c0_g1_i1.p1 ORF type:complete len:330 (+),score=18.20,sp|Q4LBB6|OCTB3_DROME|26.606|1.34e-14,7tm_1|PF00001.22|4.9e-30 TRINITY_DN50201_c0_g1_i1:81-1070(+) | K67: 0.7179283 | L67: 0.49909297
A68: 65 | B68: sp|Q9H1Y3|OPN3_HUMAN Opsin-3 OS=Homo sapiens OX=9606 GN=OPN3 PE=1 SV=1 | C68: 0.7248787 | D68: 0.25877693 | I68: 368 | J68: TRINITY_DN50251_c0_g1_i1.p1 TRINITY_DN50251_c0_g1~~TRINITY_DN50251_c0_g1_i1.p1 ORF type:5prime_partial len:308 (+),score=18.75,7tm_1|PF00001.22|1.3e-19 TRINITY_DN50251_c0_g1_i1:3-926(+) | K68: 0.21258447 | L68: 0.17538647
A69: 66 | B69: sp|Q9UHM6|OPN4_HUMAN Melanopsin OS=Homo sapiens OX=9606 GN=OPN4 PE=1 SV=1 | C69: 0.7610041 | D69: 0.2373991 | I69: 369 | J69: TRINITY_DN50255_c0_g1_i1.p1 TRINITY_DN50255_c0_g1~~TRINITY_DN50255_c0_g1_i1.p1 ORF type:complete len:291 (-),score=9.79,sp|E7F7V7|GAL2B_DANRE|28.000|2.09e-17,7tm_1|PF00001.22|4.6e-29 TRINITY_DN50255_c0_g1_i1:262-1134(-) | K69: 0.35305083 | L69: 0.06598594
A70: 67 | B70: sp|Q9BY21|GPR87_HUMAN G-protein coupled receptor 87 OS=Homo sapiens OX=9606 GN=GPR87 PE=2 SV=1 | C70: 0.53292847 | D70: 0.45337325 | I70: 370 | J70: TRINITY_DN50280_c0_g1_i1.p1 TRINITY_DN50280_c0_g1~~TRINITY_DN50280_c0_g1_i1.p1 ORF type:5prime_partial len:479 (+),score=72.84 TRINITY_DN50280_c0_g1_i1:3-1439(+) | K70: 0.2304603 | L70: 0.09994944
A71: 68 | B71: sp|P32249|GP183_HUMAN G-protein coupled receptor 183 OS=Homo sapiens OX=9606 GN=GPR183 PE=1 SV=3 | C71: 0.66430426 | D71: 0.6033706 | I71: 371 | J71: TRINITY_DN50785_c0_g1_i3.p1 TRINITY_DN50785_c0_g1~~TRINITY_DN50785_c0_g1_i3.p1 ORF type:5prime_partial len:302 (-),score=12.86,7tm_1|PF00001.22|1.8e-12 TRINITY_DN50785_c0_g1_i3:24-929(-) | K71: 0.89458036 | L71: 0.22383843
A72: 69 | B72: sp|O14718|OPSX_HUMAN Visual pigment-like receptor peropsin OS=Homo sapiens OX=9606 GN=RRH PE=1 SV=1 | C72: 0.7466779 | D72: 0.24580829 | I72: 372 | J72: TRINITY_DN50821_c0_g1_i1.p1 TRINITY_DN50821_c0_g1~~TRINITY_DN50821_c0_g1_i1.p1 ORF type:complete len:402 (-),score=6.75,sp|Q8HXX3|MC4R_MACFA|26.937|8.51e-18,7tm_1|PF00001.22|2.1e-29 TRINITY_DN50821_c0_g1_i1:147-1352(-) | K72: 0.29556775 | L72: 0.7020771
A73: 70 | B73: sp|Q9Y5X5|NPFF2_HUMAN Neuropeptide FF receptor 2 OS=Homo sapiens OX=9606 GN=NPFFR2 PE=1 SV=2 | C73: 0.57829416 | D73: 0.8312027 | I73: 373 | J73: TRINITY_DN50944_c0_g1_i1.p1 TRINITY_DN50944_c0_g1~~TRINITY_DN50944_c0_g1_i1.p1 ORF type:complete len:510 (+),score=41.49,sp|Q9EQD2|NPFF2_RAT|29.180|9.96e-31,7tm_1|PF00001.22|1.6e-42 TRINITY_DN50944_c0_g1_i1:88-1617(+) | K73: 0.19553384 | L73: 0.35976976
A74: 71 | B74: sp|Q9BPV8|P2Y13_HUMAN P2Y purinoceptor 13 OS=Homo sapiens OX=9606 GN=P2RY13 PE=1 SV=3 | C74: 0.5274547 | D74: 0.45646775 | I74: 374 | J74: TRINITY_DN51038_c0_g1_i1.p1 TRINITY_DN51038_c0_g1~~TRINITY_DN51038_c0_g1_i1.p1 ORF type:complete len:488 (-),score=53.61,sp|A1ZAX0|CCH1R_DROME|23.218|8.59e-18,7tm_1|PF00001.22|3.9e-30 TRINITY_DN51038_c0_g1_i1:136-1599(-) | K74: 0.11253102 | L74: 0.6132396
A75: 72 | B75: sp|Q99705|MCHR1_HUMAN Melanin-concentrating hormone receptor 1 OS=Homo sapiens OX=9606 GN=MCHR1 PE=1 SV=2 | C75: 0.65867394 | D75: 0.76878285 | I75: 375 | J75: TRINITY_DN51196_c1_g2_i1.p1 TRINITY_DN51196_c1_g2~~TRINITY_DN51196_c1_g2_i1.p1 ORF type:complete len:354 (+),score=14.88,7tm_1|PF00001.22|1.2e-10 TRINITY_DN51196_c1_g2_i1:69-1130(+) | K75: 0.116810806 | L75: 0.19246198
A76: 73 | B76: sp|Q96RI0|PAR4_HUMAN Proteinase-activated receptor 4 OS=Homo sapiens OX=9606 GN=F2RL3 PE=1 SV=3 | C76: 0.6631989 | D76: 0.54233456 | I76: 376 | J76: TRINITY_DN51281_c0_g1_i1.p1 TRINITY_DN51281_c0_g1~~TRINITY_DN51281_c0_g1_i1.p1 ORF type:complete len:322 (-),score=8.64,7tm_1|PF00001.22|4.1e-15 TRINITY_DN51281_c0_g1_i1:49-1014(-) | K76: 0.7152116 | L76: 0.73283523
A77: 74 | B77: sp|P34995|PE2R1_HUMAN Prostaglandin E2 receptor EP1 subtype OS=Homo sapiens OX=9606 GN=PTGER1 PE=2 SV=3 | C77: 0.12237708 | D77: 0.26915982 | I77: 377 | J77: TRINITY_DN51297_c0_g1_i1.p1 TRINITY_DN51297_c0_g1~~TRINITY_DN51297_c0_g1_i1.p1 ORF type:complete len:324 (+),score=-5.05,7tm_1|PF00001.22|1.3e-11 TRINITY_DN51297_c0_g1_i1:60-1031(+) | K77: 0.15972543 | L77: 0.4031277
A78: 75 | B78: sp|P25116|PAR1_HUMAN Proteinase-activated receptor 1 OS=Homo sapiens OX=9606 GN=F2R PE=1 SV=2 | C78: 0.65704846 | D78: 0.5718496 | I78: 378 | J78: TRINITY_DN51404_c0_g1_i1.p1 TRINITY_DN51404_c0_g1~~TRINITY_DN51404_c0_g1_i1.p1 ORF type:5prime_partial len:285 (-),score=19.41,sp|P51476|OPSP_COLLI|31.132|2.95e-24,7tm_1|PF00001.22|1.2e-15 TRINITY_DN51404_c0_g1_i1:186-1040(-) | K78: 0.5608459 | L78: 0.5892318
A79: 76 | B79: sp|Q9NPC1|LT4R2_HUMAN Leukotriene B4 receptor 2 OS=Homo sapiens OX=9606 GN=LTB4R2 PE=2 SV=2 | C79: 0.38071796 | D79: 0.66211975 | I79: 379 | J79: TRINITY_DN51404_c0_g3_i1.p1 TRINITY_DN51404_c0_g3~~TRINITY_DN51404_c0_g3_i1.p1 ORF type:complete len:106 (-),score=18.19 TRINITY_DN51404_c0_g3_i1:108-425(-) | K79: 0.5048912 | L79: 0.9332624
A80: 77 | B80: sp|P30989|NTR1_HUMAN Neurotensin receptor type 1 OS=Homo sapiens OX=9606 GN=NTSR1 PE=1 SV=2 | C80: 0.62080705 | D80: 0.7331255 | I80: 380 | J80: TRINITY_DN51438_c0_g1_i1.p1 TRINITY_DN51438_c0_g1~~TRINITY_DN51438_c0_g1_i1.p1 ORF type:complete len:353 (+),score=29.32,7tm_1|PF00001.22|7e-15 TRINITY_DN51438_c0_g1_i1:157-1215(+) | K80: 0.34333223 | L80: 0.18296684
A81: 78 | B81: sp|Q6W5P4|NPSR1_HUMAN Neuropeptide S receptor OS=Homo sapiens OX=9606 GN=NPSR1 PE=1 SV=1 | C81: 0.24623938 | D81: 0.5016352 | I81: 381 | J81: TRINITY_DN51479_c0_g1_i1.p1 TRINITY_DN51479_c0_g1~~TRINITY_DN51479_c0_g1_i1.p1 ORF type:3prime_partial len:264 (+),score=5.31,7tm_1|PF00001.22|7e-15 TRINITY_DN51479_c0_g1_i1:170-958(+) | K81: 0.5596961 | L81: 1
A82: 79 | B82: sp|O95665|NTR2_HUMAN Neurotensin receptor type 2 OS=Homo sapiens OX=9606 GN=NTSR2 PE=1 SV=2 | C82: 0.6243276 | D82: 0.7194457 | I82: 382 | J82: TRINITY_DN51570_c0_g1_i1.p1 TRINITY_DN51570_c0_g1~~TRINITY_DN51570_c0_g1_i1.p1 ORF type:complete len:335 (+),score=8.97,sp|P30549|NK2R_MOUSE|24.848|2.87e-20,7tm_1|PF00001.22|1.1e-29 TRINITY_DN51570_c0_g1_i1:90-1094(+) | K82: 0.4189867 | L82: 0.44453692
A83: 80 | B83: sp|Q6U736|OPN5_HUMAN Opsin-5 OS=Homo sapiens OX=9606 GN=OPN5 PE=1 SV=3 | C83: 0.7495156 | D83: 0.24002819 | I83: 383 | J83: TRINITY_DN51589_c0_g1_i1.p1 TRINITY_DN51589_c0_g1~~TRINITY_DN51589_c0_g1_i1.p1 ORF type:complete len:315 (+),score=15.55,7tm_1|PF00001.22|5.3e-18 TRINITY_DN51589_c0_g1_i1:217-1161(+) | K83: 0.82346153 | L83: 0.3114608
A84: 81 | B84: sp|P43088|PF2R_HUMAN Prostaglandin F2-alpha receptor OS=Homo sapiens OX=9606 GN=PTGFR PE=1 SV=1 | C84: 0.12898083 | D84: 0.28066015 | I84: 384 | J84: TRINITY_DN51813_c1_g1_i1.p1 TRINITY_DN51813_c1_g1~~TRINITY_DN51813_c1_g1_i1.p1 ORF type:5prime_partial len:271 (+),score=14.36,7tm_1|PF00001.22|1.7e-11 TRINITY_DN51813_c1_g1_i1:2-814(+) | K84: 0.3378861 | L84: 0.1724245
A85: 82 | B85: sp|Q9NSD7|RL3R1_HUMAN Relaxin-3 receptor 1 OS=Homo sapiens OX=9606 GN=RXFP3 PE=1 SV=1 | C85: 0.72827387 | D85: 0.7374641 | I85: 385 | J85: TRINITY_DN51813_c1_g2_i1.p1 TRINITY_DN51813_c1_g2~~TRINITY_DN51813_c1_g2_i1.p1 ORF type:complete len:387 (+),score=18.20,7tm_1|PF00001.22|3.7e-14 TRINITY_DN51813_c1_g2_i1:453-1613(+) | K85: 0.33356473 | L85: 0.17852312
A86: 83 | B86: sp|P31391|SSR4_HUMAN Somatostatin receptor type 4 OS=Homo sapiens OX=9606 GN=SSTR4 PE=2 SV=2 | C86: 0.6467 | D86: 0.7640254 | I86: 386 | J86: TRINITY_DN51833_c0_g1_i1.p1 TRINITY_DN51833_c0_g1~~TRINITY_DN51833_c0_g1_i1.p1 ORF type:complete len:416 (+),score=17.86,sp|Q4LBB9|OCTB2_DROME|27.614|5.64e-26,7tm_1|PF00001.22|6.6e-41 TRINITY_DN51833_c0_g1_i1:80-1327(+) | K86: 0.6038467 | L86: 0.2236915
A87: 84 | B87: sp|P37288|V1AR_HUMAN Vasopressin V1a receptor OS=Homo sapiens OX=9606 GN=AVPR1A PE=1 SV=1 | C87: 0.22566837 | D87: 0.4962136 | I87: 387 | J87: TRINITY_DN51855_c0_g1_i1.p1 TRINITY_DN51855_c0_g1~~TRINITY_DN51855_c0_g1_i1.p1 ORF type:3prime_partial len:262 (-),score=9.11,7tm_1|PF00001.22|7.9e-20 TRINITY_DN51855_c0_g1_i1:3-785(-) | K87: 0.24670985 | L87: 0.48335585
A88: 85 | B88: sp|P16473|TSHR_HUMAN Thyrotropin receptor OS=Homo sapiens OX=9606 GN=TSHR PE=1 SV=2 | C88: 0.83231187 | D88: 0.35290745 | I88: 388 | J88: TRINITY_DN51855_c0_g1_i2.p1 TRINITY_DN51855_c0_g1~~TRINITY_DN51855_c0_g1_i2.p1 ORF type:3prime_partial len:146 (-),score=14.24,7tm_1|PF00001.22|1.8e-14 TRINITY_DN51855_c0_g1_i2:3-437(-) | K88: 0.25703418 | L88: 0.48947954
A89: 86 | B89: sp|O14804|TAAR5_HUMAN Trace amine-associated receptor 5 OS=Homo sapiens OX=9606 GN=TAAR5 PE=2 SV=2 | C89: 0.45148662 | D89: 0.48029748 | I89: 389 | J89: TRINITY_DN51857_c0_g1_i1.p1 TRINITY_DN51857_c0_g1~~TRINITY_DN51857_c0_g1_i1.p1 ORF type:complete len:444 (+),score=35.99,sp|P16395|ACM1_DROME|43.478|1.03e-60,sp|P16395|ACM1_DROME|41.000|8.11e-16,7tm_1|PF00001.22|2.3e-63 TRINITY_DN51857_c0_g1_i1:60-1391(+) | K89: 0.38852346 | L89: 0.38326412
A90: 87 | B90: sp|P41231|P2RY2_HUMAN P2Y purinoceptor 2 OS=Homo sapiens OX=9606 GN=P2RY2 PE=1 SV=4 | C90: 0.665758 | D90: 0.5831634 | I90: 390 | J90: TRINITY_DN51897_c0_g1_i1.p1 TRINITY_DN51897_c0_g1~~TRINITY_DN51897_c0_g1_i1.p1 ORF type:complete len:398 (-),score=17.27,sp|P18130|ADA1A_BOVIN|24.556|1.53e-27,7tm_1|PF00001.22|3.6e-40 TRINITY_DN51897_c0_g1_i1:209-1402(-) | K90: 0.8350121 | L90: 0.56404346
A91: 88 | B91: sp|O00398|P2Y10_HUMAN Putative P2Y purinoceptor 10 OS=Homo sapiens OX=9606 GN=P2RY10 PE=2 SV=1 | C91: 0.6347636 | D91: 0.59488165 | I91: 391 | J91: TRINITY_DN51996_c0_g1_i2.p1 TRINITY_DN51996_c0_g1~~TRINITY_DN51996_c0_g1_i2.p1 ORF type:5prime_partial len:285 (+),score=28.15 TRINITY_DN51996_c0_g1_i2:2-856(+) | K91: 0.64561516 | L91: 0.45095283
A92: 89 | B92: sp|O95977|S1PR4_HUMAN Sphingosine 1-phosphate receptor 4 OS=Homo sapiens OX=9606 GN=S1PR4 PE=1 SV=1 | C92: 0.88101643 | D92: 0.70596945 | I92: 392 | J92: TRINITY_DN51996_c0_g2_i1.p1 TRINITY_DN51996_c0_g2~~TRINITY_DN51996_c0_g2_i1.p1 ORF type:complete len:370 (+),score=25.26,7tm_1|PF00001.22|9.2e-14 TRINITY_DN51996_c0_g2_i1:46-1155(+) | K92: 0.7060236 | L92: 0.6490147
A93: 90 | B93: sp|P30559|OXYR_HUMAN Oxytocin receptor OS=Homo sapiens OX=9606 GN=OXTR PE=1 SV=2 | C93: 0.23301862 | D93: 0.4946503 | I93: 393 | J93: TRINITY_DN52023_c0_g1_i1.p1 TRINITY_DN52023_c0_g1~~TRINITY_DN52023_c0_g1_i1.p1 ORF type:complete len:315 (-),score=12.39 TRINITY_DN52023_c0_g1_i1:49-993(-) | K93: 0.32307303 | L93: 0.78755057
A94: 91 | B94: sp|P47900|P2RY1_HUMAN P2Y purinoceptor 1 OS=Homo sapiens OX=9606 GN=P2RY1 PE=1 SV=1 | C94: 0.6635706 | D94: 0.5645051 | I94: 394 | J94: TRINITY_DN52028_c0_g1_i1.p1 TRINITY_DN52028_c0_g1~~TRINITY_DN52028_c0_g1_i1.p1 ORF type:complete len:413 (-),score=19.04,sp|E7F7V7|GAL2B_DANRE|25.294|2.23e-17,7tm_1|PF00001.22|7e-25 TRINITY_DN52028_c0_g1_i1:252-1490(-) | K94: 0.54174685 | L94: 0.22184889
A95: 92 | B95: sp|P32745|SSR3_HUMAN Somatostatin receptor type 3 OS=Homo sapiens OX=9606 GN=SSTR3 PE=1 SV=1 | C95: 0.6474582 | D95: 0.7628718 | I95: 395 | J95: TRINITY_DN52102_c0_g1_i1.p1 TRINITY_DN52102_c0_g1~~TRINITY_DN52102_c0_g1_i1.p1 ORF type:complete len:386 (+),score=27.99,7tm_1|PF00001.22|1.1e-16 TRINITY_DN52102_c0_g1_i1:161-1318(+) | K95: 0.08571525 | L95: 0.6221282
A96: 93 | B96: sp|Q9H228|S1PR5_HUMAN Sphingosine 1-phosphate receptor 5 OS=Homo sapiens OX=9606 GN=S1PR5 PE=1 SV=1 | C96: 0.88556314 | D96: 0.6971804 | I96: 396 | J96: TRINITY_DN52108_c0_g1_i1.p1 TRINITY_DN52108_c0_g1~~TRINITY_DN52108_c0_g1_i1.p1 ORF type:complete len:399 (+),score=25.78,7tm_1|PF00001.22|3.8e-15 TRINITY_DN52108_c0_g1_i1:335-1531(+) | K96: 0.19238217 | L96: 0.5386741
A97: 94 | B97: sp|P35346|SSR5_HUMAN Somatostatin receptor type 5 OS=Homo sapiens OX=9606 GN=SSTR5 PE=1 SV=3 | C97: 0.6487293 | D97: 0.7671767 | I97: 397 | J97: TRINITY_DN52145_c0_g1_i1.p1 TRINITY_DN52145_c0_g1~~TRINITY_DN52145_c0_g1_i1.p1 ORF type:complete len:347 (+),score=1.79,sp|G3M4F8|OCTB2_CHISP|25.979|4.15e-19,7tm_1|PF00001.22|4.5e-33 TRINITY_DN52145_c0_g1_i1:289-1329(+) | K97: 0.6023545 | L97: 0.221827
A98: 95 | B98: sp|Q8TCW9|PKR1_HUMAN Prokineticin receptor 1 OS=Homo sapiens OX=9606 GN=PROKR1 PE=1 SV=1 | C98: 0.51045513 | D98: 0.88728243 | I98: 398 | J98: TRINITY_DN52163_c0_g1_i1.p1 TRINITY_DN52163_c0_g1~~TRINITY_DN52163_c0_g1_i1.p1 ORF type:complete len:265 (-),score=10.31 TRINITY_DN52163_c0_g1_i1:77-871(-) | K98: 0.89351416 | L98: 0.38921127
A99: 96 | B99: sp|P25105|PTAFR_HUMAN Platelet-activating factor receptor OS=Homo sapiens OX=9606 GN=PTAFR PE=1 SV=1 | C99: 0.62639993 | D99: 0.5700881 | I99: 399 | J99: TRINITY_DN52163_c0_g1_i2.p1 TRINITY_DN52163_c0_g1~~TRINITY_DN52163_c0_g1_i2.p1 ORF type:complete len:294 (-),score=6.97,sp|O42266|OPSP_ICTPU|25.362|4.34e-11,7tm_1|PF00001.22|3.7e-21 TRINITY_DN52163_c0_g1_i2:198-1079(-) | K99: 0.9021835 | L99: 0.39581358
A100: 97 | B100: sp|P30874|SSR2_HUMAN Somatostatin receptor type 2 OS=Homo sapiens OX=9606 GN=SSTR2 PE=1 SV=1 | C100: 0.6502087 | D100: 0.76841277 | I100: 400 | J100: TRINITY_DN52186_c0_g1_i1.p1 TRINITY_DN52186_c0_g1~~TRINITY_DN52186_c0_g1_i1.p1 ORF type:complete len:308 (-),score=12.33,sp|O35214|OPSX_MOUSE|27.723|3.43e-23,7tm_1|PF00001.22|6e-28 TRINITY_DN52186_c0_g1_i1:32-955(-) | K100: 0.7677119 | L100: 0.5079729
A101: 98 | B101: sp|Q15743|OGR1_HUMAN Ovarian cancer G-protein coupled receptor 1 OS=Homo sapiens OX=9606 GN=GPR68 PE=1 SV=1 | C101: 0.63224524 | D101: 0.5969172 | I101: 401 | J101: TRINITY_DN52201_c0_g1_i1.p1 TRINITY_DN52201_c0_g1~~TRINITY_DN52201_c0_g1_i1.p1 ORF type:complete len:392 (+),score=30.60,sp|P11617|AA2AR_CANLF|28.653|7.77e-31,7tm_1|PF00001.22|5e-36,7TM_GPCR_Srsx|PF10320.10|2.7e-13 TRINITY_DN52201_c0_g1_i1:65-1240(+) | K101: 0.18624601 | L101: 0.67145306
A102: 99 | B102: sp|P30872|SSR1_HUMAN Somatostatin receptor type 1 OS=Homo sapiens OX=9606 GN=SSTR1 PE=1 SV=1 | C102: 0.65006924 | D102: 0.7561909 | I102: 402 | J102: TRINITY_DN52230_c0_g1_i1.p1 TRINITY_DN52230_c0_g1~~TRINITY_DN52230_c0_g1_i1.p1 ORF type:complete len:353 (-),score=29.52,sp|Q4LBB9|OCTB2_DROME|25.970|1.21e-21,7tm_1|PF00001.22|5e-36 TRINITY_DN52230_c0_g1_i1:154-1212(-) | K102: 0.18733001 | L102: 0.61146116
A103: 100 | B103: sp|A6NFC9|OR2W5_HUMAN Putative olfactory receptor 2W5 pseudogene OS=Homo sapiens OX=9606 GN=OR2W5P PE=5 SV=1 | C103: 0.8852764 | D103: 0.54821366 | I103: 403 | J103: TRINITY_DN52230_c0_g2_i1.p1 TRINITY_DN52230_c0_g2~~TRINITY_DN52230_c0_g2_i1.p1 ORF type:complete len:223 (-),score=-11.84,7tm_1|PF00001.22|1.9e-20 TRINITY_DN52230_c0_g2_i1:681-1349(-) | K103: 0.1915446 | L103: 0.6183502
A104: 101 | B104: sp|P04001|OPSG_HUMAN Medium-wave-sensitive opsin 1 OS=Homo sapiens OX=9606 GN=OPN1MW PE=1 SV=1 | C104: 0.70551896 | D104: 0.26792225 | I104: 404 | J104: TRINITY_DN52235_c0_g1_i1.p1 TRINITY_DN52235_c0_g1~~TRINITY_DN52235_c0_g1_i1.p1 ORF type:complete len:338 (+),score=38.33,sp|P43141|ADB4C_MELGA|24.207|2.77e-17,7tm_1|PF00001.22|1.3e-22 TRINITY_DN52235_c0_g1_i1:545-1558(+) | K104: 0.7826097 | L104: 0.13745004
A105: 102 | B105: sp|P21731|TA2R_HUMAN Thromboxane A2 receptor OS=Homo sapiens OX=9606 GN=TBXA2R PE=1 SV=3 | C105: 0.12959823 | D105: 0.29413542 | I105: 405 | J105: TRINITY_DN52293_c0_g1_i1.p1 TRINITY_DN52293_c0_g1~~TRINITY_DN52293_c0_g1_i1.p1 ORF type:complete len:327 (+),score=14.09,7tm_1|PF00001.22|2.6e-11 TRINITY_DN52293_c0_g1_i1:101-1081(+) | K105: 0.75969684 | L105: 0.09815456
A106: 103 | B106: sp|Q86SM8|MRGRE_HUMAN Mas-related G-protein coupled receptor member E OS=Homo sapiens OX=9606 GN=MRGPRE PE=2 SV=3 | C106: 0.49117112 | D106: 0.3358501 | I106: 406 | J106: TRINITY_DN52293_c0_g1_i2.p1 TRINITY_DN52293_c0_g1~~TRINITY_DN52293_c0_g1_i2.p1 ORF type:complete len:322 (+),score=11.69,7tm_1|PF00001.22|1.9e-11 TRINITY_DN52293_c0_g1_i2:341-1306(+) | K106: 0.76618814 | L106: 0.094451554
A107: 104 | B107: sp|Q8TDS7|MRGRD_HUMAN Mas-related G-protein coupled receptor member D OS=Homo sapiens OX=9606 GN=MRGPRD PE=2 SV=1 | C107: 0.5044425 | D107: 0.33350727 | I107: 407 | J107: TRINITY_DN52293_c0_g1_i3.p1 TRINITY_DN52293_c0_g1~~TRINITY_DN52293_c0_g1_i3.p1 ORF type:complete len:328 (+),score=4.19,7tm_1|PF00001.22|2.6e-11 TRINITY_DN52293_c0_g1_i3:101-1084(+) | K107: 0.75868493 | L107: 0.091906965
A108: 105 | B108: sp|Q8WXD0|RXFP2_HUMAN Relaxin receptor 2 OS=Homo sapiens OX=9606 GN=RXFP2 PE=1 SV=1 | C108: 0.8370054 | D108: 0.3756144 | I108: 408 | J108: TRINITY_DN52293_c0_g1_i4.p1 TRINITY_DN52293_c0_g1~~TRINITY_DN52293_c0_g1_i4.p1 ORF type:complete len:323 (+),score=1.79,7tm_1|PF00001.22|1.9e-11 TRINITY_DN52293_c0_g1_i4:341-1309(+) | K108: 0.765273 | L108: 0.09384206
A109: 106 | B109: sp|P41143|OPRD_HUMAN Delta-type opioid receptor OS=Homo sapiens OX=9606 GN=OPRD1 PE=1 SV=4 | C109: 0.6443223 | D109: 0.7614852 | I109: 409 | J109: TRINITY_DN52373_c0_g1_i1.p1 TRINITY_DN52373_c0_g1~~TRINITY_DN52373_c0_g1_i1.p1 ORF type:complete len:350 (+),score=28.31,sp|P11617|AA2AR_CANLF|30.464|1.76e-29,7tm_1|PF00001.22|4e-37,7TM_GPCR_Srsx|PF10320.10|1.9e-15 TRINITY_DN52373_c0_g1_i1:134-1183(+) | K109: 0.18126968 | L109: 0.6721554
A110: 107 | B110: sp|P30518|V2R_HUMAN Vasopressin V2 receptor OS=Homo sapiens OX=9606 GN=AVPR2 PE=1 SV=1 | C110: 0.23210455 | D110: 0.49633768 | I110: 410 | J110: TRINITY_DN52414_c0_g1_i1.p1 TRINITY_DN52414_c0_g1~~TRINITY_DN52414_c0_g1_i1.p1 ORF type:5prime_partial len:328 (+),score=14.06,7tm_1|PF00001.22|1.6e-17 TRINITY_DN52414_c0_g1_i1:1-984(+) | K110: 0.63880354 | L110: 0.58921504
A111: 108 | B111: sp|Q969N4|TAAR8_HUMAN Trace amine-associated receptor 8 OS=Homo sapiens OX=9606 GN=TAAR8 PE=2 SV=1 | C111: 0.44515342 | D111: 0.48400503 | I111: 411 | J111: TRINITY_DN52427_c0_g1_i1.p1 TRINITY_DN52427_c0_g1~~TRINITY_DN52427_c0_g1_i1.p1 ORF type:complete len:373 (-),score=28.13,7tm_1|PF00001.22|6.2e-20 TRINITY_DN52427_c0_g1_i1:53-1171(-) | K111: 0.21214543 | L111: 0.45729432
A112: 109 | B112: sp|Q96RI8|TAAR6_HUMAN Trace amine-associated receptor 6 OS=Homo sapiens OX=9606 GN=TAAR6 PE=2 SV=1 | C112: 0.4412564 | D112: 0.47685286 | I112: 412 | J112: TRINITY_DN52434_c0_g1_i1.p1 TRINITY_DN52434_c0_g1~~TRINITY_DN52434_c0_g1_i1.p1 ORF type:complete len:339 (+),score=0.41,7tm_1|PF00001.22|5.8e-23 TRINITY_DN52434_c0_g1_i1:45-1061(+) | K112: 0.5682938 | L112: 0.9985354
A113: 110 | B113: sp|P08912|ACM5_HUMAN Muscarinic acetylcholine receptor M5 OS=Homo sapiens OX=9606 GN=CHRM5 PE=1 SV=2 | C113: 0.3783325 | D113: 0.36359105 | I113: 413 | J113: TRINITY_DN52502_c0_g1_i1.p1 TRINITY_DN52502_c0_g1~~TRINITY_DN52502_c0_g1_i1.p1 ORF type:complete len:357 (+),score=14.74,7tm_1|PF00001.22|1.4e-20 TRINITY_DN52502_c0_g1_i1:137-1207(+) | K113: 0.40229034 | L113: 0.77653044
A114: 111 | B114: sp|P46092|CCR10_HUMAN C-C chemokine receptor type 10 OS=Homo sapiens OX=9606 GN=CCR10 PE=1 SV=3 | C114: 0.64414245 | D114: 0.7214353 | I114: 414 | J114: TRINITY_DN52545_c0_g1_i1.p1 TRINITY_DN52545_c0_g1~~TRINITY_DN52545_c0_g1_i1.p1 ORF type:complete len:426 (-),score=15.24,sp|P49144|5HT1B_RABIT|27.171|3.22e-24,7tm_1|PF00001.22|1.8e-43 TRINITY_DN52545_c0_g1_i1:101-1378(-) | K114: 0.7295292 | L114: 0.6236322
A115: 112 | B115: sp|P21918|DRD5_HUMAN D(1B) dopamine receptor OS=Homo sapiens OX=9606 GN=DRD5 PE=1 SV=2 | C115: 0.43197885 | D115: 0.4418493 | I115: 415 | J115: TRINITY_DN52558_c0_g1_i1.p1 TRINITY_DN52558_c0_g1~~TRINITY_DN52558_c0_g1_i1.p1 ORF type:complete len:407 (-),score=15.69,sp|Q9JHG3|APJ_RAT|21.779|1.16e-12,7tm_1|PF00001.22|3.1e-21 TRINITY_DN52558_c0_g1_i1:57-1277(-) | K115: 0.45864907 | L115: 0.09027897
A116: 113 | B116: sp|Q9Y2T5|GPR52_HUMAN G-protein coupled receptor 52 OS=Homo sapiens OX=9606 GN=GPR52 PE=1 SV=2 | C116: 0.72183406 | D116: 0.8581823 | I116: 416 | J116: TRINITY_DN52619_c0_g1_i1.p1 TRINITY_DN52619_c0_g1~~TRINITY_DN52619_c0_g1_i1.p1 ORF type:complete len:334 (+),score=17.55 TRINITY_DN52619_c0_g1_i1:65-1066(+) | K116: 0.06556148 | L116: 0.29276583
A117: 114 | B117: sp|P30939|5HT1F_HUMAN 5-hydroxytryptamine receptor 1F OS=Homo sapiens OX=9606 GN=HTR1F PE=2 SV=1 | C117: 0.40870366 | D117: 0.43033084 | I117: 417 | J117: TRINITY_DN52671_c0_g1_i1.p1 TRINITY_DN52671_c0_g1~~TRINITY_DN52671_c0_g1_i1.p1 ORF type:complete len:430 (-),score=36.18,7tm_1|PF00001.22|2.5e-28 TRINITY_DN52671_c0_g1_i1:83-1372(-) | K117: 0.09516024 | L117: 0.61064345
A118: 115 | B118: sp|P46089|GPR3_HUMAN G-protein coupled receptor 3 OS=Homo sapiens OX=9606 GN=GPR3 PE=1 SV=1 | C118: 0.3351996 | D118: 0.47088328 | I118: 418 | J118: TRINITY_DN52677_c0_g1_i2.p1 TRINITY_DN52677_c0_g1~~TRINITY_DN52677_c0_g1_i2.p1 ORF type:complete len:358 (-),score=31.87,7tm_1|PF00001.22|2.7e-20 TRINITY_DN52677_c0_g1_i2:73-1146(-) | K118: 0.20915554 | L118: 0.4601174
A119: 116 | B119: sp|P34969|5HT7R_HUMAN 5-hydroxytryptamine receptor 7 OS=Homo sapiens OX=9606 GN=HTR7 PE=1 SV=2 | C119: 0.4156424 | D119: 0.440112 | I119: 419 | J119: TRINITY_DN52702_c0_g1_i2.p1 TRINITY_DN52702_c0_g1~~TRINITY_DN52702_c0_g1_i2.p1 ORF type:5prime_partial len:327 (+),score=25.87,7tm_1|PF00001.22|1.2e-10 TRINITY_DN52702_c0_g1_i2:3-983(+) | K119: 0.90874505 | L119: 0.44023865
A120: 117 | B120: sp|Q8TDU6|GPBAR_HUMAN G-protein coupled bile acid receptor 1 OS=Homo sapiens OX=9606 GN=GPBAR1 PE=1 SV=1 | C120: 0.40444946 | D120: 0.7550607 | I120: 420 | J120: TRINITY_DN52704_c2_g1_i1.p1 TRINITY_DN52704_c2_g1~~TRINITY_DN52704_c2_g1_i1.p1 ORF type:internal len:106 (-),score=8.66 TRINITY_DN52704_c2_g1_i1:3-317(-) | K120: 0.33283895 | L120: 0.9049664
A121: 118 | B121: sp|O15552|FFAR2_HUMAN Free fatty acid receptor 2 OS=Homo sapiens OX=9606 GN=FFAR2 PE=1 SV=1 | C121: 0.49308175 | D121: 0.045385133 | I121: 421 | J121: TRINITY_DN52704_c2_g2_i1.p1 TRINITY_DN52704_c2_g2~~TRINITY_DN52704_c2_g2_i1.p1 ORF type:5prime_partial len:167 (-),score=27.20 TRINITY_DN52704_c2_g2_i1:291-791(-) | K121: 0.90829104 | L121: 0.4283384
A122: 119 | B122: sp|O15354|GPR37_HUMAN Prosaposin receptor GPR37 OS=Homo sapiens OX=9606 GN=GPR37 PE=1 SV=2 | C122: 0.85198265 | D122: 0.5755323 | I122: 422 | J122: TRINITY_DN52704_c2_g2_i2.p1 TRINITY_DN52704_c2_g2~~TRINITY_DN52704_c2_g2_i2.p1 ORF type:complete len:331 (-),score=45.73 TRINITY_DN52704_c2_g2_i2:291-1283(-) | K122: 0.91358674 | L122: 0.4361038
A123: 120 | B123: sp|Q6DWJ6|GP139_HUMAN Probable G-protein coupled receptor 139 OS=Homo sapiens OX=9606 GN=GPR139 PE=2 SV=1 | C123: 0.52288526 | D123: 0.35520014 | I123: 423 | J123: TRINITY_DN52704_c2_g2_i3.p1 TRINITY_DN52704_c2_g2~~TRINITY_DN52704_c2_g2_i3.p1 ORF type:3prime_partial len:130 (-),score=15.87 TRINITY_DN52704_c2_g2_i3:2-388(-) | K123: 0.9299088 | L123: 0.4136738
A124: 121 | B124: sp|Q7Z601|GP142_HUMAN Probable G-protein coupled receptor 142 OS=Homo sapiens OX=9606 GN=GPR142 PE=2 SV=1 | C124: 0.5320308 | D124: 0.3566009 | I124: 424 | J124: TRINITY_DN52722_c0_g1_i1.p1 TRINITY_DN52722_c0_g1~~TRINITY_DN52722_c0_g1_i1.p1 ORF type:5prime_partial len:306 (+),score=3.99,7tm_1|PF00001.22|1.3e-13 TRINITY_DN52722_c0_g1_i1:3-920(+) | K124: 0.9091528 | L124: 0.40669057
A125: 122 | B125: sp|Q5NUL3|FFAR4_HUMAN Free fatty acid receptor 4 OS=Homo sapiens OX=9606 GN=FFAR4 PE=1 SV=3 | C125: 0.35276455 | D125: 0.6773421 | I125: 425 | J125: TRINITY_DN52722_c0_g1_i3.p1 TRINITY_DN52722_c0_g1~~TRINITY_DN52722_c0_g1_i3.p1 ORF type:5prime_partial len:309 (+),score=10.16,7tm_1|PF00001.22|6.9e-13 TRINITY_DN52722_c0_g1_i3:3-929(+) | K125: 0.9107531 | L125: 0.40384495
A126: 123 | B126: sp|P49238|CX3C1_HUMAN CX3C chemokine receptor 1 OS=Homo sapiens OX=9606 GN=CX3CR1 PE=1 SV=1 | C126: 0.654913 | D126: 0.7060551 | I126: 426 | J126: TRINITY_DN52722_c0_g1_i8.p1 TRINITY_DN52722_c0_g1~~TRINITY_DN52722_c0_g1_i8.p1 ORF type:5prime_partial len:288 (+),score=7.18,7tm_1|PF00001.22|3.7e-11 TRINITY_DN52722_c0_g1_i8:1-864(+) | K126: 0.91305226 | L126: 0.40159333
A127: 124 | B127: sp|P21462|FPR1_HUMAN fMet-Leu-Phe receptor OS=Homo sapiens OX=9606 GN=FPR1 PE=1 SV=3 | C127: 0.7204437 | D127: 0.7638593 | I127: 427 | J127: TRINITY_DN52776_c0_g1_i1.p1 TRINITY_DN52776_c0_g1~~TRINITY_DN52776_c0_g1_i1.p1 ORF type:complete len:403 (+),score=4.08,sp|F1R332|GAL2A_DANRE|26.056|4.27e-20,7tm_1|PF00001.22|1.3e-30 TRINITY_DN52776_c0_g1_i1:175-1383(+) | K127: 0.08655 | L127: 0.61389107
A128: 125 | B128: sp|Q99680|GPR22_HUMAN G-protein coupled receptor 22 OS=Homo sapiens OX=9606 GN=GPR22 PE=2 SV=2 | C128: 0.25143158 | D128: 0.08618535 | I128: 428 | J128: TRINITY_DN52800_c0_g1_i1.p1 TRINITY_DN52800_c0_g1~~TRINITY_DN52800_c0_g1_i1.p1 ORF type:complete len:485 (-),score=42.70,sp|A5A4K9|GHSR_RABIT|26.220|8.82e-18,7tm_1|PF00001.22|9e-33 TRINITY_DN52800_c0_g1_i1:412-1866(-) | K128: 0.10379425 | L128: 0.6093885
A129: 126 | B129: sp|Q9HC97|GPR35_HUMAN G-protein coupled receptor 35 OS=Homo sapiens OX=9606 GN=GPR35 PE=2 SV=4 | C129: 0.5956555 | D129: 0.5558182 | I129: 429 | J129: TRINITY_DN52858_c0_g1_i1.p1 TRINITY_DN52858_c0_g1~~TRINITY_DN52858_c0_g1_i1.p1 ORF type:complete len:311 (-),score=12.79,7tm_1|PF00001.22|3.5e-11 TRINITY_DN52858_c0_g1_i1:112-1044(-) | K129: 0.6381181 | L129: 0.74034965
A130: 127 | B130: sp|O14843|FFAR3_HUMAN Free fatty acid receptor 3 OS=Homo sapiens OX=9606 GN=FFAR3 PE=1 SV=1 | C130: 0.4843807 | D130: 0.043265194 | I130: 430 | J130: TRINITY_DN52860_c0_g1_i1.p1 TRINITY_DN52860_c0_g1~~TRINITY_DN52860_c0_g1_i1.p1 ORF type:complete len:419 (+),score=20.97,7tm_1|PF00001.22|2.5e-10 TRINITY_DN52860_c0_g1_i1:103-1359(+) | K130: 0.11370697 | L130: 0.32629922
A131: 128 | B131: sp|Q92847|GHSR_HUMAN Growth hormone secretagogue receptor type 1 OS=Homo sapiens OX=9606 GN=GHSR PE=1 SV=1 | C131: 0.6064124 | D131: 0.74514925 | I131: 431 | J131: TRINITY_DN52867_c0_g1_i1.p1 TRINITY_DN52867_c0_g1~~TRINITY_DN52867_c0_g1_i1.p1 ORF type:complete len:430 (-),score=29.06,sp|P22909|ADA2A_RAT|24.171|3.71e-33,7tm_1|PF00001.22|1.2e-49 TRINITY_DN52867_c0_g1_i1:50-1339(-) | K131: 0.6832326 | L131: 0.9900543
A132: 129 | B132: sp|O15529|GPR42_HUMAN G-protein coupled receptor 42 OS=Homo sapiens OX=9606 GN=GPR42 PE=1 SV=1 | C132: 0.48300835 | D132: 0.0452599 | I132: 432 | J132: TRINITY_DN52880_c0_g1_i1.p1 TRINITY_DN52880_c0_g1~~TRINITY_DN52880_c0_g1_i1.p1 ORF type:complete len:419 (-),score=8.47,sp|P25931|RYAR_DROME|25.846|7.04e-13,7tm_1|PF00001.22|9.7e-22 TRINITY_DN52880_c0_g1_i1:253-1509(-) | K132: 0.45802242 | L132: 0.086357005
A133: 130 | B133: sp|O00155|GPR25_HUMAN Probable G-protein coupled receptor 25 OS=Homo sapiens OX=9606 GN=GPR25 PE=1 SV=2 | C133: 0.7081828 | D133: 0.70180845 | I133: 433 | J133: TRINITY_DN52884_c0_g1_i1.p1 TRINITY_DN52884_c0_g1~~TRINITY_DN52884_c0_g1_i1.p1 ORF type:internal len:100 (-),score=7.60 TRINITY_DN52884_c0_g1_i1:1-297(-) | K133: 0.11705361 | L133: 0.3587795
A134: 131 | B134: sp|P07550|ADRB2_HUMAN Beta-2 adrenergic receptor OS=Homo sapiens OX=9606 GN=ADRB2 PE=1 SV=3 | C134: 0.42969355 | D134: 0.44979712 | I134: 434 | J134: TRINITY_DN52884_c0_g1_i3.p1 TRINITY_DN52884_c0_g1~~TRINITY_DN52884_c0_g1_i3.p1 ORF type:3prime_partial len:443 (-),score=27.24,7tm_1|PF00001.22|3.2e-16 TRINITY_DN52884_c0_g1_i3:3-1328(-) | K134: 0.11552601 | L134: 0.3448823
A135: 132 | B135: sp|P32248|CCR7_HUMAN C-C chemokine receptor type 7 OS=Homo sapiens OX=9606 GN=CCR7 PE=1 SV=2 | C135: 0.6518395 | D135: 0.71853304 | I135: 435 | J135: TRINITY_DN52893_c0_g1_i1.p1 TRINITY_DN52893_c0_g1~~TRINITY_DN52893_c0_g1_i1.p1 ORF type:complete len:357 (-),score=20.75,7tm_1|PF00001.22|2.2e-20 TRINITY_DN52893_c0_g1_i1:158-1228(-) | K135: 0.44874525 | L135: 0.08699384
A136: 133 | B136: sp|O00574|CXCR6_HUMAN C-X-C chemokine receptor type 6 OS=Homo sapiens OX=9606 GN=CXCR6 PE=2 SV=1 | C136: 0.6510656 | D136: 0.71964747 | I136: 436 | J136: TRINITY_DN52929_c0_g1_i1.p1 TRINITY_DN52929_c0_g1~~TRINITY_DN52929_c0_g1_i1.p1 ORF type:complete len:320 (+),score=22.75,7tm_1|PF00001.22|5.6e-15 TRINITY_DN52929_c0_g1_i1:16-975(+) | K136: 0.1886893 | L136: 0.7737721
A137: 134 | B137: sp|O95800|GPR75_HUMAN Probable G-protein coupled receptor 75 OS=Homo sapiens OX=9606 GN=GPR75 PE=1 SV=1 | C137: 0.23151954 | D137: 0.72075975 | I137: 437 | J137: TRINITY_DN52929_c0_g1_i2.p1 TRINITY_DN52929_c0_g1~~TRINITY_DN52929_c0_g1_i2.p1 ORF type:complete len:157 (+),score=20.45 TRINITY_DN52929_c0_g1_i2:565-1035(+) | K137: 0.1915869 | L137: 0.766085
A138: 135 | B138: sp|Q14439|GP176_HUMAN G-protein coupled receptor 176 OS=Homo sapiens OX=9606 GN=GPR176 PE=2 SV=1 | C138: 0.6535645 | D138: 0.46139833 | I138: 438 | J138: TRINITY_DN52948_c0_g1_i1.p1 TRINITY_DN52948_c0_g1~~TRINITY_DN52948_c0_g1_i1.p1 ORF type:complete len:405 (-),score=37.33,sp|P97292|HRH2_MOUSE|24.691|7.24e-12,7tm_1|PF00001.22|2e-24 TRINITY_DN52948_c0_g1_i1:115-1329(-) | K138: 0.2839424 | L138: 0.8910689
A139: 136 | B139: sp|P50406|5HT6R_HUMAN 5-hydroxytryptamine receptor 6 OS=Homo sapiens OX=9606 GN=HTR6 PE=1 SV=1 | C139: 0.4223538 | D139: 0.44780195 | I139: 439 | J139: TRINITY_DN53016_c0_g1_i1.p1 TRINITY_DN53016_c0_g1~~TRINITY_DN53016_c0_g1_i1.p1 ORF type:5prime_partial len:309 (-),score=22.14,sp|O12948|OPSR_XENLA|29.861|1.24e-26,7tm_1|PF00001.22|1.4e-27 TRINITY_DN53016_c0_g1_i1:1-927(-) | K139: 0.76713496 | L139: 0.5003644
A140: 137 | B140: sp|P30556|AGTR1_HUMAN Type-1 angiotensin II receptor OS=Homo sapiens OX=9606 GN=AGTR1 PE=1 SV=1 | C140: 0.66839266 | D140: 0.7181939 | I140: 440 | J140: TRINITY_DN53016_c0_g1_i2.p1 TRINITY_DN53016_c0_g1~~TRINITY_DN53016_c0_g1_i2.p1 ORF type:5prime_partial len:298 (-),score=24.22,sp|O12948|OPSR_XENLA|30.345|9.93e-27,7tm_1|PF00001.22|1.9e-28 TRINITY_DN53016_c0_g1_i2:1-894(-) | K140: 0.76205754 | L140: 0.49837875
A141: 138 | B141: sp|Q9Y271|CLTR1_HUMAN Cysteinyl leukotriene receptor 1 OS=Homo sapiens OX=9606 GN=CYSLTR1 PE=1 SV=1 | C141: 0.6574337 | D141: 0.60231835 | I141: 441 | J141: TRINITY_DN53016_c0_g1_i6.p1 TRINITY_DN53016_c0_g1~~TRINITY_DN53016_c0_g1_i6.p1 ORF type:5prime_partial len:309 (-),score=25.11,sp|P51476|OPSP_COLLI|27.778|7.95e-27,7tm_1|PF00001.22|2.8e-27 TRINITY_DN53016_c0_g1_i6:290-1216(-) | K141: 0.7622226 | L141: 0.50390494
A142: 139 | B142: sp|P21728|DRD1_HUMAN D(1A) dopamine receptor OS=Homo sapiens OX=9606 GN=DRD1 PE=1 SV=1 | C142: 0.4254947 | D142: 0.44308934 | I142: 442 | J142: TRINITY_DN53028_c0_g1_i2.p1 TRINITY_DN53028_c0_g1~~TRINITY_DN53028_c0_g1_i2.p1 ORF type:complete len:344 (-),score=23.22,sp|Q91175|ADA1A_ORYLA|22.630|3.14e-11,7tm_1|PF00001.22|2.5e-22 TRINITY_DN53028_c0_g1_i2:223-1254(-) | K142: 0.32403594 | L142: 0.53162813
A143: 140 | B143: sp|Q99678|GPR20_HUMAN G-protein coupled receptor 20 OS=Homo sapiens OX=9606 GN=GPR20 PE=1 SV=2 | C143: 0.15187441 | D143: 0.41503453 | I143: 443 | J143: TRINITY_DN53031_c0_g1_i1.p1 TRINITY_DN53031_c0_g1~~TRINITY_DN53031_c0_g1_i1.p1 ORF type:complete len:323 (-),score=13.68,7tm_1|PF00001.22|9.2e-15 TRINITY_DN53031_c0_g1_i1:299-1267(-) | K143: 0.8617659 | L143: 0.15715526
A144: 141 | B144: sp|P30968|GNRHR_HUMAN Gonadotropin-releasing hormone receptor OS=Homo sapiens OX=9606 GN=GNRHR PE=1 SV=1 | C144: 0.87960696 | D144: 0.5229563 | I144: 444 | J144: TRINITY_DN53046_c0_g1_i2.p1 TRINITY_DN53046_c0_g1~~TRINITY_DN53046_c0_g1_i2.p1 ORF type:complete len:386 (-),score=14.97,sp|P58307|OX1R_MOUSE|22.192|3.33e-16,7tm_1|PF00001.22|6.9e-32 TRINITY_DN53046_c0_g1_i2:318-1475(-) | K144: 0.15257834 | L144: 0.8400472
A145: 142 | B145: sp|P35348|ADA1A_HUMAN Alpha-1A adrenergic receptor OS=Homo sapiens OX=9606 GN=ADRA1A PE=1 SV=2 | C145: 0.42203286 | D145: 0.43454036 | I145: 445 | J145: TRINITY_DN53135_c0_g1_i1.p1 TRINITY_DN53135_c0_g1~~TRINITY_DN53135_c0_g1_i1.p1 ORF type:5prime_partial len:439 (-),score=33.47,7tm_1|PF00001.22|1.3e-08 TRINITY_DN53135_c0_g1_i1:340-1656(-) | K145: 0.53634316 | L145: 0.18967853
A146: 143 | B146: sp|P25090|FPR2_HUMAN N-formyl peptide receptor 2 OS=Homo sapiens OX=9606 GN=FPR2 PE=1 SV=2 | C146: 0.7263206 | D146: 0.7650644 | I146: 446 | J146: TRINITY_DN53135_c0_g1_i3.p1 TRINITY_DN53135_c0_g1~~TRINITY_DN53135_c0_g1_i3.p1 ORF type:5prime_partial len:415 (-),score=26.29,7tm_1|PF00001.22|2.1e-10 TRINITY_DN53135_c0_g1_i3:316-1560(-) | K146: 0.5309682 | L146: 0.18606976
A147: 144 | B147: sp|P28566|5HT1E_HUMAN 5-hydroxytryptamine receptor 1E OS=Homo sapiens OX=9606 GN=HTR1E PE=1 SV=1 | C147: 0.40568176 | D147: 0.42798826 | I147: 447 | J147: TRINITY_DN53162_c0_g1_i1.p1 TRINITY_DN53162_c0_g1~~TRINITY_DN53162_c0_g1_i1.p1 ORF type:complete len:367 (-),score=26.61,sp|Q29J90|MOODY_DROPS|21.774|1.62e-12,7tm_1|PF00001.22|6.4e-25 TRINITY_DN53162_c0_g1_i1:429-1529(-) | K147: 0.45351657 | L147: 0.13986844
A148: 145 | B148: sp|P51677|CCR3_HUMAN C-C chemokine receptor type 3 OS=Homo sapiens OX=9606 GN=CCR3 PE=1 SV=1 | C148: 0.648928 | D148: 0.7067401 | I148: 448 | J148: TRINITY_DN53174_c5_g1_i2.p1 TRINITY_DN53174_c5_g1~~TRINITY_DN53174_c5_g1_i2.p1 ORF type:3prime_partial len:366 (+),score=63.63,7tm_1|PF00001.22|1.7e-16 TRINITY_DN53174_c5_g1_i2:99-1193(+) | K148: 0.26780468 | L148: 0.7782617
A149: 146 | B149: sp|Q14330|GPR18_HUMAN N-arachidonyl glycine receptor OS=Homo sapiens OX=9606 GN=GPR18 PE=1 SV=2 | C149: 0.36174968 | D149: 0.18791941 | I149: 449 | J149: TRINITY_DN53180_c0_g1_i1.p1 TRINITY_DN53180_c0_g1~~TRINITY_DN53180_c0_g1_i1.p1 ORF type:complete len:422 (+),score=13.31,sp|O97967|BRS3_SHEEP|29.703|4.31e-25,7tm_1|PF00001.22|4.1e-39 TRINITY_DN53180_c0_g1_i1:58-1323(+) | K149: 0.08317352 | L149: 0.7522447
A150: 147 | B150: sp|P08172|ACM2_HUMAN Muscarinic acetylcholine receptor M2 OS=Homo sapiens OX=9606 GN=CHRM2 PE=1 SV=1 | C150: 0.37913606 | D150: 0.36457905 | I150: 450 | J150: TRINITY_DN53183_c0_g1_i1.p1 TRINITY_DN53183_c0_g1~~TRINITY_DN53183_c0_g1_i1.p1 ORF type:5prime_partial len:178 (+),score=2.79 TRINITY_DN53183_c0_g1_i1:1-534(+) | K150: 0.10653863 | L150: 0.3795047
A151: 148 | B151: sp|P08908|5HT1A_HUMAN 5-hydroxytryptamine receptor 1A OS=Homo sapiens OX=9606 GN=HTR1A PE=1 SV=3 | C151: 0.41542107 | D151: 0.4148644 | I151: 451 | J151: TRINITY_DN53183_c0_g2_i6.p1 TRINITY_DN53183_c0_g2~~TRINITY_DN53183_c0_g2_i6.p1 ORF type:internal len:242 (-),score=-0.52,7tm_1|PF00001.22|4.6e-13 TRINITY_DN53183_c0_g2_i6:2-724(-) | K151: 0.63183457 | L151: 0.75101596
A152: 149 | B152: sp|P29274|AA2AR_HUMAN Adenosine receptor A2a OS=Homo sapiens OX=9606 GN=ADORA2A PE=1 SV=2 | C152: 0.049097512 | D152: 0.4845433 | I152: 452 | J152: TRINITY_DN53230_c0_g1_i2.p1 TRINITY_DN53230_c0_g1~~TRINITY_DN53230_c0_g1_i2.p1 ORF type:complete len:411 (-),score=50.60,sp|Q25414|5HTR_LYMST|21.634|6.75e-12,7tm_1|PF00001.22|3.3e-29 TRINITY_DN53230_c0_g1_i2:242-1474(-) | K152: 0.46154952 | L152: 0.13559045
A153: 150 | B153: sp|P25089|FPR3_HUMAN N-formyl peptide receptor 3 OS=Homo sapiens OX=9606 GN=FPR3 PE=2 SV=2 | C153: 0.72341883 | D153: 0.76854974 | I153: 453 | J153: TRINITY_DN53230_c0_g1_i3.p1 TRINITY_DN53230_c0_g1~~TRINITY_DN53230_c0_g1_i3.p1 ORF type:internal len:276 (-),score=19.59,7tm_1|PF00001.22|1.5e-16 TRINITY_DN53230_c0_g1_i3:1-825(-) | K153: 0.46417624 | L153: 0.13795324
A154: 151 | B154: sp|Q9NQS5|GPR84_HUMAN G-protein coupled receptor 84 OS=Homo sapiens OX=9606 GN=GPR84 PE=2 SV=1 | C154: 0.1583449 | D154: 0.14838414 | I154: 454 | J154: TRINITY_DN53247_c0_g1_i1.p1 TRINITY_DN53247_c0_g1~~TRINITY_DN53247_c0_g1_i1.p1 ORF type:5prime_partial len:415 (-),score=24.06,sp|P25931|RYAR_DROME|25.828|2.45e-11,7tm_1|PF00001.22|3.4e-22 TRINITY_DN53247_c0_g1_i1:289-1533(-) | K154: 0.48439446 | L154: 0.49826813
A155: 152 | B155: sp|Q8TDV0|GP151_HUMAN G-protein coupled receptor 151 OS=Homo sapiens OX=9606 GN=GPR151 PE=1 SV=1 | C155: 0.473816 | D155: 0.9016155 | I155: 455 | J155: TRINITY_DN53336_c0_g1_i1.p1 TRINITY_DN53336_c0_g1~~TRINITY_DN53336_c0_g1_i1.p1 ORF type:internal len:135 (-),score=1.30,7tm_1|PF00001.22|1.9e-11 TRINITY_DN53336_c0_g1_i1:2-403(-) | K155: 0.6183505 | L155: 0.90212935
A156: 153 | B156: sp|Q49SQ1|GPR33_HUMAN Probable G-protein coupled receptor 33 OS=Homo sapiens OX=9606 GN=GPR33 PE=2 SV=1 | C156: 0.7376342 | D156: 0.7710444 | I156: 456 | J156: TRINITY_DN53336_c0_g1_i2.p1 TRINITY_DN53336_c0_g1~~TRINITY_DN53336_c0_g1_i2.p1 ORF type:5prime_partial len:279 (-),score=20.84,sp|P61752|HRH2_PONPY|22.845|6.19e-11,7tm_1|PF00001.22|1.5e-21 TRINITY_DN53336_c0_g1_i2:93-929(-) | K156: 0.6100798 | L156: 0.9062897
A157: 154 | B157: sp|P46091|GPR1_HUMAN G-protein coupled receptor 1 OS=Homo sapiens OX=9606 GN=GPR1 PE=1 SV=2 | C157: 0.72136116 | D157: 0.75871176 | I157: 457 | J157: TRINITY_DN53386_c0_g1_i1.p1 TRINITY_DN53386_c0_g1~~TRINITY_DN53386_c0_g1_i1.p1 ORF type:complete len:438 (+),score=38.27,sp|P51683|CCR2_MOUSE|30.717|3.30e-15,7tm_1|PF00001.22|2.1e-22 TRINITY_DN53386_c0_g1_i1:64-1377(+) | K157: 0.1402893 | L157: 0.6137255
A158: 155 | B158: sp|P49019|HCAR3_HUMAN Hydroxycarboxylic acid receptor 3 OS=Homo sapiens OX=9606 GN=HCAR3 PE=1 SV=3 | C158: 0.69635093 | D158: 0.4657879 | I158: 458 | J158: TRINITY_DN53539_c0_g2_i1.p1 TRINITY_DN53539_c0_g2~~TRINITY_DN53539_c0_g2_i1.p1 ORF type:5prime_partial len:324 (-),score=20.87,7tm_1|PF00001.22|6.8e-23 TRINITY_DN53539_c0_g2_i1:400-1371(-) | K158: 0.21655165 | L158: 0.4613854
A159: 156 | B159: sp|Q9UPC5|GPR34_HUMAN Probable G-protein coupled receptor 34 OS=Homo sapiens OX=9606 GN=GPR34 PE=2 SV=2 | C159: 0.58027506 | D159: 0.5136408 | I159: 459 | J159: TRINITY_DN53576_c0_g2_i2.p1 TRINITY_DN53576_c0_g2~~TRINITY_DN53576_c0_g2_i2.p1 ORF type:complete len:460 (+),score=29.34,sp|P30874|SSR2_HUMAN|31.156|4.93e-16,7tm_1|PF00001.22|3e-42 TRINITY_DN53576_c0_g2_i2:105-1484(+) | K159: 0.6390955 | L159: 0.576802
A160: 157 | B160: sp|P51684|CCR6_HUMAN C-C chemokine receptor type 6 OS=Homo sapiens OX=9606 GN=CCR6 PE=1 SV=2 | C160: 0.6541184 | D160: 0.71122056 | I160: 460 | J160: TRINITY_DN53579_c0_g1_i1.p1 TRINITY_DN53579_c0_g1~~TRINITY_DN53579_c0_g1_i1.p1 ORF type:5prime_partial len:335 (-),score=36.28,7tm_1|PF00001.22|1.5e-20 TRINITY_DN53579_c0_g1_i1:625-1629(-) | K160: 0.21105462 | L160: 0.4683122
A161: 158 | B161: sp|Q9Y5Y3|GPR45_HUMAN Probable G-protein coupled receptor 45 OS=Homo sapiens OX=9606 GN=GPR45 PE=1 SV=2 | C161: 0.26363504 | D161: 0.5874567 | I161: 461 | J161: TRINITY_DN53611_c0_g1_i1.p1 TRINITY_DN53611_c0_g1~~TRINITY_DN53611_c0_g1_i1.p1 ORF type:complete len:390 (+),score=33.41,sp|P35373|AGTRB_XENLA|23.496|4.92e-12,7tm_1|PF00001.22|1.4e-18 TRINITY_DN53611_c0_g1_i1:87-1256(+) | K161: 0.44809365 | L161: 0.09859954
A162: 159 | B162: sp|P47775|GPR12_HUMAN G-protein coupled receptor 12 OS=Homo sapiens OX=9606 GN=GPR12 PE=1 SV=1 | C162: 0.33058974 | D162: 0.4705674 | I162: 462 | J162: TRINITY_DN53719_c0_g1_i3.p1 TRINITY_DN53719_c0_g1~~TRINITY_DN53719_c0_g1_i3.p1 ORF type:complete len:367 (-),score=4.04,sp|O15973|OPSD1_MIZYE|22.597|2.09e-14,7tm_1|PF00001.22|2.3e-22 TRINITY_DN53719_c0_g1_i3:49-1149(-) | K162: 0.06803455 | L162: 0.58284396
A163: 160 | B163: sp|O75388|GPR32_HUMAN Probable G-protein coupled receptor 32 OS=Homo sapiens OX=9606 GN=GPR32 PE=2 SV=1 | C163: 0.73174226 | D163: 0.78035414 | I163: 463 | J163: TRINITY_DN53725_c0_g2_i1.p1 TRINITY_DN53725_c0_g2~~TRINITY_DN53725_c0_g2_i1.p1 ORF type:5prime_partial len:124 (+),score=-2.72,7tm_1|PF00001.22|5.1e-21 TRINITY_DN53725_c0_g2_i1:1-372(+) | K163: 0.81301147 | L163: 0.13534032
A164: 161 | B164: sp|P47211|GALR1_HUMAN Galanin receptor type 1 OS=Homo sapiens OX=9606 GN=GALR1 PE=1 SV=3 | C164: 0.6335795 | D164: 0.79154825 | I164: 464 | J164: TRINITY_DN53725_c0_g2_i3.p1 TRINITY_DN53725_c0_g2~~TRINITY_DN53725_c0_g2_i3.p1 ORF type:3prime_partial len:146 (+),score=0.14,7tm_1|PF00001.22|1.7e-14 TRINITY_DN53725_c0_g2_i3:439-873(+) | K164: 0.2655591 | L164: 0.78842473
A165: 162 | B165: sp|P60893|GPR85_HUMAN Probable G-protein coupled receptor 85 OS=Homo sapiens OX=9606 GN=GPR85 PE=1 SV=1 | C165: 0.0943367 | D165: 0.5020938 | I165: 465 | J165: TRINITY_DN53750_c0_g1_i4.p1 TRINITY_DN53750_c0_g1~~TRINITY_DN53750_c0_g1_i4.p1 ORF type:complete len:468 (+),score=34.08,sp|Q4KWL2|ADRB2_TSCTR|23.529|1.49e-14,7tm_1|PF00001.22|7.3e-26 TRINITY_DN53750_c0_g1_i4:113-1516(+) | K165: 0.4972866 | L165: 0.8423122
A166: 163 | B166: sp|Q9Y2T6|GPR55_HUMAN G-protein coupled receptor 55 OS=Homo sapiens OX=9606 GN=GPR55 PE=1 SV=2 | C166: 0.2542874 | D166: 0.7146591 | I166: 466 | J166: TRINITY_DN53755_c0_g1_i1.p1 TRINITY_DN53755_c0_g1~~TRINITY_DN53755_c0_g1_i1.p1 ORF type:complete len:339 (+),score=19.92,sp|O42294|OPSD_ABYKO|20.242|4.49e-14,7tm_1|PF00001.22|2.7e-17 TRINITY_DN53755_c0_g1_i1:339-1355(+) | K166: 0.39734647 | L166: 0.10178237
A167: 164 | B167: sp|Q99679|GPR21_HUMAN Probable G-protein coupled receptor 21 OS=Homo sapiens OX=9606 GN=GPR21 PE=2 SV=1 | C167: 0.7278481 | D167: 0.85582143 | I167: 467 | J167: TRINITY_DN53755_c3_g4_i1.p1 TRINITY_DN53755_c3_g4~~TRINITY_DN53755_c3_g4_i1.p1 ORF type:complete len:270 (-),score=8.87,sp|Q5BK09|DRAM2_RAT|28.897|2.63e-28,Frag1|PF10277.10|3.5e-35 TRINITY_DN53755_c3_g4_i1:555-1364(-) | K167: 0.3123059 | L167: 0.3302176
A168: 165 | B168: sp|Q8N6U8|GP161_HUMAN G-protein coupled receptor 161 OS=Homo sapiens OX=9606 GN=GPR161 PE=1 SV=1 | C168: 0.20857485 | D168: 0.18112268 | I168: 468 | J168: TRINITY_DN53755_c3_g9_i1.p1 TRINITY_DN53755_c3_g9~~TRINITY_DN53755_c3_g9_i1.p1 ORF type:5prime_partial len:288 (+),score=17.31,sp|F1R332|GAL2A_DANRE|28.425|2.87e-17,7tm_1|PF00001.22|1.1e-26 TRINITY_DN53755_c3_g9_i1:1-864(+) | K168: 0.27232537 | L168: 0.6887825
A169: 166 | B169: sp|P21554|CNR1_HUMAN Cannabinoid receptor 1 OS=Homo sapiens OX=9606 GN=CNR1 PE=1 SV=1 | C169: 0.37083 | D169: 0.27394277 | I169: 469 | J169: TRINITY_DN53782_c0_g1_i1.p1 TRINITY_DN53782_c0_g1~~TRINITY_DN53782_c0_g1_i1.p1 ORF type:5prime_partial len:225 (+),score=-0.18,7tm_1|PF00001.22|8e-22 TRINITY_DN53782_c0_g1_i1:3-677(+) | K169: 0.2836714 | L169: 0.33866677
A170: 167 | B170: sp|O43603|GALR2_HUMAN Galanin receptor type 2 OS=Homo sapiens OX=9606 GN=GALR2 PE=1 SV=1 | C170: 0.638981 | D170: 0.78561264 | I170: 470 | J170: TRINITY_DN53844_c1_g1_i1.p1 TRINITY_DN53844_c1_g1~~TRINITY_DN53844_c1_g1_i1.p1 ORF type:complete len:203 (+),score=24.33,sp|Q0INW1|UFSP_ORYSJ|45.638|6.88e-37,Peptidase_C78|PF07910.14|1.1e-37 TRINITY_DN53844_c1_g1_i1:92-700(+) | K170: 0.37222666 | L170: 0.69929725
A171: 168 | B171: sp|Q969F8|KISSR_HUMAN KiSS-1 receptor OS=Homo sapiens OX=9606 GN=KISS1R PE=1 SV=2 | C171: 0.6279694 | D171: 0.791554 | I171: 471 | J171: TRINITY_DN53844_c1_g1_i2.p1 TRINITY_DN53844_c1_g1~~TRINITY_DN53844_c1_g1_i2.p1 ORF type:complete len:174 (+),score=20.51,sp|Q0INW1|UFSP_ORYSJ|45.890|2.70e-36,Peptidase_C78|PF07910.14|4.9e-34 TRINITY_DN53844_c1_g1_i2:92-613(+) | K171: 0.37994868 | L171: 0.70017165
A172: 169 | B172: sp|P35367|HRH1_HUMAN Histamine H1 receptor OS=Homo sapiens OX=9606 GN=HRH1 PE=1 SV=1 | C172: 0.3688791 | D172: 0.359132 | I172: 472 | J172: TRINITY_DN53844_c1_g1_i3.p1 TRINITY_DN53844_c1_g1~~TRINITY_DN53844_c1_g1_i3.p1 ORF type:complete len:215 (+),score=25.30,sp|Q0INW1|UFSP_ORYSJ|42.236|6.06e-32,Peptidase_C78|PF07910.14|4.4e-31 TRINITY_DN53844_c1_g1_i3:92-736(+) | K172: 0.3747129 | L172: 0.6961623
A173: 170 | B173: sp|Q9UBY5|LPAR3_HUMAN Lysophosphatidic acid receptor 3 OS=Homo sapiens OX=9606 GN=LPAR3 PE=1 SV=1 | C173: 0.87308556 | D173: 0.6962747 | I173: 473 | J173: TRINITY_DN53844_c1_g3_i10.p1 TRINITY_DN53844_c1_g3~~TRINITY_DN53844_c1_g3_i10.p1 ORF type:complete len:356 (+),score=22.43,sp|P18130|ADA1A_BOVIN|22.124|1.42e-12,7tm_1|PF00001.22|1.9e-27 TRINITY_DN53844_c1_g3_i10:208-1275(+) | K173: 0.516009 | L173: 0.18541592
A174: 171 | B174: sp|O14842|FFAR1_HUMAN Free fatty acid receptor 1 OS=Homo sapiens OX=9606 GN=FFAR1 PE=1 SV=1 | C174: 0.13103305 | D174: 0.19657649 | I174: 474 | J174: TRINITY_DN53844_c1_g3_i11.p2 TRINITY_DN53844_c1_g3~~TRINITY_DN53844_c1_g3_i11.p2 ORF type:complete len:137 (+),score=24.71,sp|A0JN61|RPC9_BOVIN|45.545|5.70e-21,RNA_pol_Rpb4|PF03874.17|1.1e-20 TRINITY_DN53844_c1_g3_i11:1318-1728(+) | K174: 0.8121365 | L174: 0.65413463
A175: 172 | B175: sp|O00270|GPR31_HUMAN 12-(S)-hydroxy-5,8,10,14-eicosatetraenoic acid receptor OS=Homo sapiens OX=9606 GN=GPR31 PE=1 SV=2 | C175: 0.7001067 | D175: 0.444196 | I175: 475 | J175: TRINITY_DN53844_c1_g3_i8.p1 TRINITY_DN53844_c1_g3~~TRINITY_DN53844_c1_g3_i8.p1 ORF type:3prime_partial len:108 (+),score=19.60 TRINITY_DN53844_c1_g3_i8:79-399(+) | K175: 0.7211974 | L175: 0.71264136
A176: 173 | B176: sp|Q96P67|GPR82_HUMAN Probable G-protein coupled receptor 82 OS=Homo sapiens OX=9606 GN=GPR82 PE=2 SV=1 | C176: 0.93498206 | D176: 0.6649469 | I176: 476 | J176: TRINITY_DN53844_c1_g4_i1.p1 TRINITY_DN53844_c1_g4~~TRINITY_DN53844_c1_g4_i1.p1 ORF type:complete len:278 (+),score=47.68,sp|Q55DL2|MET18_DICDI|43.878|6.59e-49,Methyltransf_16|PF10294.10|3.5e-13 TRINITY_DN53844_c1_g4_i1:69-902(+) | K176: 0.9693601 | L176: 0.41772237
A177: 174 | B177: sp|Q8NGA4|G32P1_HUMAN Putative G-protein coupled receptor GPR32P1 OS=Homo sapiens OX=9606 GN=GPR32P1 PE=5 SV=2 | C177: 0.73798126 | D177: 0.7865917 | I177: 477 | J177: TRINITY_DN53853_c3_g1_i1.p1 TRINITY_DN53853_c3_g1~~TRINITY_DN53853_c3_g1_i1.p1 ORF type:5prime_partial len:228 (-),score=15.21,sp|P49144|5HT1B_RABIT|27.979|8.79e-12,7tm_1|PF00001.22|1.3e-19 TRINITY_DN53853_c3_g1_i1:900-1583(-) | K177: 0.57226014 | L177: 0.66412807
A178: 175 | B178: sp|P43657|LPAR6_HUMAN Lysophosphatidic acid receptor 6 OS=Homo sapiens OX=9606 GN=LPAR6 PE=1 SV=3 | C178: 0.6512539 | D178: 0.6183628 | I178: 478 | J178: TRINITY_DN53853_c3_g2_i1.p1 TRINITY_DN53853_c3_g2~~TRINITY_DN53853_c3_g2_i1.p1 ORF type:internal len:144 (+),score=7.53,sp|O73810|DRD2_MELGA|45.161|9.59e-19,7tm_1|PF00001.22|6.7e-30 TRINITY_DN53853_c3_g2_i1:1-429(+) | K178: 0.6717787 | L178: 0.060938027
A179: 176 | B179: sp|O60755|GALR3_HUMAN Galanin receptor type 3 OS=Homo sapiens OX=9606 GN=GALR3 PE=1 SV=1 | C179: 0.6378401 | D179: 0.80250645 | I179: 479 | J179: TRINITY_DN53876_c0_g1_i1.p1 TRINITY_DN53876_c0_g1~~TRINITY_DN53876_c0_g1_i1.p1 ORF type:internal len:214 (-),score=46.15 TRINITY_DN53876_c0_g1_i1:3-641(-) | K179: 0.7592061 | L179: 0.38887495
A180: 177 | B180: sp|P25025|CXCR2_HUMAN C-X-C chemokine receptor type 2 OS=Homo sapiens OX=9606 GN=CXCR2 PE=1 SV=2 | C180: 0.66021645 | D180: 0.712691 | I180: 480 | J180: TRINITY_DN53876_c0_g2_i1.p1 TRINITY_DN53876_c0_g2~~TRINITY_DN53876_c0_g2_i1.p1 ORF type:internal len:201 (-),score=52.37 TRINITY_DN53876_c0_g2_i1:3-602(-) | K180: 0.7609852 | L180: 0.3997225
A181: 178 | B181: sp|P24530|EDNRB_HUMAN Endothelin receptor type B OS=Homo sapiens OX=9606 GN=EDNRB PE=1 SV=1 | C181: 0.67112774 | D181: 0.87452877 | I181: 481 | J181: TRINITY_DN53876_c0_g2_i2.p1 TRINITY_DN53876_c0_g2~~TRINITY_DN53876_c0_g2_i2.p1 ORF type:5prime_partial len:168 (+),score=0.02 TRINITY_DN53876_c0_g2_i2:3-506(+) | K181: 0.060281157 | L181: 0.25863156
A182: 179 | B182: sp|P04201|MAS_HUMAN Proto-oncogene Mas OS=Homo sapiens OX=9606 GN=MAS1 PE=1 SV=1 | C182: 0.5127747 | D182: 0.34384525 | I182: 482 | J182: TRINITY_DN53876_c0_g2_i3.p1 TRINITY_DN53876_c0_g2~~TRINITY_DN53876_c0_g2_i3.p1 ORF type:internal len:140 (-),score=35.85 TRINITY_DN53876_c0_g2_i3:2-418(-) | K182: 0.7577311 | L182: 0.4106391
A183: 180 | B183: sp|P32302|CXCR5_HUMAN C-X-C chemokine receptor type 5 OS=Homo sapiens OX=9606 GN=CXCR5 PE=1 SV=1 | C183: 0.6560685 | D183: 0.7166792 | I183: 483 | J183: TRINITY_DN53876_c0_g2_i7.p1 TRINITY_DN53876_c0_g2~~TRINITY_DN53876_c0_g2_i7.p1 ORF type:internal len:150 (-),score=37.79 TRINITY_DN53876_c0_g2_i7:3-449(-) | K183: 0.7658818 | L183: 0.40573314
A184: 181 | B184: sp|Q13304|GPR17_HUMAN Uracil nucleotide/cysteinyl leukotriene receptor OS=Homo sapiens OX=9606 GN=GPR17 PE=2 SV=2 | C184: 0.654483 | D184: 0.594553 | I184: 484 | J184: TRINITY_DN53876_c0_g3_i1.p1 TRINITY_DN53876_c0_g3~~TRINITY_DN53876_c0_g3_i1.p1 ORF type:complete len:355 (-),score=-7.52,sp|Q924H0|NPFF2_MOUSE|28.431|2.61e-27,7tm_1|PF00001.22|2e-41 TRINITY_DN53876_c0_g3_i1:211-1275(-) | K184: 0.05974335 | L184: 0.49546906
A185: 182 | B185: sp|Q9NS67|GPR27_HUMAN Probable G-protein coupled receptor 27 OS=Homo sapiens OX=9606 GN=GPR27 PE=2 SV=1 | C185: 0.08801442 | D185: 0.4980602 | I185: 485 | J185: TRINITY_DN53876_c0_g3_i10.p1 TRINITY_DN53876_c0_g3~~TRINITY_DN53876_c0_g3_i10.p1 ORF type:5prime_partial len:402 (-),score=0.85,sp|Q924H0|NPFF2_MOUSE|26.110|2.67e-26,7tm_1|PF00001.22|1.1e-41 TRINITY_DN53876_c0_g3_i10:57-1262(-) | K185: 0.06338352 | L185: 0.49012187
A186: 183 | B186: sp|Q16538|GP162_HUMAN Probable G-protein coupled receptor 162 OS=Homo sapiens OX=9606 GN=GPR162 PE=1 SV=1 | C186: 0.08833333 | D186: 0.38163182 | I186: 486 | J186: TRINITY_DN53876_c0_g3_i11.p1 TRINITY_DN53876_c0_g3~~TRINITY_DN53876_c0_g3_i11.p1 ORF type:complete len:355 (-),score=-7.89,sp|P25931|RYAR_DROME|27.129|6.03e-27,7tm_1|PF00001.22|8.1e-44 TRINITY_DN53876_c0_g3_i11:211-1275(-) | K186: 0.05983545 | L186: 0.49104655
A187: 184 | B187: sp|Q9H1C0|LPAR5_HUMAN Lysophosphatidic acid receptor 5 OS=Homo sapiens OX=9606 GN=LPAR5 PE=2 SV=1 | C187: 0.62518734 | D187: 0.60693425 | I187: 487 | J187: TRINITY_DN53884_c0_g1_i1.p1 TRINITY_DN53884_c0_g1~~TRINITY_DN53884_c0_g1_i1.p1 ORF type:5prime_partial len:624 (+),score=124.57,sp|P30153|2AAA_HUMAN|75.000|0.0,sp|P30153|2AAA_HUMAN|22.705|7.34e-17,HEAT_2|PF13646.7|1e-13 TRINITY_DN53884_c0_g1_i1:1-1872(+) | K187: 0.11393133 | L187: 0.50737756
A188: 185 | B188: sp|Q15760|GPR19_HUMAN Probable G-protein coupled receptor 19 OS=Homo sapiens OX=9606 GN=GPR19 PE=2 SV=2 | C188: 0.91273695 | D188: 0.838387 | I188: 488 | J188: TRINITY_DN53884_c0_g2_i1.p1 TRINITY_DN53884_c0_g2~~TRINITY_DN53884_c0_g2_i1.p1 ORF type:complete len:427 (-),score=14.32,7tm_1|PF00001.22|1.9e-27 TRINITY_DN53884_c0_g2_i1:103-1383(-) | K188: 0.97711897 | L188: 0.6002492
A189: 186 | B189: sp|Q8NDV2|GPR26_HUMAN G-protein coupled receptor 26 OS=Homo sapiens OX=9606 GN=GPR26 PE=1 SV=1 | C189: 0.3616541 | D189: 0.9656732 | I189: 489 | J189: TRINITY_DN53966_c0_g1_i3.p1 TRINITY_DN53966_c0_g1~~TRINITY_DN53966_c0_g1_i3.p1 ORF type:complete len:314 (+),score=-2.63,sp|Q4KWL2|ADRB2_TSCTR|25.000|1.73e-17,7tm_1|PF00001.22|6.7e-26 TRINITY_DN53966_c0_g1_i3:145-1086(+) | K189: 0.5550288 | L189: 0.6174023
A190: 187 | B190: sp|Q8TDT2|GP152_HUMAN Probable G-protein coupled receptor 152 OS=Homo sapiens OX=9606 GN=GPR152 PE=1 SV=1 | C190: 0.8516719 | D190: 0.82694495 | I190: 490 | J190: TRINITY_DN54010_c9_g1_i1.p1 TRINITY_DN54010_c9_g1~~TRINITY_DN54010_c9_g1_i1.p1 ORF type:5prime_partial len:349 (+),score=8.08,sp|C3ZQF9|QRFPR_BRAFL|24.047|1.99e-11,7tm_1|PF00001.22|1.3e-26 TRINITY_DN54010_c9_g1_i1:1-1047(+) | K190: 0.98275256 | L190: 0.4699506
A191: 188 | B191: sp|Q9NPB9|ACKR4_HUMAN Atypical chemokine receptor 4 OS=Homo sapiens OX=9606 GN=ACKR4 PE=1 SV=1 | C191: 0.6499275 | D191: 0.7156283 | I191: 491 | J191: TRINITY_DN54084_c0_g1_i3.p1 TRINITY_DN54084_c0_g1~~TRINITY_DN54084_c0_g1_i3.p1 ORF type:complete len:334 (+),score=23.37,7tm_1|PF00001.22|5.4e-18 TRINITY_DN54084_c0_g1_i3:132-1133(+) | K191: 0.3350925 | L191: 0.18959057
A192: 189 | B192: sp|P28221|5HT1D_HUMAN 5-hydroxytryptamine receptor 1D OS=Homo sapiens OX=9606 GN=HTR1D PE=1 SV=1 | C192: 0.41188827 | D192: 0.4257584 | I192: 492 | J192: TRINITY_DN54189_c0_g1_i1.p1 TRINITY_DN54189_c0_g1~~TRINITY_DN54189_c0_g1_i1.p1 ORF type:complete len:468 (+),score=23.59,sp|Q924H0|NPFF2_MOUSE|23.003|2.15e-18,7tm_1|PF00001.22|1.3e-36 TRINITY_DN54189_c0_g1_i1:200-1603(+) | K192: 0.33750898 | L192: 0.15065406
A193: 190 | B193: sp|P25100|ADA1D_HUMAN Alpha-1D adrenergic receptor OS=Homo sapiens OX=9606 GN=ADRA1D PE=1 SV=2 | C193: 0.4235383 | D193: 0.4294457 | I193: 493 | J193: TRINITY_DN54322_c0_g1_i11.p1 TRINITY_DN54322_c0_g1~~TRINITY_DN54322_c0_g1_i11.p1 ORF type:internal len:138 (-),score=20.19,sp|Q6GPQ3|MFSD8_XENLA|33.333|1.38e-15 TRINITY_DN54322_c0_g1_i11:1-411(-) | K193: 0.2729818 | L193: 0.34575877
A194: 191 | B194: sp|P25024|CXCR1_HUMAN C-X-C chemokine receptor type 1 OS=Homo sapiens OX=9606 GN=CXCR1 PE=1 SV=2 | C194: 0.6613959 | D194: 0.71034753 | I194: 494 | J194: TRINITY_DN54322_c0_g1_i14.p1 TRINITY_DN54322_c0_g1~~TRINITY_DN54322_c0_g1_i14.p1 ORF type:internal len:159 (-),score=28.24,sp|Q8NHS3|MFSD8_HUMAN|30.833|7.36e-17 TRINITY_DN54322_c0_g1_i14:1-474(-) | K194: 0.28241676 | L194: 0.33824763
A195: 192 | B195: sp|P25101|EDNRA_HUMAN Endothelin-1 receptor OS=Homo sapiens OX=9606 GN=EDNRA PE=1 SV=1 | C195: 0.6762896 | D195: 0.8790392 | I195: 495 | J195: TRINITY_DN54322_c0_g1_i17.p1 TRINITY_DN54322_c0_g1~~TRINITY_DN54322_c0_g1_i17.p1 ORF type:3prime_partial len:133 (-),score=24.46,sp|Q8NHS3|MFSD8_HUMAN|28.333|3.72e-14 TRINITY_DN54322_c0_g1_i17:2-397(-) | K195: 0.27811414 | L195: 0.33949953
A196: 193 | B196: sp|P35462|DRD3_HUMAN D(3) dopamine receptor OS=Homo sapiens OX=9606 GN=DRD3 PE=1 SV=2 | C196: 0.42533675 | D196: 0.3918052 | I196: 496 | J196: TRINITY_DN54322_c0_g1_i2.p1 TRINITY_DN54322_c0_g1~~TRINITY_DN54322_c0_g1_i2.p1 ORF type:3prime_partial len:132 (-),score=15.13,sp|Q8NHS3|MFSD8_HUMAN|35.135|2.35e-16 TRINITY_DN54322_c0_g1_i2:1-393(-) | K196: 0.2733253 | L196: 0.33716133
A197: 194 | B197: sp|P32239|GASR_HUMAN Gastrin/cholecystokinin type B receptor OS=Homo sapiens OX=9606 GN=CCKBR PE=1 SV=1 | C197: 0.59734356 | D197: 0.82398707 | I197: 497 | J197: TRINITY_DN54322_c0_g1_i5.p1 TRINITY_DN54322_c0_g1~~TRINITY_DN54322_c0_g1_i5.p1 ORF type:internal len:131 (-),score=14.10,sp|Q8NHS3|MFSD8_HUMAN|31.624|6.67e-16 TRINITY_DN54322_c0_g1_i5:1-390(-) | K197: 0.28202844 | L197: 0.3464958
A198: 195 | B198: sp|P50052|AGTR2_HUMAN Type-2 angiotensin II receptor OS=Homo sapiens OX=9606 GN=AGTR2 PE=1 SV=1 | C198: 0.66530824 | D198: 0.6838526 | I198: 498 | J198: TRINITY_DN54322_c0_g1_i8.p1 TRINITY_DN54322_c0_g1~~TRINITY_DN54322_c0_g1_i8.p1 ORF type:3prime_partial len:132 (-),score=16.79,sp|Q0VA82|MFSD8_DANRE|34.831|2.98e-14 TRINITY_DN54322_c0_g1_i8:1-393(-) | K198: 0.27637073 | L198: 0.34353912
A199: 196 | B199: sp|P28222|5HT1B_HUMAN 5-hydroxytryptamine receptor 1B OS=Homo sapiens OX=9606 GN=HTR1B PE=1 SV=1 | C199: 0.41332534 | D199: 0.4257735 | I199: 499 | J199: TRINITY_DN54322_c0_g2_i1.p1 TRINITY_DN54322_c0_g2~~TRINITY_DN54322_c0_g2_i1.p1 ORF type:complete len:379 (-),score=56.46,7tm_1|PF00001.22|9.8e-16 TRINITY_DN54322_c0_g2_i1:252-1388(-) | K199: 0.01722018 | L199: 0.5000086
A200: 197 | B200: sp|P61073|CXCR4_HUMAN C-X-C chemokine receptor type 4 OS=Homo sapiens OX=9606 GN=CXCR4 PE=1 SV=1 | C200: 0.6613714 | D200: 0.72429514 | I200: 500 | J200: TRINITY_DN54322_c0_g3_i1.p1 TRINITY_DN54322_c0_g3~~TRINITY_DN54322_c0_g3_i1.p1 ORF type:complete len:371 (-),score=102.51,sp|Q3TC93|H1BP3_MOUSE|36.364|4.07e-18 TRINITY_DN54322_c0_g3_i1:146-1258(-) | K200: 0.35840273 | L200: 0.64838266
... 385 more rows

Sheet FigS1F
A1: Cladonema GPCR | B1: # | C1: %
A2: Unknown | B2: 572 | C2: =100*B2/583 -> 98.11320755
A3: Melanopsin receptor-like | B3: 2 | C3: =100*B3/583 -> 0.3430531732
A4: Lutropin-choriogonadotropic hormone receptor-like | B4: 2 | C4: =100*B4/583 -> 0.3430531732
A5: Orexin receptor-like | B5: 1 | C5: 0.1715265866
A6: Histamine receptor-like | B6: 1 | C6: 0.1715265866
A7: Muscarinic acetylcholine receptor-like | B7: 1 | C7: 0.1715265866
A8: Follicle Stimulating Hormone receptor-like | B8: 1 | C8: 0.1715265866
A9: Thyrotropin receptor-like | B9: 1 | C9: 0.1715265866
A10: Luqin receptor-like | B10: 1 | C10: 0.1715265866
A11: Probable GPCR-like | B11: 1 | C11: 0.1715265866

Sheet FigS2G
A1: Gene model | B1: GPCR | C1: Regulation in… | D1: Average fold-change | E1: SEM | F1: FDR | G1: Significance Level
A2: TRINITY_DN52711_c0_g1 | B2: None (unknown) | C2: Ring | D2: 5.091370558 | E2: 0.6418460068 | F2: 1.485486137e-08 | G2: ***
A3: TRINITY_DN52492_c2_g1 | B3: None (unknown) | C3: Ring | D3: 5 | E3: 0.4 | F3: 0.03103109385 | G3: *
A4: TRINITY_DN52346_c0_g1 | B4: None (unknown) | C4: Ring | D4: 4.826018809 | E4: 0.6974974464 | F4: 4.123726506e-11 | G4: ***
A5: TRINITY_DN47954_c0_g1 | B5: None (unknown) | C5: Ring | D5: 4.074074074 | E5: 0.1851851852 | F5: 0.03766616673 | G5: *
A6: TRINITY_DN52459_c0_g1 | B6: Histamine | C6: Ring | D6: 3.563151942 | E6: 0.4393009074 | F6: 0.0241625493 | G6: *
A7: TRINITY_DN51811_c0_g1 | B7: None (unknown) | C7: Ring | D7: 3.379844961 | E7: 0.4010832037 | F7: 0.0007762992598 | G7: ***
A8: TRINITY_DN49990_c0_g2 | B8: Orexin | C8: Ring | D8: 2.626556017 | E8: 0.2129261511 | F8: 0.003809739768 | G8: **
A9: TRINITY_DN46373_c0_g1 | B9: None (unknown) | C9: Ring | D9: 2.482965932 | E9: 0.3160937541 | F9: 0.0442895997 | G9: *
A10: TRINITY_DN46816_c0_g1 | B10: None (unknown) | C10: Ring | D10: 0.9603399433 | E10: 0.02049342249 | F10: 0.04016296687 | G10: *
A11: TRINITY_DN50249_c0_g1 | B11: None (unknown) | C11: Manubrium | D11: 0.309202454 | E11: 0.03843057611 | F11: 0.01883860706 | G11: *

Sheet FigS3
A1: Peptide: | B1: EVQFCEFamide | G1: YPMENVHa | L1: VMFTNDQamide | Q1: GPPGLWamide | V1: NVFNYQIamide
B2: Ring | D2: Manubrium | G2: Ring | I2: Manubrium | L2: Ring | N2: Manubrium | Q2: Ring | S2: Manubrium | V2: Ring | X2: Manubrium
B3: Starved | C3: Fed | D3: Starved | E3: Fed | G3: Starved | H3: Fed | I3: Starved | J3: Fed | L3: Starved | M3: Fed | N3: Starved | O3: Fed | Q3: Starved | R3: Fed | S3: Starved | T3: Fed | V3: Starved | W3: Fed | X3: Starved | Y3: Fed
B4: Counts: | G4: Counts: | L4: Counts: | Q4: Counts: | V4: Counts:
B5: 0 | C5: 184.61 | D5: 16.88 | E5: 0 | G5: 1.42 | H5: 226.18 | I5: 1354.19 | J5: 877.15 | L5: 0 | M5: 0 | N5: 0 | O5: 33.72 | Q5: 258 | R5: 1124 | S5: 1268 | T5: 980 | V5: 0 | W5: 27.51 | X5: 0 | Y5: 6.7
B6: 0 | C6: 272.36 | D6: 66.18 | E6: 0 | G6: 0 | H6: 32.94 | I6: 1192.63 | J6: 1040.26 | L6: 0 | M6: 22.89 | N6: 0 | O6: 83.03 | Q6: 431.01 | R6: 1075 | S6: 1885.01 | T6: 1173 | V6: 0 | W6: 10.53 | X6: 0 | Y6: 0
B7: 20.21 | C7: 365.31 | D7: 19.91 | E7: 0 | G7: 0 | H7: 46.08 | I7: 603.83 | J7: 813.07 | L7: 0 | M7: 22.98 | N7: 0 | O7: 62.29 | Q7: 143 | R7: 817.99 | S7: 711 | T7: 1361.99 | V7: 0 | W7: 28.61 | X7: 0 | Y7: 40.22
A9: Average | B9: =AVERAGE(B5:B7) -> 6.736666667 | C9: 274.0933333 | D9: 34.32333333 | E9: 0 | G9: =AVERAGE(G5:G7) -> 0.4733333333 | H9: =AVERAGE(H5:H7) -> 101.7333333 | I9: 1050.216667 | J9: 910.16 | L9: =AVERAGE(L5:L7) -> 0 | M9: 15.29 | N9: 0 | O9: 59.68 | Q9: =AVERAGE(Q5:Q7) -> 277.3366667 | R9: =AVERAGE(R5:R7) -> 1005.663333 | S9: =AVERAGE(S5:S7) -> 1288.003333 | T9: =AVERAGE(T5:T7) -> 1171.663333 | V9: =AVERAGE(V5:V7) -> 0 | W9: =AVERAGE(W5:W7) -> 22.21666667 | X9: 0 | Y9: 15.64
A10: SD | B10: =STDEV(B5:B7) -> 11.66824894 | C10: 90.36246916 | D10: 27.63024852 | E10: 0 | G10: =STDEV(G5:G7) -> 0.8198373822 | H10: 107.9740456 | I10: 394.9318935 | J10: 117.1369673 | L10: =STDEV(L5:L7) -> 0 | M10: 13.24160489 | N10: 0 | O10: 24.75839454 | Q10: =STDEV(Q5:Q7) -> 144.9754118 | R10: =STDEV(R5:R7) -> 164.3660854 | S10: 587.260564 | T10: 190.9985079 | V10: =STDEV(V5:V7) -> 0 | W10: =STDEV(W5:W7) -> 10.13588345 | X10: 0 | Y10: 21.54889324
A11: N | B11: =COUNT(B5:B7) -> 3 | C11: 3 | D11: 3 | E11: 3 | G11: =COUNT(G5:G7) -> 3 | H11: 3 | I11: 3 | J11: 3 | L11: =COUNT(L5:L7) -> 3 | M11: 3 | N11: 3 | O11: 3 | Q11: =COUNT(Q5:Q7) -> 3 | R11: =COUNT(R5:R7) -> 3 | S11: 3 | T11: 3 | V11: =COUNT(V5:V7) -> 3 | W11: =COUNT(W5:W7) -> 3 | X11: 3 | Y11: 3
A12: SEM | B12: =B10/SQRT(B11) -> 6.736666667 | C12: 52.1707959 | D12: 15.95233142 | E12: 0 | G12: =G10/SQRT(G11) -> 0.4733333333 | H12: 62.33884432 | I12: 228.014035 | J12: 67.62905958 | L12: =L10/SQRT(L11) -> 0 | M12: 7.645044146 | N12: 0 | O12: 14.29426575 | Q12: =Q10/SQRT(Q11) -> 83.70159304 | R12: =R10/SQRT(R11) -> 94.89680366 | S12: 339.0550447 | T12: 110.27304 | V12: =V10/SQRT(V11) -> 0 | W12: =W10/SQRT(W11) -> 5.851955039 | X12: 0 | Y12: 12.44125931
A14: FDR values: | B14: 0.5155974927 | D14: 0.007552171878 | G14: 0.001300096266 | I14: 1 | L14: 0.553131534 | N14: 7.919425407e-05 | Q14: 0.000381 | S14: 1 | V14: 0.02874639231 | X14: 0.6004957769
A15: Significance level: | B15: ns | D15: ** | G15: ** | I15: ns | L15: ns | N15: *** | Q15: *** | S15: ns | V15: * | X15: ns

Sheet FigS4B
A1: Peptide: | B1: None (ASW) | E1: NGPPGLWa
A2: Feeding state: | B2: Starved | C2: Fed | E2: Starved | F2: Fed
B3: Brine shrimps eaten (# shrimps)
B4: 3.103 | C4: 4.863 | E4: 4.078 | F4: 1.535
B5: 10.498 | C5: 9.001 | E5: 5.269 | F5: 9.009
B6: 6.471 | C6: 9.658 | E6: 12.277 | F6: 7.575
B7: 2.505 | C7: 3.217 | E7: 9.441 | F7: 7.607
B8: 7.466 | C8: 5.866 | E8: 7.811 | F8: 4.24
B9: 5.275 | C9: 8.208 | E9: 5.108 | F9: 6.573
B10: 5.312 | C10: 6.776 | E10: 9.558 | F10: 9.677
B11: 4.367 | C11: 9.113 | E11: 5.374 | F11: 3.771
B12: 5.608 | C12: 12.68 | E12: 8.654 | F12: 13.081
B13: 4.405 | C13: 13.433 | E13: 7.781 | F13: 9.642
B14: 4.568 | C14: 12.115 | E14: 4.398 | F14: 11.644
B15: 3.468 | C15: 19.833 | E15: 8.739 | F15: 7.174
B16: 2.973 | C16: 12.52 | E16: 5.2 | F16: 16.45
B17: 3.232 | C17: 9.215 | E17: 6.569
B18: 5.205 | E18: 7.427
B19: 2.578 | E19: 5.985
B20: 4.89 | E20: 4.604
E21: 11.845
E22: 2.435
E23: 6.07
E24: 4.163
E25: 10.624
E26: 4.674
E27: 6.844
E28: 5.857
E29: 4.11
E30: 6.96
E31: 3.604
E32: 3.029
E33: 3.804
E34: 5.074
E35: 5.506
E36: 7.508
E37: 5.206
E38: 7.24
E39: 4.337
E40: 7.006
E41: 5.672
E42: 6.941
E43: 8.007
E44: 8.608
E45: 7.575
B47: p value summary (Kruskal-Wallis test; Dunn's post test, Adjusted P Values)
C48: < 0.0001 | F48: 0.2433

Sheet Fig8C
B1: Proboscis Extension Reflex (PER) | I1: Chi-squared test with Bonferroni correction
B2: Number of flies | E2: % of flies
A3: Genotype: | B3: None | C3: Partial | D3: Full | E3: None | F3: Partial | G3: Full | I3: Comparison | J3: p value | K3: Bonferroni-corrected p value
A4: w; Mip-GAL4/+ | B4: 48 | C4: 6 | D4: 26 | E4: =100*B4/80 -> 60 | F4: =100*C4/80 -> 7.5 | G4: 32.5 | I4: w; Mip-GAL4/+ vs. w; Mip-GAL4/UAS-emptyMIP; MipSK4 | J4: 0.0038 | K4: =J4*3 -> 0.0114
A5: w; Mip-GAL4/UAS-emptyMIP; MipSK4 | B5: 29 | C5: 4 | D5: 47 | E5: =100*B5/80 -> 36.25 | F5: =100*C5/80 -> 5 | G5: =100*D5/80 -> 58.75 | I5: w; Mip-GAL4/UAS-emptyMIP; MipSK4 vs. w; Mip-GAL4/UAS-DmelGLWa; MipSK4 | J5: 0.003 | K5: =J5*3 -> 0.009
A6: w; Mip-GAL4/UAS-DmelGLWa; MipSK4 | B6: 50 | C6: 4 | D6: 26 | E6: 62.5 | F6: 5 | G6: 32.5 | I6: w; Mip-GAL4/+ vs. w; Mip-GAL4/UAS-DmelGLWa; MipSK4 | J6: 0.8022 | K6: 2.4066
